Publisher Label,Publisher URI,Body Name,Service Area Categorisation,Service Division Categorisation,Expenses Type,Date,Transaction Number,Amount,Capital or Revenue,Supplier Name,Merchant Category
Peterborough,http://opendatacommunities.org/id/unitary-authority/peterborough,Peterborough City Council,Children's & Safeguarding,Children's Social Care,Agency Staff,04/01/2016 00:00,30050624,1406,Revenue,NonStop Recruitment Ltd,External Temporary Staff
Peterborough,http://opendatacommunities.org/id/unitary-authority/peterborough,Peterborough City Council,Children's & Safeguarding,Access to Resources & Specialist Commissioning,Services,04/01/2016 00:00,30051656,3207.9,Revenue,Fostering Solutions,Boarding Out Allowances
Peterborough,http://opendatacommunities.org/id/unitary-authority/peterborough,Peterborough City Council,Children's & Safeguarding,Children's Social Care,Agency Staff,04/01/2016 00:00,30051817,1772.95,Revenue,Sanctuary Personnel Ltd,External Temporary Staff
Peterborough,http://opendatacommunities.org/id/unitary-authority/peterborough,Peterborough City Council,Children's & Safeguarding,Access to Resources & Specialist Commissioning,Schools,04/01/2016 00:00,30051826,11160,Revenue,Ellern Mede School,Boarding Out Allowances
Peterborough,http://opendatacommunities.org/id/unitary-authority/peterborough,Peterborough City Council,Children's & Safeguarding,Children's Social Care,Agency Staff,04/01/2016 00:00,30052714,1606.85,Revenue,Sanctuary Personnel Ltd,External Temporary Staff
Peterborough,http://opendatacommunities.org/id/unitary-authority/peterborough,Peterborough City Council,Performance & Information,Performance & Information,Services,04/01/2016 00:00,30052854,677.6,Revenue,Redacted Personal Data,Post Mortem Charges
Peterborough,http://opendatacommunities.org/id/unitary-authority/peterborough,Peterborough City Council,Children's & Safeguarding,Access to Resources & Specialist Commissioning,Services,04/01/2016 00:00,30053136,19928.57,Revenue,Oracle Care Ltd (Region 2),Boarding Out Allowances
Peterborough,http://opendatacommunities.org/id/unitary-authority/peterborough,Peterborough City Council,Adult Services & Communities - Adults,Day Opportunities / In House,Agency Staff,04/01/2016 00:00,30053373,1020.32,Revenue,Sanctuary Personnel Ltd,External Temporary Staff
Peterborough,http://opendatacommunities.org/id/unitary-authority/peterborough,Peterborough City Council,Children's & Safeguarding,Access to Resources & Specialist Commissioning,Services,04/01/2016 00:00,30054532,5829,Revenue,Credo Care Ltd,Boarding Out Allowances
Peterborough,http://opendatacommunities.org/id/unitary-authority/peterborough,Peterborough City Council,Children's & Safeguarding,Children's Social Care,Agency Staff,04/01/2016 00:00,30054545,1606.85,Revenue,Sanctuary Personnel Ltd,External Temporary Staff
Peterborough,http://opendatacommunities.org/id/unitary-authority/peterborough,Peterborough City Council,Children's & Safeguarding,Children's Social Care,Agency Staff,04/01/2016 00:00,30054558,1429.68,Revenue,Sanctuary Personnel Ltd,External Temporary Staff
Peterborough,http://opendatacommunities.org/id/unitary-authority/peterborough,Peterborough City Council,Children's & Safeguarding,Children's Social Care,Agency Staff,04/01/2016 00:00,30054670,1740,Revenue,Sanctuary Personnel Ltd,External Temporary Staff
Peterborough,http://opendatacommunities.org/id/unitary-authority/peterborough,Peterborough City Council,Children's & Safeguarding,Children's Social Care,Agency Staff,04/01/2016 00:00,30054672,1606.85,Revenue,Sanctuary Personnel Ltd,External Temporary Staff
Peterborough,http://opendatacommunities.org/id/unitary-authority/peterborough,Peterborough City Council,Children's & Safeguarding,Children's Social Care,Agency Staff,04/01/2016 00:00,30054676,1787.1,Revenue,Sanctuary Personnel Ltd,External Temporary Staff
Peterborough,http://opendatacommunities.org/id/unitary-authority/peterborough,Peterborough City Council,Adult Services & Communities - Adults,Therapy/Reablement/Community Equipment,Agency Staff,04/01/2016 00:00,30054846,1221,Revenue,SWP Consulting,External Temporary Staff
Peterborough,http://opendatacommunities.org/id/unitary-authority/peterborough,Peterborough City Council,Children's & Safeguarding,Children's Social Care,Agency Staff,04/01/2016 00:00,30055234,1406,Revenue,NonStop Recruitment Ltd,External Temporary Staff
Peterborough,http://opendatacommunities.org/id/unitary-authority/peterborough,Peterborough City Council,Adult Services & Communities - Adults,Block Contracts,Services,04/01/2016 00:00,30055327,7174.6,Revenue,MEARS GROUP,Third Party Payments - Contract
Peterborough,http://opendatacommunities.org/id/unitary-authority/peterborough,Peterborough City Council,Children's & Safeguarding,Children's Social Care,Agency Staff,04/01/2016 00:00,30055477,1606.85,Revenue,Sanctuary Personnel Ltd,External Temporary Staff
Peterborough,http://opendatacommunities.org/id/unitary-authority/peterborough,Peterborough City Council,Children's & Safeguarding,Children's Social Care,Agency Staff,04/01/2016 00:00,30055480,1740,Revenue,Sanctuary Personnel Ltd,External Temporary Staff
Peterborough,http://opendatacommunities.org/id/unitary-authority/peterborough,Peterborough City Council,Children's & Safeguarding,Children's Social Care,Agency Staff,04/01/2016 00:00,30055482,1787.1,Revenue,Sanctuary Personnel Ltd,External Temporary Staff
Peterborough,http://opendatacommunities.org/id/unitary-authority/peterborough,Peterborough City Council,Education,Special Educational Needs / Inclusion,Services,04/01/2016 00:00,30055484,4000,Revenue,Baltimore Consulting,Consultants Fees
Peterborough,http://opendatacommunities.org/id/unitary-authority/peterborough,Peterborough City Council,Education,Special Educational Needs / Inclusion,Agency Staff,04/01/2016 00:00,30055562,897.5,Revenue,Vision for Education Ltd,External Temporary Staff
Peterborough,http://opendatacommunities.org/id/unitary-authority/peterborough,Peterborough City Council,Education,Special Educational Needs / Inclusion,Agency Staff,04/01/2016 00:00,30055567,897.5,Revenue,Vision for Education Ltd,External Temporary Staff
Peterborough,http://opendatacommunities.org/id/unitary-authority/peterborough,Peterborough City Council,Business Management and Commercial Operations,Clare Lodge,Agency Staff,04/01/2016 00:00,30055574,575,Revenue,Wrixon Care Services,External Temporary Staff
Peterborough,http://opendatacommunities.org/id/unitary-authority/peterborough,Peterborough City Council,Business Management and Commercial Operations,Clare Lodge,Agency Staff,04/01/2016 00:00,30055576,965,Revenue,Wrixon Care Services,External Temporary Staff
Peterborough,http://opendatacommunities.org/id/unitary-authority/peterborough,Peterborough City Council,Business Management and Commercial Operations,Clare Lodge,Agency Staff,04/01/2016 00:00,30055578,1545,Revenue,Wrixon Care Services,External Temporary Staff
Peterborough,http://opendatacommunities.org/id/unitary-authority/peterborough,Peterborough City Council,Business Management and Commercial Operations,Clare Lodge,Agency Staff,04/01/2016 00:00,30055579,875,Revenue,Wrixon Care Services,External Temporary Staff
Peterborough,http://opendatacommunities.org/id/unitary-authority/peterborough,Peterborough City Council,Business Management and Commercial Operations,Clare Lodge,Agency Staff,04/01/2016 00:00,30055580,1545,Revenue,Wrixon Care Services,External Temporary Staff
Peterborough,http://opendatacommunities.org/id/unitary-authority/peterborough,Peterborough City Council,Corporate,Corporate,Capital Expenditure,04/01/2016 00:00,30055757,1546,Capital,EMS Stairlifts,Grant Payment
Peterborough,http://opendatacommunities.org/id/unitary-authority/peterborough,Peterborough City Council,Corporate,Corporate,Capital Expenditure,04/01/2016 00:00,30055758,3950.7,Capital,Gaswise Services Ltd,Grant Payment
Peterborough,http://opendatacommunities.org/id/unitary-authority/peterborough,Peterborough City Council,Corporate,Corporate,Capital Expenditure,04/01/2016 00:00,30055759,4245,Capital,Allworks Home Improvements Ltd,Grant Payment
Peterborough,http://opendatacommunities.org/id/unitary-authority/peterborough,Peterborough City Council,Corporate,Corporate,Capital Expenditure,04/01/2016 00:00,30055760,4933,Capital,Allworks Home Improvements Ltd,Grant Payment
Peterborough,http://opendatacommunities.org/id/unitary-authority/peterborough,Peterborough City Council,City Services & Communications,"Markets, Tourism & Events",Rents,04/01/2016 00:00,30056035,5454.35,Revenue,Jones Lang LaSalle,Rent
Peterborough,http://opendatacommunities.org/id/unitary-authority/peterborough,Peterborough City Council,Education,PFI,Services,04/01/2016 00:00,30056219,4105.2,Revenue,IIC by Education (P'boro) Ltd,Service Charge
Peterborough,http://opendatacommunities.org/id/unitary-authority/peterborough,Peterborough City Council,Education,PFI,Services,04/01/2016 00:00,30056220,24170.92,Revenue,IIC by Education (P'boro) Ltd,Contract Services
Peterborough,http://opendatacommunities.org/id/unitary-authority/peterborough,Peterborough City Council,Education,PFI,Employee Related Expenses,04/01/2016 00:00,30056222,807.83,Revenue,IIC by Education (P'boro) Ltd,Pensions
Peterborough,http://opendatacommunities.org/id/unitary-authority/peterborough,Peterborough City Council,Performance & Information,Performance & Information,Services,04/01/2016 00:00,30056230,1244.1,Revenue,Redacted Personal Data,Post Mortem Charges
Peterborough,http://opendatacommunities.org/id/unitary-authority/peterborough,Peterborough City Council,Public Health,Business Management and Commercial Operations - Public Health,Services,04/01/2016 00:00,30056234,676.5,Revenue,Boots Queensgate,Third Party Payments - Contract
Peterborough,http://opendatacommunities.org/id/unitary-authority/peterborough,Peterborough City Council,Corporate,Corporate,Capital Expenditure,04/01/2016 00:00,30056347,47800,Capital,Mears Ltd,Building And Site Works
Peterborough,http://opendatacommunities.org/id/unitary-authority/peterborough,Peterborough City Council,Corporate,Corporate,Capital Expenditure,04/01/2016 00:00,30056361,99342.4,Capital,Mears Ltd,Building And Site Works
Peterborough,http://opendatacommunities.org/id/unitary-authority/peterborough,Peterborough City Council,City Services & Communications,"Markets, Tourism & Events",Services,04/01/2016 00:00,30056363,541.03,Revenue,Peterborough United Football Club,Items For Resale
Peterborough,http://opendatacommunities.org/id/unitary-authority/peterborough,Peterborough City Council,Corporate,Corporate,Capital Expenditure,04/01/2016 00:00,30056364,46760,Capital,Mears Ltd,Building And Site Works
Peterborough,http://opendatacommunities.org/id/unitary-authority/peterborough,Peterborough City Council,Corporate Items,Corporate Services,Services,04/01/2016 00:00,30056365,209919.59,Revenue,Cambridgeshire County Council,Pensions
Peterborough,http://opendatacommunities.org/id/unitary-authority/peterborough,Peterborough City Council,Corporate,Corporate,Capital Expenditure,04/01/2016 00:00,30056374,18600,Capital,Mears Ltd,Building And Site Works
Peterborough,http://opendatacommunities.org/id/unitary-authority/peterborough,Peterborough City Council,Corporate,Corporate,Capital Expenditure,04/01/2016 00:00,30056382,73765,Capital,Mears Ltd,Building And Site Works
Peterborough,http://opendatacommunities.org/id/unitary-authority/peterborough,Peterborough City Council,Children's & Safeguarding,Access to Resources & Specialist Commissioning,Services,04/01/2016 00:00,30056392,16714.29,Revenue,Priory Group (Castlecare),Boarding Out Allowances
Peterborough,http://opendatacommunities.org/id/unitary-authority/peterborough,Peterborough City Council,Children's & Safeguarding,Children's Social Care,Agency Staff,04/01/2016 00:00,30056908,1282.28,Revenue,Pulse,External Temporary Staff
Peterborough,http://opendatacommunities.org/id/unitary-authority/peterborough,Peterborough City Council,Corporate,Corporate,Capital Expenditure,04/01/2016 00:00,30057323,17643.39,Capital,Frederick F Smith (Builders) Ltd,Building And Site Works
Peterborough,http://opendatacommunities.org/id/unitary-authority/peterborough,Peterborough City Council,Adult Services & Communities - Adults,Community Team,Agency Staff,04/01/2016 00:00,30057360,1600,Revenue,Caritas Recruitment,External Temporary Staff
Peterborough,http://opendatacommunities.org/id/unitary-authority/peterborough,Peterborough City Council,Adult Services & Communities - Adults,Community Team,Agency Staff,04/01/2016 00:00,30057370,2000,Revenue,Caritas Recruitment,External Temporary Staff
Peterborough,http://opendatacommunities.org/id/unitary-authority/peterborough,Peterborough City Council,Adult Services & Communities - Adults,Community Team,Agency Staff,04/01/2016 00:00,30057371,2000,Revenue,Caritas Recruitment,External Temporary Staff
Peterborough,http://opendatacommunities.org/id/unitary-authority/peterborough,Peterborough City Council,Adult Services & Communities - Adults,Day Opportunities / In House,Agency Staff,04/01/2016 00:00,30057452,1295,Revenue,Caritas Recruitment,External Temporary Staff
Peterborough,http://opendatacommunities.org/id/unitary-authority/peterborough,Peterborough City Council,Adult Services & Communities - Adults,Community Team,Services,04/01/2016 00:00,30057464,1045.2,Revenue,ICare GB Ltd,Catering Provisions
Peterborough,http://opendatacommunities.org/id/unitary-authority/peterborough,Peterborough City Council,Adult Services & Communities - Adults,Community Team,Services,04/01/2016 00:00,30057465,918.75,Revenue,ICare GB Ltd,Catering Provisions
Peterborough,http://opendatacommunities.org/id/unitary-authority/peterborough,Peterborough City Council,Adult Services & Communities - Adults,Community Team,Services,04/01/2016 00:00,30057466,1056.64,Revenue,ICare GB Ltd,Catering Provisions
Peterborough,http://opendatacommunities.org/id/unitary-authority/peterborough,Peterborough City Council,Adult Services & Communities - Adults,Community Team,Services,04/01/2016 00:00,30057467,915.2,Revenue,ICare GB Ltd,Catering Provisions
Peterborough,http://opendatacommunities.org/id/unitary-authority/peterborough,Peterborough City Council,Adult Services & Communities - Adults,Community Team,Services,04/01/2016 00:00,30057468,900,Revenue,ICare GB Ltd,Catering Provisions
Peterborough,http://opendatacommunities.org/id/unitary-authority/peterborough,Peterborough City Council,Adult Services & Communities - Adults,Community Team,Services,04/01/2016 00:00,30057475,1390.48,Revenue,ICare GB Ltd,Catering Provisions
Peterborough,http://opendatacommunities.org/id/unitary-authority/peterborough,Peterborough City Council,Adult Services & Communities - Adults,Community Team,Services,04/01/2016 00:00,30057476,1093.04,Revenue,ICare GB Ltd,Catering Provisions
Peterborough,http://opendatacommunities.org/id/unitary-authority/peterborough,Peterborough City Council,Adult Services & Communities - Adults,Community Team,Services,04/01/2016 00:00,30057477,1045.2,Revenue,ICare GB Ltd,Catering Provisions
Peterborough,http://opendatacommunities.org/id/unitary-authority/peterborough,Peterborough City Council,Children's & Safeguarding,Access to Resources & Specialist Commissioning,Services,04/01/2016 00:00,30057527,3441.3,Revenue,Foster Care Associates Ltd FCA,Boarding Out Allowances
Peterborough,http://opendatacommunities.org/id/unitary-authority/peterborough,Peterborough City Council,Children's & Safeguarding,Access to Resources & Specialist Commissioning,Services,04/01/2016 00:00,30057529,4379.99,Revenue,Foster Care Associates Ltd FCA,Boarding Out Allowances
Peterborough,http://opendatacommunities.org/id/unitary-authority/peterborough,Peterborough City Council,Children's & Safeguarding,Access to Resources & Specialist Commissioning,Services,04/01/2016 00:00,30057531,2401.93,Revenue,Foster Care Associates Ltd FCA,Boarding Out Allowances
Peterborough,http://opendatacommunities.org/id/unitary-authority/peterborough,Peterborough City Council,Legal & Democratic,Legal Services,Agency Staff,04/01/2016 00:00,30057543,1105,Revenue,Go Management Ltd TA GoUmbrella,External Temporary Staff
Peterborough,http://opendatacommunities.org/id/unitary-authority/peterborough,Peterborough City Council,Education,School Improvement,Services,04/01/2016 00:00,30057599,7000,Revenue,Edge Hill University,Subscriptions
Peterborough,http://opendatacommunities.org/id/unitary-authority/peterborough,Peterborough City Council,Education,School Improvement,"Tools, Equipment, Furniture & Materials",04/01/2016 00:00,30057601,2475,Revenue,Edge Hill University,Educational Equipment
Peterborough,http://opendatacommunities.org/id/unitary-authority/peterborough,Peterborough City Council,Education,School Improvement,Services,04/01/2016 00:00,30057658,840,Revenue,Families First Ltd,Education Expenses
Peterborough,http://opendatacommunities.org/id/unitary-authority/peterborough,Peterborough City Council,Education,School Improvement,Services,04/01/2016 00:00,30057659,1365,Revenue,Families First Ltd,Education Expenses
Peterborough,http://opendatacommunities.org/id/unitary-authority/peterborough,Peterborough City Council,Legal & Democratic,Democratic Services,Services,04/01/2016 00:00,30057672,8036,Revenue,Penna Plc,Consultants Fees
Peterborough,http://opendatacommunities.org/id/unitary-authority/peterborough,Peterborough City Council,Legal & Democratic,Democratic Services,Services,04/01/2016 00:00,30057673,7462,Revenue,Penna Plc,Consultants Fees
Peterborough,http://opendatacommunities.org/id/unitary-authority/peterborough,Peterborough City Council,Children's & Safeguarding,Children's Social Care,Agency Staff,04/01/2016 00:00,30057700,1602.85,Revenue,Pulse,External Temporary Staff
Peterborough,http://opendatacommunities.org/id/unitary-authority/peterborough,Peterborough City Council,Adult Services & Communities - Adults,Independent Sector Placements,Services,04/01/2016 00:00,30057706,846.45,Revenue,Redacted Personal Data,Home Care
Peterborough,http://opendatacommunities.org/id/unitary-authority/peterborough,Peterborough City Council,Adult Services & Communities - Adults,Independent Sector Placements,Services,04/01/2016 00:00,30057707,964.6,Revenue,BUPA Care Homes,Residential Care
Peterborough,http://opendatacommunities.org/id/unitary-authority/peterborough,Peterborough City Council,City Services & Communications,"Markets, Tourism & Events",Services,04/01/2016 00:00,30057711,2310,Revenue,R J Mason Blacksmith & Farrier,Conferences/Events
Peterborough,http://opendatacommunities.org/id/unitary-authority/peterborough,Peterborough City Council,Adult Services & Communities - Adults,Independent Sector Placements,Services,04/01/2016 00:00,30057714,2707.04,Revenue,LEONARD CHESHIRE DISABILITY,Residential Care
Peterborough,http://opendatacommunities.org/id/unitary-authority/peterborough,Peterborough City Council,Corporate,Corporate,Capital Expenditure,04/01/2016 00:00,30057715,4338.5,Capital,InBuild,Grant Payment
Peterborough,http://opendatacommunities.org/id/unitary-authority/peterborough,Peterborough City Council,Children's & Safeguarding,Access to Resources & Specialist Commissioning,Services,04/01/2016 00:00,30057762,1963.35,Revenue,Transition Care Peterborough Ltd,Boarding Out Allowances
Peterborough,http://opendatacommunities.org/id/unitary-authority/peterborough,Peterborough City Council,Children's & Safeguarding,Access to Resources & Specialist Commissioning,Services,04/01/2016 00:00,30057768,1315.35,Revenue,Transition Care Peterborough Ltd,Boarding Out Allowances
Peterborough,http://opendatacommunities.org/id/unitary-authority/peterborough,Peterborough City Council,Amey Peterborough & Waste Management,Waste & Operational Svs Mgmt,Services,04/01/2016 00:00,30057769,258013.74,Revenue,Amey T/A Enterprise Managed Services Ltd,Third Party Payments - Contract
Peterborough,http://opendatacommunities.org/id/unitary-authority/peterborough,Peterborough City Council,Amey Peterborough & Waste Management,Waste & Operational Svs Mgmt,Services,04/01/2016 00:00,30057770,377877.42,Revenue,Amey T/A Enterprise Managed Services Ltd,Third Party Payments - Contract
Peterborough,http://opendatacommunities.org/id/unitary-authority/peterborough,Peterborough City Council,Corporate,Corporate,Capital Expenditure,04/01/2016 00:00,30057816,602.1,Capital,Mills & Reeve,Professional/Legal Fees
Peterborough,http://opendatacommunities.org/id/unitary-authority/peterborough,Peterborough City Council,Business Management and Commercial Operations,Early Years & Quality Improvement,Services,04/01/2016 00:00,30057825,11266.33,Revenue,Family Action,Grant Payment
Peterborough,http://opendatacommunities.org/id/unitary-authority/peterborough,Peterborough City Council,Corporate,Corporate,Employee Related Expenses,04/01/2016 00:00,30057826,844592.1,Balance Sheet,Teachers Pensions,Pensions
Peterborough,http://opendatacommunities.org/id/unitary-authority/peterborough,Peterborough City Council,Business Management and Commercial Operations,Early Years & Quality Improvement,Services,04/01/2016 00:00,30057827,8738.96,Revenue,First Steps Nursery (Maxey) Ltd,Grant Payment
Peterborough,http://opendatacommunities.org/id/unitary-authority/peterborough,Peterborough City Council,Business Management and Commercial Operations,Early Years & Quality Improvement,Services,04/01/2016 00:00,30057828,5359.53,Revenue,Little Angels,Grant Payment
Peterborough,http://opendatacommunities.org/id/unitary-authority/peterborough,Peterborough City Council,Business Management and Commercial Operations,Early Years & Quality Improvement,Services,04/01/2016 00:00,30057829,64691.72,Revenue,Little Stars Day Nursery,Grant Payment
Peterborough,http://opendatacommunities.org/id/unitary-authority/peterborough,Peterborough City Council,Business Management and Commercial Operations,Early Years & Quality Improvement,Services,04/01/2016 00:00,30057830,1127.12,Revenue,Kidz Hut,Grant Payment
Peterborough,http://opendatacommunities.org/id/unitary-authority/peterborough,Peterborough City Council,Business Management and Commercial Operations,Early Years & Quality Improvement,Services,04/01/2016 00:00,30057831,34029.76,Revenue,Family Action,Grant Payment
Peterborough,http://opendatacommunities.org/id/unitary-authority/peterborough,Peterborough City Council,Business Management and Commercial Operations,Early Years & Quality Improvement,Services,04/01/2016 00:00,30057832,16183.7,Revenue,Leapfrog Day Nurseries,Grant Payment
Peterborough,http://opendatacommunities.org/id/unitary-authority/peterborough,Peterborough City Council,Business Management and Commercial Operations,Early Years & Quality Improvement,Services,04/01/2016 00:00,30057834,910.8,Revenue,Redacted Personal Data,Grant Payment
Peterborough,http://opendatacommunities.org/id/unitary-authority/peterborough,Peterborough City Council,Corporate Property,Commercial Propety,Rents,04/01/2016 00:00,30057871,32735.97,Revenue,DVS Property Ltd,Rent
Peterborough,http://opendatacommunities.org/id/unitary-authority/peterborough,Peterborough City Council,Business Management and Commercial Operations,Business Management and Commercial Operations,Transport,04/01/2016 00:00,8000051325,798,Revenue,Peterborough Cars,Hired Transport
Peterborough,http://opendatacommunities.org/id/unitary-authority/peterborough,Peterborough City Council,Education,Home to School Transport,Transport,04/01/2016 00:00,8000051335,1238.8,Revenue,Peterborough Cars,Hired Transport
Peterborough,http://opendatacommunities.org/id/unitary-authority/peterborough,Peterborough City Council,Education,Home to School Transport,Transport,04/01/2016 00:00,8000051336,1377.39,Revenue,Peterborough Cars,Hired Transport
Peterborough,http://opendatacommunities.org/id/unitary-authority/peterborough,Peterborough City Council,Education,Home to School Transport,Transport,04/01/2016 00:00,8000051337,1448.79,Revenue,Peterborough Cars,Hired Transport
Peterborough,http://opendatacommunities.org/id/unitary-authority/peterborough,Peterborough City Council,Education,Home to School Transport,Transport,04/01/2016 00:00,8000051338,1881.18,Revenue,Peterborough Cars,Hired Transport
Peterborough,http://opendatacommunities.org/id/unitary-authority/peterborough,Peterborough City Council,Education,Home to School Transport,Transport,04/01/2016 00:00,8000051339,1259.79,Revenue,Peterborough Cars,Hired Transport
Peterborough,http://opendatacommunities.org/id/unitary-authority/peterborough,Peterborough City Council,Education,Home to School Transport,Transport,04/01/2016 00:00,8000051340,1638,Revenue,Peterborough Cars,Hired Transport
Peterborough,http://opendatacommunities.org/id/unitary-authority/peterborough,Peterborough City Council,Education,Home to School Transport,Transport,04/01/2016 00:00,8000051341,1527,Revenue,Peterborough Cars,Hired Transport
Peterborough,http://opendatacommunities.org/id/unitary-authority/peterborough,Peterborough City Council,Education,Home to School Transport,Transport,04/01/2016 00:00,8000051342,1512,Revenue,Peterborough Cars,Hired Transport
Peterborough,http://opendatacommunities.org/id/unitary-authority/peterborough,Peterborough City Council,Education,Home to School Transport,Transport,04/01/2016 00:00,8000051343,1217.58,Revenue,Peterborough Cars,Hired Transport
Peterborough,http://opendatacommunities.org/id/unitary-authority/peterborough,Peterborough City Council,Education,Home to School Transport,Transport,04/01/2016 00:00,8000051344,1028.58,Revenue,Peterborough Cars,Hired Transport
Peterborough,http://opendatacommunities.org/id/unitary-authority/peterborough,Peterborough City Council,Education,Home to School Transport,Transport,04/01/2016 00:00,8000051345,627.9,Revenue,Peterborough Cars,Hired Transport
Peterborough,http://opendatacommunities.org/id/unitary-authority/peterborough,Peterborough City Council,Education,Home to School Transport,Transport,04/01/2016 00:00,8000051346,713.58,Revenue,Peterborough Cars,Hired Transport
Peterborough,http://opendatacommunities.org/id/unitary-authority/peterborough,Peterborough City Council,Education,Home to School Transport,Transport,04/01/2016 00:00,8000051347,875.28,Revenue,Peterborough Cars,Hired Transport
Peterborough,http://opendatacommunities.org/id/unitary-authority/peterborough,Peterborough City Council,Education,Home to School Transport,Transport,04/01/2016 00:00,8000051348,1301.58,Revenue,Peterborough Cars,Hired Transport
Peterborough,http://opendatacommunities.org/id/unitary-authority/peterborough,Peterborough City Council,Education,Home to School Transport,Transport,04/01/2016 00:00,8000051349,1049.58,Revenue,Peterborough Cars,Hired Transport
Peterborough,http://opendatacommunities.org/id/unitary-authority/peterborough,Peterborough City Council,Education,Home to School Transport,Transport,04/01/2016 00:00,8000051350,1259.58,Revenue,Peterborough Cars,Hired Transport
Peterborough,http://opendatacommunities.org/id/unitary-authority/peterborough,Peterborough City Council,Education,Home to School Transport,Transport,04/01/2016 00:00,8000051351,1507.59,Revenue,Peterborough Cars,Hired Transport
Peterborough,http://opendatacommunities.org/id/unitary-authority/peterborough,Peterborough City Council,Education,Home to School Transport,Transport,04/01/2016 00:00,8000051646,1217.58,Revenue,Peterborough Cars,Hired Transport
Peterborough,http://opendatacommunities.org/id/unitary-authority/peterborough,Peterborough City Council,Education,Home to School Transport,Transport,04/01/2016 00:00,8000051647,759.6,Revenue,Goldstar Cabs Ltd,Hired Transport
Peterborough,http://opendatacommunities.org/id/unitary-authority/peterborough,Peterborough City Council,Education,Home to School Transport,Transport,04/01/2016 00:00,8000051651,1170,Revenue,Goldstar Cabs Ltd,Hired Transport
Peterborough,http://opendatacommunities.org/id/unitary-authority/peterborough,Peterborough City Council,Education,Home to School Transport,Transport,04/01/2016 00:00,8000051664,1236,Revenue,Goldstar Cabs Ltd,Hired Transport
Peterborough,http://opendatacommunities.org/id/unitary-authority/peterborough,Peterborough City Council,Education,Home to School Transport,Transport,04/01/2016 00:00,8000051673,1096,Revenue,Goldstar Cabs Ltd,Hired Transport
Peterborough,http://opendatacommunities.org/id/unitary-authority/peterborough,Peterborough City Council,Business Management and Commercial Operations,Early Years & Quality Improvement,Services,05/01/2016 00:00,30060196,21711.51,Revenue,Woodston Nursery,Grant Payment
Peterborough,http://opendatacommunities.org/id/unitary-authority/peterborough,Peterborough City Council,Energy,Environment Capital,Services,06/01/2016 00:00,30051186,775.66,Revenue,Global Radio Services Ltd,Advertising
Peterborough,http://opendatacommunities.org/id/unitary-authority/peterborough,Peterborough City Council,Corporate,Corporate,Capital Expenditure,06/01/2016 00:00,30051741,15184.75,Capital,Eye Parish Council,Grant Payment
Peterborough,http://opendatacommunities.org/id/unitary-authority/peterborough,Peterborough City Council,Children's & Safeguarding,Access to Resources & Specialist Commissioning,Services,06/01/2016 00:00,30052337,-12142.82,Revenue,Heathcotes M Ltd,Boarding Out Allowances
Peterborough,http://opendatacommunities.org/id/unitary-authority/peterborough,Peterborough City Council,Adults and Communities - Communities,Housing and Health,Services,06/01/2016 00:00,30054030,2312,Revenue,Allia Ltd,Special Projects
Peterborough,http://opendatacommunities.org/id/unitary-authority/peterborough,Peterborough City Council,Children's & Safeguarding,Access to Resources & Specialist Commissioning,Services,06/01/2016 00:00,30054447,15000,Revenue,Barford Children's Services,Boarding Out Allowances
Peterborough,http://opendatacommunities.org/id/unitary-authority/peterborough,Peterborough City Council,Children's & Safeguarding,Children's Social Care,Agency Staff,06/01/2016 00:00,30055464,5560.65,Revenue,Sanctuary Personnel Ltd,External Temporary Staff
Peterborough,http://opendatacommunities.org/id/unitary-authority/peterborough,Peterborough City Council,Children's & Safeguarding,Children's Social Care,Agency Staff,06/01/2016 00:00,30055509,1702,Revenue,Eden Brown Ltd,External Temporary Staff
Peterborough,http://opendatacommunities.org/id/unitary-authority/peterborough,Peterborough City Council,Children's & Safeguarding,Children's Social Care,Agency Staff,06/01/2016 00:00,30055511,1509.75,Revenue,Eden Brown Ltd,External Temporary Staff
Peterborough,http://opendatacommunities.org/id/unitary-authority/peterborough,Peterborough City Council,Corporate,Corporate,Capital Expenditure,06/01/2016 00:00,30056207,24655.67,Capital,Enterprise Managed Services Limited,Building And Site Works
Peterborough,http://opendatacommunities.org/id/unitary-authority/peterborough,Peterborough City Council,Adult Services & Communities - Adults,Day Opportunities / In House,Agency Staff,06/01/2016 00:00,30056297,1295,Revenue,Caritas Recruitment,External Temporary Staff
Peterborough,http://opendatacommunities.org/id/unitary-authority/peterborough,Peterborough City Council,Adult Services & Communities - Adults,Day Opportunities / In House,Agency Staff,06/01/2016 00:00,30056316,1242.5,Revenue,Caritas Recruitment,External Temporary Staff
Peterborough,http://opendatacommunities.org/id/unitary-authority/peterborough,Peterborough City Council,Corporate,Corporate,Capital Expenditure,06/01/2016 00:00,30056369,215879.85,Capital,Clegg Construction Ltd,Building And Site Works
Peterborough,http://opendatacommunities.org/id/unitary-authority/peterborough,Peterborough City Council,Children's & Safeguarding,Access to Resources & Specialist Commissioning,Services,06/01/2016 00:00,30056508,11000,Revenue,Redacted Personal Data,Boarding Out Allowances
Peterborough,http://opendatacommunities.org/id/unitary-authority/peterborough,Peterborough City Council,Education,Service Director Education,Services,06/01/2016 00:00,30056518,3513.33,Revenue,Holiday Inn Peterborough West,Conferences/Events
Peterborough,http://opendatacommunities.org/id/unitary-authority/peterborough,Peterborough City Council,Financial Services,Insurance,Repair & Maintenance of Buildings,06/01/2016 00:00,30056519,575.76,Revenue,Vivacity Culture and Leisure,Insurance Claims
Peterborough,http://opendatacommunities.org/id/unitary-authority/peterborough,Peterborough City Council,Adult Services & Communities - Adults,Independent Sector Placements,Services,06/01/2016 00:00,30056564,1507.74,Revenue,BUPA Care Homes,Residential Care
Peterborough,http://opendatacommunities.org/id/unitary-authority/peterborough,Peterborough City Council,Children's & Safeguarding,Children's Social Care,Agency Staff,06/01/2016 00:00,30056928,1400,Revenue,Medicare First,External Temporary Staff
Peterborough,http://opendatacommunities.org/id/unitary-authority/peterborough,Peterborough City Council,Adult Services & Communities - Adults,Independent Sector Placements,Services,06/01/2016 00:00,30056931,1235.23,Revenue,ABOUT ME CARE AND SUPPORT LTD,Home Care
Peterborough,http://opendatacommunities.org/id/unitary-authority/peterborough,Peterborough City Council,Adult Services & Communities - Adults,Independent Sector Placements,Services,06/01/2016 00:00,30056932,577.28,Revenue,ABOUT ME CARE AND SUPPORT LTD,Home Care
Peterborough,http://opendatacommunities.org/id/unitary-authority/peterborough,Peterborough City Council,Adult Services & Communities - Adults,Independent Sector Placements,Services,06/01/2016 00:00,30056933,881.58,Revenue,ABOUT ME CARE AND SUPPORT LTD,Home Care
Peterborough,http://opendatacommunities.org/id/unitary-authority/peterborough,Peterborough City Council,Adult Services & Communities - Adults,Independent Sector Placements,Services,06/01/2016 00:00,30056935,1857.15,Revenue,ABOUT ME CARE AND SUPPORT LTD,Home Care
Peterborough,http://opendatacommunities.org/id/unitary-authority/peterborough,Peterborough City Council,Adult Services & Communities - Adults,Independent Sector Placements,Services,06/01/2016 00:00,30056936,1185.88,Revenue,ABOUT ME CARE AND SUPPORT LTD,Home Care
Peterborough,http://opendatacommunities.org/id/unitary-authority/peterborough,Peterborough City Council,Adult Services & Communities - Adults,Independent Sector Placements,Services,06/01/2016 00:00,30056938,859.2,Revenue,ABOUT ME CARE AND SUPPORT LTD,Home Care
Peterborough,http://opendatacommunities.org/id/unitary-authority/peterborough,Peterborough City Council,Adult Services & Communities - Adults,Independent Sector Placements,Services,06/01/2016 00:00,30056940,1074,Revenue,ABOUT ME CARE AND SUPPORT LTD,Home Care
Peterborough,http://opendatacommunities.org/id/unitary-authority/peterborough,Peterborough City Council,Adult Services & Communities - Adults,Independent Sector Placements,Services,06/01/2016 00:00,30056941,2054.03,Revenue,ABOUT ME CARE AND SUPPORT LTD,Home Care
Peterborough,http://opendatacommunities.org/id/unitary-authority/peterborough,Peterborough City Council,Adult Services & Communities - Adults,Independent Sector Placements,Services,06/01/2016 00:00,30056961,1082.97,Revenue,ABOUT ME CARE AND SUPPORT LTD,Home Care
Peterborough,http://opendatacommunities.org/id/unitary-authority/peterborough,Peterborough City Council,Adult Services & Communities - Adults,Independent Sector Placements,Services,06/01/2016 00:00,30056963,1798.96,Revenue,ABOUT ME CARE AND SUPPORT LTD,Home Care
Peterborough,http://opendatacommunities.org/id/unitary-authority/peterborough,Peterborough City Council,Adult Services & Communities - Adults,Independent Sector Placements,Services,06/01/2016 00:00,30056965,2103.25,Revenue,ABOUT ME CARE AND SUPPORT LTD,Home Care
Peterborough,http://opendatacommunities.org/id/unitary-authority/peterborough,Peterborough City Council,Adult Services & Communities - Adults,Independent Sector Placements,Services,06/01/2016 00:00,30056994,1767.64,Revenue,Barchester Healthcare (Werrington Lodge),Residential Care
Peterborough,http://opendatacommunities.org/id/unitary-authority/peterborough,Peterborough City Council,Adult Services & Communities - Adults,Independent Sector Placements,Services,06/01/2016 00:00,30056995,1623.72,Revenue,Barchester Healthcare (Werrington Lodge),Residential Care
Peterborough,http://opendatacommunities.org/id/unitary-authority/peterborough,Peterborough City Council,Adult Services & Communities - Adults,Independent Sector Placements,Services,06/01/2016 00:00,30056996,1627.72,Revenue,Barchester Healthcare (Werrington Lodge),Residential Care
Peterborough,http://opendatacommunities.org/id/unitary-authority/peterborough,Peterborough City Council,Adult Services & Communities - Adults,Independent Sector Placements,Services,06/01/2016 00:00,30056997,1265.12,Revenue,Barchester Healthcare (Werrington Lodge),Residential Care
Peterborough,http://opendatacommunities.org/id/unitary-authority/peterborough,Peterborough City Council,Adult Services & Communities - Adults,Independent Sector Placements,Services,06/01/2016 00:00,30056998,1639.72,Revenue,Barchester Healthcare (Werrington Lodge),Residential Care
Peterborough,http://opendatacommunities.org/id/unitary-authority/peterborough,Peterborough City Council,Adult Services & Communities - Adults,Independent Sector Placements,Services,06/01/2016 00:00,30056999,1663.72,Revenue,Barchester Healthcare (Werrington Lodge),Residential Care
Peterborough,http://opendatacommunities.org/id/unitary-authority/peterborough,Peterborough City Council,Adult Services & Communities - Adults,Independent Sector Placements,Services,06/01/2016 00:00,30057000,1555.84,Revenue,Barchester Healthcare (Werrington Lodge),Residential Care
Peterborough,http://opendatacommunities.org/id/unitary-authority/peterborough,Peterborough City Council,Adult Services & Communities - Adults,Independent Sector Placements,Services,06/01/2016 00:00,30057001,1623.72,Revenue,Barchester Healthcare (Werrington Lodge),Residential Care
Peterborough,http://opendatacommunities.org/id/unitary-authority/peterborough,Peterborough City Council,Adult Services & Communities - Adults,Independent Sector Placements,Services,06/01/2016 00:00,30057002,1609.72,Revenue,Barchester Healthcare (Werrington Lodge),Residential Care
Peterborough,http://opendatacommunities.org/id/unitary-authority/peterborough,Peterborough City Council,Adult Services & Communities - Adults,Independent Sector Placements,Services,06/01/2016 00:00,30057003,1429.72,Revenue,Barchester Healthcare (Werrington Lodge),Residential Care
Peterborough,http://opendatacommunities.org/id/unitary-authority/peterborough,Peterborough City Council,Adult Services & Communities - Adults,Independent Sector Placements,Services,06/01/2016 00:00,30057004,2128.92,Revenue,Barchester Healthcare (Werrington Lodge),Residential Care
Peterborough,http://opendatacommunities.org/id/unitary-authority/peterborough,Peterborough City Council,Adult Services & Communities - Adults,Independent Sector Placements,Services,06/01/2016 00:00,30057005,643,Revenue,Barchester Healthcare (Werrington Lodge),Residential Care
Peterborough,http://opendatacommunities.org/id/unitary-authority/peterborough,Peterborough City Council,Adult Services & Communities - Adults,Independent Sector Placements,Services,06/01/2016 00:00,30057006,2128.92,Revenue,Barchester Healthcare (Werrington Lodge),Residential Care
Peterborough,http://opendatacommunities.org/id/unitary-authority/peterborough,Peterborough City Council,Adult Services & Communities - Adults,Independent Sector Placements,Services,06/01/2016 00:00,30057007,1515.56,Revenue,Barchester Healthcare (Werrington Lodge),Residential Care
Peterborough,http://opendatacommunities.org/id/unitary-authority/peterborough,Peterborough City Council,Adult Services & Communities - Adults,Independent Sector Placements,Services,06/01/2016 00:00,30057008,1474.08,Revenue,Barchester Healthcare (Werrington Lodge),Residential Care
Peterborough,http://opendatacommunities.org/id/unitary-authority/peterborough,Peterborough City Council,Adult Services & Communities - Adults,Independent Sector Placements,Services,06/01/2016 00:00,30057013,1953.8,Revenue,Barchester Healthcare (Werrington Lodge),Residential Care
Peterborough,http://opendatacommunities.org/id/unitary-authority/peterborough,Peterborough City Council,Adult Services & Communities - Adults,Independent Sector Placements,Services,06/01/2016 00:00,30057014,1022.96,Revenue,Barchester Healthcare (Werrington Lodge),Residential Care
Peterborough,http://opendatacommunities.org/id/unitary-authority/peterborough,Peterborough City Council,Adult Services & Communities - Adults,Independent Sector Placements,Services,06/01/2016 00:00,30057016,1623.72,Revenue,Barchester Healthcare (Werrington Lodge),Residential Care
Peterborough,http://opendatacommunities.org/id/unitary-authority/peterborough,Peterborough City Council,Adult Services & Communities - Adults,Independent Sector Placements,Services,06/01/2016 00:00,30057018,1623.72,Revenue,Barchester Healthcare (Werrington Lodge),Residential Care
Peterborough,http://opendatacommunities.org/id/unitary-authority/peterborough,Peterborough City Council,Adult Services & Communities - Adults,Day Opportunities / In House,Agency Staff,06/01/2016 00:00,30057036,1250,Revenue,Sanctuary Personnel Ltd,External Temporary Staff
Peterborough,http://opendatacommunities.org/id/unitary-authority/peterborough,Peterborough City Council,Corporate,Corporate,Capital Expenditure,06/01/2016 00:00,30057096,1541692.02,Capital,Carillion Building,Building And Site Works
Peterborough,http://opendatacommunities.org/id/unitary-authority/peterborough,Peterborough City Council,Children's & Safeguarding,Access to Resources & Specialist Commissioning,Services,06/01/2016 00:00,30057262,3620.8,Revenue,Archway Care Ltd,Boarding Out Allowances
Peterborough,http://opendatacommunities.org/id/unitary-authority/peterborough,Peterborough City Council,Children's & Safeguarding,Access to Resources & Specialist Commissioning,Services,06/01/2016 00:00,30057263,3620.8,Revenue,Archway Care Ltd,Boarding Out Allowances
Peterborough,http://opendatacommunities.org/id/unitary-authority/peterborough,Peterborough City Council,Children's & Safeguarding,Access to Resources & Specialist Commissioning,Services,06/01/2016 00:00,30057267,3620.8,Revenue,Archway Care Ltd,Boarding Out Allowances
Peterborough,http://opendatacommunities.org/id/unitary-authority/peterborough,Peterborough City Council,Adult Services & Communities - Adults,Independent Sector Placements,Services,06/01/2016 00:00,30057276,-5539.2,Revenue,SOCIAL CARE SOLUTIONS LTD,Home Care
Peterborough,http://opendatacommunities.org/id/unitary-authority/peterborough,Peterborough City Council,Adult Services & Communities - Adults,Independent Sector Placements,Services,06/01/2016 00:00,30057277,-1242.5,Revenue,SOCIAL CARE SOLUTIONS LTD,Home Care
Peterborough,http://opendatacommunities.org/id/unitary-authority/peterborough,Peterborough City Council,Adult Services & Communities - Adults,Independent Sector Placements,Services,06/01/2016 00:00,30057279,5859.84,Revenue,SOCIAL CARE SOLUTIONS LTD,Home Care
Peterborough,http://opendatacommunities.org/id/unitary-authority/peterborough,Peterborough City Council,Adult Services & Communities - Adults,Independent Sector Placements,Services,06/01/2016 00:00,30057280,720,Revenue,SOCIAL CARE SOLUTIONS LTD,Home Care
Peterborough,http://opendatacommunities.org/id/unitary-authority/peterborough,Peterborough City Council,Adult Services & Communities - Adults,Day Opportunities / In House,Agency Staff,06/01/2016 00:00,30057407,1076.25,Revenue,Caritas Recruitment,External Temporary Staff
Peterborough,http://opendatacommunities.org/id/unitary-authority/peterborough,Peterborough City Council,Adult Services & Communities - Adults,Day Opportunities / In House,Agency Staff,06/01/2016 00:00,30057408,1183.3,Revenue,Caritas Recruitment,External Temporary Staff
Peterborough,http://opendatacommunities.org/id/unitary-authority/peterborough,Peterborough City Council,Adult Services & Communities - Adults,Day Opportunities / In House,Agency Staff,06/01/2016 00:00,30057422,1076.25,Revenue,Caritas Recruitment,External Temporary Staff
Peterborough,http://opendatacommunities.org/id/unitary-authority/peterborough,Peterborough City Council,Corporate,Corporate,Services,06/01/2016 00:00,30057469,2777.1,Balance Sheet,Fieldwork Admin Team (IMPREST),Appointeeship - Client Monies
Peterborough,http://opendatacommunities.org/id/unitary-authority/peterborough,Peterborough City Council,Adults and Communities - Communities,Service Director - Adults & Communities,Services,06/01/2016 00:00,30057576,10905.4,Revenue,Athene Communications,Contributions
Peterborough,http://opendatacommunities.org/id/unitary-authority/peterborough,Peterborough City Council,Children's & Safeguarding,Child Health,"Tools, Equipment, Furniture & Materials",06/01/2016 00:00,30057577,751.42,Revenue,Action on Hearing Loss,Occupational Therapy Equipment
Peterborough,http://opendatacommunities.org/id/unitary-authority/peterborough,Peterborough City Council,Children's & Safeguarding,Child Health,"Tools, Equipment, Furniture & Materials",06/01/2016 00:00,30057578,620.94,Revenue,Action on Hearing Loss,Occupational Therapy Equipment
Peterborough,http://opendatacommunities.org/id/unitary-authority/peterborough,Peterborough City Council,Children's & Safeguarding,Child Health,"Tools, Equipment, Furniture & Materials",06/01/2016 00:00,30057579,514.9,Revenue,Action on Hearing Loss,Occupational Therapy Equipment
Peterborough,http://opendatacommunities.org/id/unitary-authority/peterborough,Peterborough City Council,Education,School Improvement,Interview & Training Expenses,06/01/2016 00:00,30057603,825,Revenue,Edge Hill University,Training
Peterborough,http://opendatacommunities.org/id/unitary-authority/peterborough,Peterborough City Council,Children's & Safeguarding,Children's Social Care,Agency Staff,06/01/2016 00:00,30057724,1315.55,Revenue,Service Care Solutions Ltd,External Temporary Staff
Peterborough,http://opendatacommunities.org/id/unitary-authority/peterborough,Peterborough City Council,Children's & Safeguarding,Children's Social Care,Agency Staff,06/01/2016 00:00,30057725,1315.55,Revenue,Service Care Solutions Ltd,External Temporary Staff
Peterborough,http://opendatacommunities.org/id/unitary-authority/peterborough,Peterborough City Council,Children's & Safeguarding,Children's Social Care,Agency Staff,06/01/2016 00:00,30057726,1315.55,Revenue,Service Care Solutions Ltd,External Temporary Staff
Peterborough,http://opendatacommunities.org/id/unitary-authority/peterborough,Peterborough City Council,Children's & Safeguarding,Children's Social Care,Agency Staff,06/01/2016 00:00,30057727,1315.55,Revenue,Service Care Solutions Ltd,External Temporary Staff
Peterborough,http://opendatacommunities.org/id/unitary-authority/peterborough,Peterborough City Council,Children's & Safeguarding,Children's Social Care,Agency Staff,06/01/2016 00:00,30057729,1315.55,Revenue,Service Care Solutions Ltd,External Temporary Staff
Peterborough,http://opendatacommunities.org/id/unitary-authority/peterborough,Peterborough City Council,Adults and Communities - Communities,Early Help ASC/CSC,Agency Staff,06/01/2016 00:00,30057730,925,Revenue,Service Care Solutions Ltd,External Temporary Staff
Peterborough,http://opendatacommunities.org/id/unitary-authority/peterborough,Peterborough City Council,Adult Services & Communities - Adults,Independent Sector Placements,Services,06/01/2016 00:00,30057735,1608.89,Revenue,Hales Group Ltd,Home Care
Peterborough,http://opendatacommunities.org/id/unitary-authority/peterborough,Peterborough City Council,Adult Services & Communities - Adults,Independent Sector Placements,Services,06/01/2016 00:00,30057737,1821.88,Revenue,Avery House (Peterborough) t/a Brighterkind,Residential Care
Peterborough,http://opendatacommunities.org/id/unitary-authority/peterborough,Peterborough City Council,Adult Services & Communities - Adults,Independent Sector Placements,Services,06/01/2016 00:00,30057739,11100,Revenue,Brookdale Care,Residential Care
Peterborough,http://opendatacommunities.org/id/unitary-authority/peterborough,Peterborough City Council,Adult Services & Communities - Adults,Independent Sector Placements,Services,06/01/2016 00:00,30057741,525,Revenue,Midco Care Limited,Home Care
Peterborough,http://opendatacommunities.org/id/unitary-authority/peterborough,Peterborough City Council,Adult Services & Communities - Adults,Independent Sector Placements,Services,06/01/2016 00:00,30057745,11470,Revenue,Brookdale Care,Residential Care
Peterborough,http://opendatacommunities.org/id/unitary-authority/peterborough,Peterborough City Council,Adult Services & Communities - Adults,Independent Sector Placements,Services,06/01/2016 00:00,30057748,6354.32,Revenue,Home From Home Care,Residential Care
Peterborough,http://opendatacommunities.org/id/unitary-authority/peterborough,Peterborough City Council,Adult Services & Communities - Adults,Independent Sector Placements,Services,06/01/2016 00:00,30057750,945,Revenue,Midco Care Limited,Home Care
Peterborough,http://opendatacommunities.org/id/unitary-authority/peterborough,Peterborough City Council,Adult Services & Communities - Adults,Independent Sector Placements,Services,06/01/2016 00:00,30057751,7004.04,Revenue,Home From Home Care,Residential Care
Peterborough,http://opendatacommunities.org/id/unitary-authority/peterborough,Peterborough City Council,Adult Services & Communities - Adults,Independent Sector Placements,Services,06/01/2016 00:00,30057752,8328.92,Revenue,Home From Home Care,Residential Care
Peterborough,http://opendatacommunities.org/id/unitary-authority/peterborough,Peterborough City Council,Adult Services & Communities - Adults,Independent Sector Placements,Services,06/01/2016 00:00,30057754,7816.04,Revenue,Home From Home Care,Residential Care
Peterborough,http://opendatacommunities.org/id/unitary-authority/peterborough,Peterborough City Council,Adult Services & Communities - Adults,Independent Sector Placements,Services,06/01/2016 00:00,30057757,2983.2,Revenue,SOCIAL CARE SOLUTIONS LTD,Home Care
Peterborough,http://opendatacommunities.org/id/unitary-authority/peterborough,Peterborough City Council,Adult Services & Communities - Adults,Independent Sector Placements,Services,06/01/2016 00:00,30057760,1123.56,Revenue,Sanctuary Care Limited,Residential Care
Peterborough,http://opendatacommunities.org/id/unitary-authority/peterborough,Peterborough City Council,Adult Services & Communities - Adults,Independent Sector Placements,Services,06/01/2016 00:00,30057763,1636.02,Revenue,K2 CARE LTD,Home Care
Peterborough,http://opendatacommunities.org/id/unitary-authority/peterborough,Peterborough City Council,Adult Services & Communities - Adults,Independent Sector Placements,Services,06/01/2016 00:00,30057772,2053.75,Revenue,Thera East Anglia,Day Care
Peterborough,http://opendatacommunities.org/id/unitary-authority/peterborough,Peterborough City Council,Adult Services & Communities - Adults,Independent Sector Placements,Services,06/01/2016 00:00,30057775,2361.16,Revenue,Thera East Anglia,Day Care
Peterborough,http://opendatacommunities.org/id/unitary-authority/peterborough,Peterborough City Council,Adult Services & Communities - Adults,Independent Sector Placements,Services,06/01/2016 00:00,30057777,1117.29,Revenue,Thera East Anglia,Day Care
Peterborough,http://opendatacommunities.org/id/unitary-authority/peterborough,Peterborough City Council,Adult Services & Communities - Adults,Independent Sector Placements,Services,06/01/2016 00:00,30057781,645.84,Revenue,Thera East Anglia,Day Care
Peterborough,http://opendatacommunities.org/id/unitary-authority/peterborough,Peterborough City Council,Adult Services & Communities - Adults,Independent Sector Placements,Services,06/01/2016 00:00,30057785,614.84,Revenue,Thera East Anglia,Day Care
Peterborough,http://opendatacommunities.org/id/unitary-authority/peterborough,Peterborough City Council,Adult Services & Communities - Adults,Independent Sector Placements,Services,06/01/2016 00:00,30057786,807.29,Revenue,Thera East Anglia,Day Care
Peterborough,http://opendatacommunities.org/id/unitary-authority/peterborough,Peterborough City Council,Adult Services & Communities - Adults,Independent Sector Placements,Services,06/01/2016 00:00,30057787,690,Revenue,Midco Care Limited,Home Care
Peterborough,http://opendatacommunities.org/id/unitary-authority/peterborough,Peterborough City Council,Adult Services & Communities - Adults,Independent Sector Placements,Services,06/01/2016 00:00,30057788,716.88,Revenue,Thera East Anglia,Day Care
Peterborough,http://opendatacommunities.org/id/unitary-authority/peterborough,Peterborough City Council,Adult Services & Communities - Adults,Independent Sector Placements,Services,06/01/2016 00:00,30057790,806,Revenue,Thera East Anglia,Day Care
Peterborough,http://opendatacommunities.org/id/unitary-authority/peterborough,Peterborough City Council,Adult Services & Communities - Adults,Independent Sector Placements,Services,06/01/2016 00:00,30057793,614.84,Revenue,Thera East Anglia,Day Care
Peterborough,http://opendatacommunities.org/id/unitary-authority/peterborough,Peterborough City Council,Adult Services & Communities - Adults,Independent Sector Placements,Services,06/01/2016 00:00,30057794,718.16,Revenue,Thera East Anglia,Day Care
Peterborough,http://opendatacommunities.org/id/unitary-authority/peterborough,Peterborough City Council,Adult Services & Communities - Adults,Independent Sector Placements,Services,06/01/2016 00:00,30057795,992,Revenue,Thera East Anglia,Day Care
Peterborough,http://opendatacommunities.org/id/unitary-authority/peterborough,Peterborough City Council,Adult Services & Communities - Adults,Independent Sector Placements,Services,06/01/2016 00:00,30057796,1860,Revenue,Thera East Anglia,Day Care
Peterborough,http://opendatacommunities.org/id/unitary-authority/peterborough,Peterborough City Council,Adult Services & Communities - Adults,Independent Sector Placements,Services,06/01/2016 00:00,30057798,1415.64,Revenue,Thera East Anglia,Day Care
Peterborough,http://opendatacommunities.org/id/unitary-authority/peterborough,Peterborough City Council,Adult Services & Communities - Adults,Independent Sector Placements,Services,06/01/2016 00:00,30057799,1875,Revenue,Midco Care Limited,Home Care
Peterborough,http://opendatacommunities.org/id/unitary-authority/peterborough,Peterborough City Council,Adult Services & Communities - Adults,Independent Sector Placements,Services,06/01/2016 00:00,30057801,590.29,Revenue,Thera East Anglia,Day Care
Peterborough,http://opendatacommunities.org/id/unitary-authority/peterborough,Peterborough City Council,Adult Services & Communities - Adults,Independent Sector Placements,Services,06/01/2016 00:00,30057802,1890,Revenue,Midco Care Limited,Home Care
Peterborough,http://opendatacommunities.org/id/unitary-authority/peterborough,Peterborough City Council,Adult Services & Communities - Adults,Independent Sector Placements,Services,06/01/2016 00:00,30057804,769.84,Revenue,Thera East Anglia,Day Care
Peterborough,http://opendatacommunities.org/id/unitary-authority/peterborough,Peterborough City Council,Adult Services & Communities - Adults,Independent Sector Placements,Services,06/01/2016 00:00,30057809,2053.75,Revenue,Thera East Anglia,Day Care
Peterborough,http://opendatacommunities.org/id/unitary-authority/peterborough,Peterborough City Council,Adult Services & Communities - Adults,Independent Sector Placements,Services,06/01/2016 00:00,30057811,1890,Revenue,Midco Care Limited,Home Care
Peterborough,http://opendatacommunities.org/id/unitary-authority/peterborough,Peterborough City Council,Adult Services & Communities - Adults,Independent Sector Placements,Services,06/01/2016 00:00,30057812,807.29,Revenue,Thera East Anglia,Day Care
Peterborough,http://opendatacommunities.org/id/unitary-authority/peterborough,Peterborough City Council,Adult Services & Communities - Adults,Independent Sector Placements,Services,06/01/2016 00:00,30057813,3100,Revenue,Thera East Anglia,Day Care
Peterborough,http://opendatacommunities.org/id/unitary-authority/peterborough,Peterborough City Council,Adult Services & Communities - Adults,Independent Sector Placements,Services,06/01/2016 00:00,30057814,716.88,Revenue,Thera East Anglia,Day Care
Peterborough,http://opendatacommunities.org/id/unitary-authority/peterborough,Peterborough City Council,Adult Services & Communities - Adults,Independent Sector Placements,Services,06/01/2016 00:00,30057815,807.29,Revenue,Thera East Anglia,Day Care
Peterborough,http://opendatacommunities.org/id/unitary-authority/peterborough,Peterborough City Council,Corporate,Corporate,Capital Expenditure,06/01/2016 00:00,30057818,76805.6,Capital,Mears Ltd,Building And Site Works
Peterborough,http://opendatacommunities.org/id/unitary-authority/peterborough,Peterborough City Council,Adult Services & Communities - Adults,Independent Sector Placements,Services,06/01/2016 00:00,30057820,540,Revenue,Midco Care Limited,Home Care
Peterborough,http://opendatacommunities.org/id/unitary-authority/peterborough,Peterborough City Council,Adult Services & Communities - Adults,Independent Sector Placements,Services,06/01/2016 00:00,30057835,1458.75,Revenue,Midco Care Limited,Home Care
Peterborough,http://opendatacommunities.org/id/unitary-authority/peterborough,Peterborough City Council,Adult Services & Communities - Adults,Independent Sector Placements,Services,06/01/2016 00:00,30057836,840,Revenue,Midco Care Limited,Home Care
Peterborough,http://opendatacommunities.org/id/unitary-authority/peterborough,Peterborough City Council,Adult Services & Communities - Adults,Independent Sector Placements,Services,06/01/2016 00:00,30057841,637.5,Revenue,Midco Care Limited,Home Care
Peterborough,http://opendatacommunities.org/id/unitary-authority/peterborough,Peterborough City Council,Legal & Democratic,Legal Services,Services,06/01/2016 00:00,30057845,752.5,Revenue,"Collins, Mr Peter",Legal Costs
Peterborough,http://opendatacommunities.org/id/unitary-authority/peterborough,Peterborough City Council,Business Management and Commercial Operations,Early Years & Quality Improvement,Services,06/01/2016 00:00,30057849,16588.6,Revenue,Alpha Big Sky Ltd,Grant Payment
Peterborough,http://opendatacommunities.org/id/unitary-authority/peterborough,Peterborough City Council,Business Management and Commercial Operations,Early Years & Quality Improvement,Services,06/01/2016 00:00,30057850,1782.82,Revenue,Redacted Personal Data,Grant Payment
Peterborough,http://opendatacommunities.org/id/unitary-authority/peterborough,Peterborough City Council,Business Management and Commercial Operations,Early Years & Quality Improvement,Services,06/01/2016 00:00,30057851,39380.72,Revenue,Acorn Academy Day Nursery,Grant Payment
Peterborough,http://opendatacommunities.org/id/unitary-authority/peterborough,Peterborough City Council,Business Management and Commercial Operations,Early Years & Quality Improvement,Services,06/01/2016 00:00,30057852,1744.05,Revenue,Redacted Personal Data,Grant Payment
Peterborough,http://opendatacommunities.org/id/unitary-authority/peterborough,Peterborough City Council,Business Management and Commercial Operations,Early Years & Quality Improvement,Services,06/01/2016 00:00,30057857,5061,Revenue,Happy Days Playgroup,Grant Payment
Peterborough,http://opendatacommunities.org/id/unitary-authority/peterborough,Peterborough City Council,Business Management and Commercial Operations,Early Years & Quality Improvement,Services,06/01/2016 00:00,30057858,38798,Revenue,Kiddi Caru Day Nursery,Grant Payment
Peterborough,http://opendatacommunities.org/id/unitary-authority/peterborough,Peterborough City Council,Legal & Democratic,Legal Services,Services,06/01/2016 00:00,30057861,1200,Revenue,"Wilce, Miss Charlotte",Legal Costs
Peterborough,http://opendatacommunities.org/id/unitary-authority/peterborough,Peterborough City Council,Business Management and Commercial Operations,Early Years & Quality Improvement,Services,06/01/2016 00:00,30057865,4081.52,Revenue,Acorn Academy Day Nursery,Grant Payment
Peterborough,http://opendatacommunities.org/id/unitary-authority/peterborough,Peterborough City Council,Legal & Democratic,Elections,Services,06/01/2016 00:00,30057867,39658.02,Revenue,Huntingdonshire District Council,Hired Services
Peterborough,http://opendatacommunities.org/id/unitary-authority/peterborough,Peterborough City Council,Legal & Democratic,Legal Services,Services,06/01/2016 00:00,30057870,600,Revenue,"Wilce, Miss Charlotte",Legal Costs
Peterborough,http://opendatacommunities.org/id/unitary-authority/peterborough,Peterborough City Council,Corporate,Corporate,Capital Expenditure,06/01/2016 00:00,30057872,4888.78,Capital,Trevor Benton Construction Ltd,Grant Payment
Peterborough,http://opendatacommunities.org/id/unitary-authority/peterborough,Peterborough City Council,Business Management and Commercial Operations,Early Years & Quality Improvement,Services,06/01/2016 00:00,30057876,3071.25,Revenue,Husaini Pre-School,Grant Payment
Peterborough,http://opendatacommunities.org/id/unitary-authority/peterborough,Peterborough City Council,Business Management and Commercial Operations,Early Years & Quality Improvement,Services,06/01/2016 00:00,30057877,1628.44,Revenue,Herlington Pre-School,Grant Payment
Peterborough,http://opendatacommunities.org/id/unitary-authority/peterborough,Peterborough City Council,Legal & Democratic,Legal Services,Services,06/01/2016 00:00,30057879,950,Revenue,"Hunt, Miss Alison",Legal Costs
Peterborough,http://opendatacommunities.org/id/unitary-authority/peterborough,Peterborough City Council,Business Management and Commercial Operations,Early Years & Quality Improvement,Services,06/01/2016 00:00,30057880,2231.48,Revenue,ZigZag Day Nursery Ltd,Grant Payment
Peterborough,http://opendatacommunities.org/id/unitary-authority/peterborough,Peterborough City Council,Business Management and Commercial Operations,Early Years & Quality Improvement,Services,06/01/2016 00:00,30057881,1782.67,Revenue,Happy Days Playgroup,Grant Payment
Peterborough,http://opendatacommunities.org/id/unitary-authority/peterborough,Peterborough City Council,Business Management and Commercial Operations,Early Years & Quality Improvement,Services,06/01/2016 00:00,30057883,1648.07,Revenue,Family Action,Grant Payment
Peterborough,http://opendatacommunities.org/id/unitary-authority/peterborough,Peterborough City Council,Business Management and Commercial Operations,Early Years & Quality Improvement,Services,06/01/2016 00:00,30057886,1420.05,Revenue,Leapfrog Day Nurseries,Grant Payment
Peterborough,http://opendatacommunities.org/id/unitary-authority/peterborough,Peterborough City Council,Adult Services & Communities - Adults,Independent Sector Placements,Services,06/01/2016 00:00,30057887,6133.88,Revenue,LEONARD CHESHIRE DISABILITY,Residential Care
Peterborough,http://opendatacommunities.org/id/unitary-authority/peterborough,Peterborough City Council,Adult Services & Communities - Adults,Independent Sector Placements,Services,06/01/2016 00:00,30057888,630,Revenue,Midco Care Limited,Home Care
Peterborough,http://opendatacommunities.org/id/unitary-authority/peterborough,Peterborough City Council,Business Management and Commercial Operations,Early Years & Quality Improvement,Services,06/01/2016 00:00,30057889,2535.9,Revenue,Little Stars Day Nursery,Grant Payment
Peterborough,http://opendatacommunities.org/id/unitary-authority/peterborough,Peterborough City Council,Business Management and Commercial Operations,Early Years & Quality Improvement,Services,06/01/2016 00:00,30057890,9026.92,Revenue,Smart Start Nursery Peterborough Ltd,Grant Payment
Peterborough,http://opendatacommunities.org/id/unitary-authority/peterborough,Peterborough City Council,Adult Services & Communities - Adults,Independent Sector Placements,Services,06/01/2016 00:00,30057893,600.24,Revenue,Avery House (Peterborough) t/a Brighterkind,Residential Care
Peterborough,http://opendatacommunities.org/id/unitary-authority/peterborough,Peterborough City Council,Business Management and Commercial Operations,Early Years & Quality Improvement,Services,06/01/2016 00:00,30057894,1413.3,Revenue,The Day Nursery Peterborough Ltd,Grant Payment
Peterborough,http://opendatacommunities.org/id/unitary-authority/peterborough,Peterborough City Council,Adult Services & Communities - Adults,Independent Sector Placements,Services,06/01/2016 00:00,30057895,962.56,Revenue,Avery House (Peterborough) t/a Brighterkind,Residential Care
Peterborough,http://opendatacommunities.org/id/unitary-authority/peterborough,Peterborough City Council,Adult Services & Communities - Adults,Independent Sector Placements,Services,06/01/2016 00:00,30057896,990.64,Revenue,Avery House (Peterborough) t/a Brighterkind,Residential Care
Peterborough,http://opendatacommunities.org/id/unitary-authority/peterborough,Peterborough City Council,Adult Services & Communities - Adults,Independent Sector Placements,Services,06/01/2016 00:00,30057897,2799.4,Revenue,"ATCHISON, MR ALAN",Residential Care
Peterborough,http://opendatacommunities.org/id/unitary-authority/peterborough,Peterborough City Council,Business Management and Commercial Operations,Early Years & Quality Improvement,Services,06/01/2016 00:00,30057898,3183.25,Revenue,Winyates Pre School,Grant Payment
Peterborough,http://opendatacommunities.org/id/unitary-authority/peterborough,Peterborough City Council,Adult Services & Communities - Adults,Independent Sector Placements,Services,06/01/2016 00:00,30057899,1193.08,Revenue,Avery House (Peterborough) t/a Brighterkind,Residential Care
Peterborough,http://opendatacommunities.org/id/unitary-authority/peterborough,Peterborough City Council,Business Management and Commercial Operations,Early Years & Quality Improvement,Services,06/01/2016 00:00,30057900,1241.45,Revenue,Anna-Ca-Soo Day Nursery,Grant Payment
Peterborough,http://opendatacommunities.org/id/unitary-authority/peterborough,Peterborough City Council,Adult Services & Communities - Adults,Independent Sector Placements,Services,06/01/2016 00:00,30057901,1616.72,Revenue,"ATCHISON, MR ALAN",Residential Care
Peterborough,http://opendatacommunities.org/id/unitary-authority/peterborough,Peterborough City Council,Adult Services & Communities - Adults,Independent Sector Placements,Services,06/01/2016 00:00,30057902,3114.44,Revenue,"ATCHISON, MR ALAN",Residential Care
Peterborough,http://opendatacommunities.org/id/unitary-authority/peterborough,Peterborough City Council,Adult Services & Communities - Adults,Independent Sector Placements,Services,06/01/2016 00:00,30057903,2023.4,Revenue,"ATCHISON, MR ALAN",Residential Care
Peterborough,http://opendatacommunities.org/id/unitary-authority/peterborough,Peterborough City Council,Business Management and Commercial Operations,Early Years & Quality Improvement,Services,06/01/2016 00:00,30057904,948.95,Revenue,West Town Playgroup,Grant Payment
Peterborough,http://opendatacommunities.org/id/unitary-authority/peterborough,Peterborough City Council,Adult Services & Communities - Adults,Independent Sector Placements,Services,06/01/2016 00:00,30057905,2162.24,Revenue,"ATCHISON, MR ALAN",Residential Care
Peterborough,http://opendatacommunities.org/id/unitary-authority/peterborough,Peterborough City Council,Business Management and Commercial Operations,Early Years & Quality Improvement,Services,06/01/2016 00:00,30057906,1217.6,Revenue,Millfield Pre-School,Grant Payment
Peterborough,http://opendatacommunities.org/id/unitary-authority/peterborough,Peterborough City Council,Adult Services & Communities - Adults,Independent Sector Placements,Services,06/01/2016 00:00,30057907,1814.96,Revenue,"ATCHISON, MR ALAN",Residential Care
Peterborough,http://opendatacommunities.org/id/unitary-authority/peterborough,Peterborough City Council,Adult Services & Communities - Adults,Independent Sector Placements,Services,06/01/2016 00:00,30057908,660,Revenue,"ATCHISON, MR ALAN",Residential Care
Peterborough,http://opendatacommunities.org/id/unitary-authority/peterborough,Peterborough City Council,Business Management and Commercial Operations,Early Years & Quality Improvement,Services,06/01/2016 00:00,30057909,938.4,Revenue,Smiley Faces Day Nursery,Grant Payment
Peterborough,http://opendatacommunities.org/id/unitary-authority/peterborough,Peterborough City Council,Adult Services & Communities - Adults,Independent Sector Placements,Services,06/01/2016 00:00,30057910,3033.52,Revenue,"ATCHISON, MR ALAN",Residential Care
Peterborough,http://opendatacommunities.org/id/unitary-authority/peterborough,Peterborough City Council,Business Management and Commercial Operations,Early Years & Quality Improvement,Services,06/01/2016 00:00,30057911,1073.25,Revenue,Belsize Day Nursery,Grant Payment
Peterborough,http://opendatacommunities.org/id/unitary-authority/peterborough,Peterborough City Council,Business Management and Commercial Operations,Early Years & Quality Improvement,Services,06/01/2016 00:00,30057912,1216.21,Revenue,St Johns C of E Pre-School,Grant Payment
Peterborough,http://opendatacommunities.org/id/unitary-authority/peterborough,Peterborough City Council,Adult Services & Communities - Adults,Independent Sector Placements,Services,06/01/2016 00:00,30057913,4006.2,Revenue,"ATCHISON, MR ALAN",Residential Care
Peterborough,http://opendatacommunities.org/id/unitary-authority/peterborough,Peterborough City Council,Business Management and Commercial Operations,Early Years & Quality Improvement,Services,06/01/2016 00:00,30057914,946.44,Revenue,Longthorpe Playgroup,Grant Payment
Peterborough,http://opendatacommunities.org/id/unitary-authority/peterborough,Peterborough City Council,Adult Services & Communities - Adults,Independent Sector Placements,Services,06/01/2016 00:00,30057915,2289.12,Revenue,"ATCHISON, MR ALAN",Residential Care
Peterborough,http://opendatacommunities.org/id/unitary-authority/peterborough,Peterborough City Council,Adult Services & Communities - Adults,Independent Sector Placements,Services,06/01/2016 00:00,30057917,3990.88,Revenue,"ATCHISON, MR ALAN",Residential Care
Peterborough,http://opendatacommunities.org/id/unitary-authority/peterborough,Peterborough City Council,Adult Services & Communities - Adults,Independent Sector Placements,Services,06/01/2016 00:00,30057918,660,Revenue,"ATCHISON, MR ALAN",Residential Care
Peterborough,http://opendatacommunities.org/id/unitary-authority/peterborough,Peterborough City Council,Adult Services & Communities - Adults,Independent Sector Placements,Services,06/01/2016 00:00,30057919,4904,Revenue,"ATCHISON, MR ALAN",Residential Care
Peterborough,http://opendatacommunities.org/id/unitary-authority/peterborough,Peterborough City Council,Adult Services & Communities - Adults,Independent Sector Placements,Services,06/01/2016 00:00,30057920,2162.28,Revenue,"ATCHISON, MR ALAN",Residential Care
Peterborough,http://opendatacommunities.org/id/unitary-authority/peterborough,Peterborough City Council,Adult Services & Communities - Adults,Independent Sector Placements,Services,06/01/2016 00:00,30057921,4833.92,Revenue,"ATCHISON, MR ALAN",Residential Care
Peterborough,http://opendatacommunities.org/id/unitary-authority/peterborough,Peterborough City Council,Adult Services & Communities - Adults,Independent Sector Placements,Services,06/01/2016 00:00,30057923,1553.72,Revenue,"ATCHISON, MR ALAN",Residential Care
Peterborough,http://opendatacommunities.org/id/unitary-authority/peterborough,Peterborough City Council,Adult Services & Communities - Adults,Independent Sector Placements,Services,06/01/2016 00:00,30057924,2776.32,Revenue,"ATCHISON, MR ALAN",Residential Care
Peterborough,http://opendatacommunities.org/id/unitary-authority/peterborough,Peterborough City Council,Business Management and Commercial Operations,Early Years & Quality Improvement,Services,06/01/2016 00:00,30057925,801.15,Revenue,St Josephs Day Nursery,Grant Payment
Peterborough,http://opendatacommunities.org/id/unitary-authority/peterborough,Peterborough City Council,Business Management and Commercial Operations,Early Years & Quality Improvement,Services,06/01/2016 00:00,30057926,805.6,Revenue,Stars Pre-School Parnwell,Grant Payment
Peterborough,http://opendatacommunities.org/id/unitary-authority/peterborough,Peterborough City Council,Business Management and Commercial Operations,Early Years & Quality Improvement,Services,06/01/2016 00:00,30057927,788.85,Revenue,Little Blossoms,Grant Payment
Peterborough,http://opendatacommunities.org/id/unitary-authority/peterborough,Peterborough City Council,Adult Services & Communities - Adults,Independent Sector Placements,Services,06/01/2016 00:00,30057928,685.28,Revenue,"ATCHISON, MR ALAN",Residential Care
Peterborough,http://opendatacommunities.org/id/unitary-authority/peterborough,Peterborough City Council,Adult Services & Communities - Adults,Independent Sector Placements,Services,06/01/2016 00:00,30057929,3491.04,Revenue,"ATCHISON, MR ALAN",Residential Care
Peterborough,http://opendatacommunities.org/id/unitary-authority/peterborough,Peterborough City Council,Business Management and Commercial Operations,Early Years & Quality Improvement,Services,06/01/2016 00:00,30057930,775.4,Revenue,Orton Longueville Playgroup,Grant Payment
Peterborough,http://opendatacommunities.org/id/unitary-authority/peterborough,Peterborough City Council,Business Management and Commercial Operations,Early Years & Quality Improvement,Services,06/01/2016 00:00,30057931,779.13,Revenue,Family Action,Grant Payment
Peterborough,http://opendatacommunities.org/id/unitary-authority/peterborough,Peterborough City Council,Business Management and Commercial Operations,Early Years & Quality Improvement,Services,06/01/2016 00:00,30057932,880.46,Revenue,Whiz Kids Day Nursery,Grant Payment
Peterborough,http://opendatacommunities.org/id/unitary-authority/peterborough,Peterborough City Council,Business Management and Commercial Operations,Early Years & Quality Improvement,Services,06/01/2016 00:00,30057933,752.15,Revenue,Stars Pre-School Ravensthorpe,Grant Payment
Peterborough,http://opendatacommunities.org/id/unitary-authority/peterborough,Peterborough City Council,Adult Services & Communities - Adults,Independent Sector Placements,Services,06/01/2016 00:00,30057934,2728,Revenue,"ATCHISON, MR ALAN",Residential Care
Peterborough,http://opendatacommunities.org/id/unitary-authority/peterborough,Peterborough City Council,Business Management and Commercial Operations,Early Years & Quality Improvement,Services,06/01/2016 00:00,30057935,698.78,Revenue,Bretton Community Pre-School,Grant Payment
Peterborough,http://opendatacommunities.org/id/unitary-authority/peterborough,Peterborough City Council,Adult Services & Communities - Adults,Independent Sector Placements,Services,06/01/2016 00:00,30057936,5785.6,Revenue,"ATCHISON, MR ALAN",Residential Care
Peterborough,http://opendatacommunities.org/id/unitary-authority/peterborough,Peterborough City Council,Business Management and Commercial Operations,Early Years & Quality Improvement,Services,06/01/2016 00:00,30057937,745.83,Revenue,Manor House Nursery (Peterborough) Ltd,Grant Payment
Peterborough,http://opendatacommunities.org/id/unitary-authority/peterborough,Peterborough City Council,Business Management and Commercial Operations,Early Years & Quality Improvement,Services,06/01/2016 00:00,30057938,643.96,Revenue,Toddlers Inn Day Nursery,Grant Payment
Peterborough,http://opendatacommunities.org/id/unitary-authority/peterborough,Peterborough City Council,Adult Services & Communities - Adults,Independent Sector Placements,Services,06/01/2016 00:00,30057939,15145,Revenue,Cross Keys Homes,Home Care
Peterborough,http://opendatacommunities.org/id/unitary-authority/peterborough,Peterborough City Council,Business Management and Commercial Operations,Early Years & Quality Improvement,Services,06/01/2016 00:00,30057958,693.96,Revenue,Woodston Playgroup,Grant Payment
Peterborough,http://opendatacommunities.org/id/unitary-authority/peterborough,Peterborough City Council,Business Management and Commercial Operations,Early Years & Quality Improvement,Services,06/01/2016 00:00,30057961,717.71,Revenue,Stars Pre-School Dogsthorpe,Grant Payment
Peterborough,http://opendatacommunities.org/id/unitary-authority/peterborough,Peterborough City Council,Business Management and Commercial Operations,Early Years & Quality Improvement,Services,06/01/2016 00:00,30057965,531.35,Revenue,SDN Ltd t/a Stars Day Nursery Bushfield,Grant Payment
Peterborough,http://opendatacommunities.org/id/unitary-authority/peterborough,Peterborough City Council,Business Management and Commercial Operations,Early Years & Quality Improvement,Services,06/01/2016 00:00,30057966,616.35,Revenue,St Thomas More Catholic Nursery,Grant Payment
Peterborough,http://opendatacommunities.org/id/unitary-authority/peterborough,Peterborough City Council,Business Management and Commercial Operations,Early Years & Quality Improvement,Services,06/01/2016 00:00,30057968,570.92,Revenue,Little Tigers Day Nursery,Grant Payment
Peterborough,http://opendatacommunities.org/id/unitary-authority/peterborough,Peterborough City Council,Business Management and Commercial Operations,Early Years & Quality Improvement,Services,06/01/2016 00:00,30057970,535.92,Revenue,Stars Pre-School Welland,Grant Payment
Peterborough,http://opendatacommunities.org/id/unitary-authority/peterborough,Peterborough City Council,Business Management and Commercial Operations,Early Years & Quality Improvement,Services,06/01/2016 00:00,30057980,10018.14,Revenue,Step One Day Care,Grant Payment
Peterborough,http://opendatacommunities.org/id/unitary-authority/peterborough,Peterborough City Council,Peterborough Highway Services,Transport & Infrastructure Commissioning,Energy Costs,06/01/2016 00:00,30058038,102483.4,Revenue,EDF Energy Networks Ltd,Electricity
Peterborough,http://opendatacommunities.org/id/unitary-authority/peterborough,Peterborough City Council,Legal & Democratic,Legal Services,Services,06/01/2016 00:00,30058041,1680,Revenue,"Collins, Mr Peter",Legal Costs
Peterborough,http://opendatacommunities.org/id/unitary-authority/peterborough,Peterborough City Council,Peterborough Highway Services,Transport & Infrastructure Commissioning,Energy Costs,06/01/2016 00:00,30058044,2766.05,Revenue,EDF Energy Networks Ltd,Electricity
Peterborough,http://opendatacommunities.org/id/unitary-authority/peterborough,Peterborough City Council,Education,Service Director Education,Employee Related Expenses,06/01/2016 00:00,30058050,25858.17,Revenue,Teachers Pensions,Pensions
Peterborough,http://opendatacommunities.org/id/unitary-authority/peterborough,Peterborough City Council,Adult Services & Communities - Adults,Day Opportunities / In House,Agency Staff,06/01/2016 00:00,30058085,1081.2,Revenue,Caritas Recruitment,External Temporary Staff
Peterborough,http://opendatacommunities.org/id/unitary-authority/peterborough,Peterborough City Council,Adult Services & Communities - Adults,Day Opportunities / In House,Agency Staff,06/01/2016 00:00,30058089,1050,Revenue,Caritas Recruitment,External Temporary Staff
Peterborough,http://opendatacommunities.org/id/unitary-authority/peterborough,Peterborough City Council,Vivacity/Cultural Services,Cultural Services,Services,06/01/2016 00:00,30058120,2019.01,Revenue,Redacted Personal Data,Hired Services
Peterborough,http://opendatacommunities.org/id/unitary-authority/peterborough,Peterborough City Council,Children's & Safeguarding,Access to Resources & Specialist Commissioning,Services,06/01/2016 00:00,30058125,13599.96,Revenue,Heathcotes M Ltd,Boarding Out Allowances
Peterborough,http://opendatacommunities.org/id/unitary-authority/peterborough,Peterborough City Council,Children's & Safeguarding,Access to Resources & Specialist Commissioning,Services,06/01/2016 00:00,30058126,6799.98,Revenue,Heathcotes M Ltd,Boarding Out Allowances
Peterborough,http://opendatacommunities.org/id/unitary-authority/peterborough,Peterborough City Council,Children's & Safeguarding,Access to Resources & Specialist Commissioning,Services,06/01/2016 00:00,30058127,13599.96,Revenue,Heathcotes M Ltd,Boarding Out Allowances
Peterborough,http://opendatacommunities.org/id/unitary-authority/peterborough,Peterborough City Council,"Cemeteries, Cremation & Registrars",Registration Service,Services,06/01/2016 00:00,30058132,513.68,Revenue,Peterborough Registrars Office Imprest,Franking Machine
Peterborough,http://opendatacommunities.org/id/unitary-authority/peterborough,Peterborough City Council,Corporate,Corporate,Capital Expenditure,06/01/2016 00:00,30058153,3540,Capital,A W Morley T/A Morley Building Services,Grant Payment
Peterborough,http://opendatacommunities.org/id/unitary-authority/peterborough,Peterborough City Council,Corporate,Corporate,Capital Expenditure,06/01/2016 00:00,30058180,6699,Capital,Allworks Home Improvements Ltd,Grant Payment
Peterborough,http://opendatacommunities.org/id/unitary-authority/peterborough,Peterborough City Council,Corporate,Corporate,Capital Expenditure,06/01/2016 00:00,30058181,4560,Capital,Allworks Home Improvements Ltd,Grant Payment
Peterborough,http://opendatacommunities.org/id/unitary-authority/peterborough,Peterborough City Council,Corporate,Corporate,Capital Expenditure,06/01/2016 00:00,30058183,4044,Capital,Allworks Home Improvements Ltd,Grant Payment
Peterborough,http://opendatacommunities.org/id/unitary-authority/peterborough,Peterborough City Council,Commercial Group,Strategic Client Services,Services,06/01/2016 00:00,30058189,1009.71,Revenue,Capita Business Services Ltd,Computer Software
Peterborough,http://opendatacommunities.org/id/unitary-authority/peterborough,Peterborough City Council,Adult Services & Communities - Adults,Independent Sector Placements,Services,06/01/2016 00:00,30058192,-1383.69,Revenue,Avery House (Peterborough) t/a Brighterkind,Residential Care
Peterborough,http://opendatacommunities.org/id/unitary-authority/peterborough,Peterborough City Council,Amey Peterborough & Waste Management,Waste Management,Services,06/01/2016 00:00,30058239,11276.79,Revenue,AmeyCespa (East) Ltd,Recycling
Peterborough,http://opendatacommunities.org/id/unitary-authority/peterborough,Peterborough City Council,Amey Peterborough & Waste Management,Waste Management,Services,06/01/2016 00:00,30058241,10110.78,Revenue,AmeyCespa (East) Ltd,Recycling
Peterborough,http://opendatacommunities.org/id/unitary-authority/peterborough,Peterborough City Council,Children's & Safeguarding,Access to Resources & Specialist Commissioning,Services,06/01/2016 00:00,30058274,15500,Revenue,Barford Children's Services,Boarding Out Allowances
Peterborough,http://opendatacommunities.org/id/unitary-authority/peterborough,Peterborough City Council,Corporate,Corporate,Services,06/01/2016 00:00,30058304,3300,Balance Sheet,Fieldwork Admin Team (IMPREST),Appointeeship - Client Monies
Peterborough,http://opendatacommunities.org/id/unitary-authority/peterborough,Peterborough City Council,"Cemeteries, Cremation & Registrars",Registration Service,Services,06/01/2016 00:00,30058308,513.68,Revenue,Peterborough Registrars Office Imprest,Franking Machine
Peterborough,http://opendatacommunities.org/id/unitary-authority/peterborough,Peterborough City Council,Performance & Information,Performance & Information,Agency Staff,06/01/2016 00:00,30058367,569.45,Revenue,Reed Specialist Recruitment,External Temporary Staff
Peterborough,http://opendatacommunities.org/id/unitary-authority/peterborough,Peterborough City Council,Adult Services & Communities - Adults,Independent Sector Placements,Services,06/01/2016 00:00,8000049430,602.04,Revenue,Redacted Personal Data,Adult Social Care Direct Payment
Peterborough,http://opendatacommunities.org/id/unitary-authority/peterborough,Peterborough City Council,Corporate,Corporate,Capital Expenditure,08/01/2016 00:00,30032375,4338.5,Capital,InBuild,Grant Payment
Peterborough,http://opendatacommunities.org/id/unitary-authority/peterborough,Peterborough City Council,Business Management and Commercial Operations,Commissioning,Services,08/01/2016 00:00,30050546,552.03,Revenue,CAPITA Translation and Interpreting,Interpretation Expenses
Peterborough,http://opendatacommunities.org/id/unitary-authority/peterborough,Peterborough City Council,Adult Services & Communities - Adults,Block Contracts,Services,08/01/2016 00:00,30051267,7373.24,Revenue,Housing 21,Third Party Payments - Contract
Peterborough,http://opendatacommunities.org/id/unitary-authority/peterborough,Peterborough City Council,Adult Services & Communities - Adults,Block Contracts,Services,08/01/2016 00:00,30051268,7373.24,Revenue,Housing 21,Third Party Payments - Contract
Peterborough,http://opendatacommunities.org/id/unitary-authority/peterborough,Peterborough City Council,Adult Services & Communities - Adults,Block Contracts,Services,08/01/2016 00:00,30051270,1480,Revenue,Housing 21,Third Party Payments - Contract
Peterborough,http://opendatacommunities.org/id/unitary-authority/peterborough,Peterborough City Council,Adult Services & Communities - Adults,Block Contracts,Services,08/01/2016 00:00,30051272,625.52,Revenue,Housing 21,Third Party Payments - Contract
Peterborough,http://opendatacommunities.org/id/unitary-authority/peterborough,Peterborough City Council,Adult Services & Communities - Adults,Block Contracts,Services,08/01/2016 00:00,30051274,625.52,Revenue,Housing 21,Third Party Payments - Contract
Peterborough,http://opendatacommunities.org/id/unitary-authority/peterborough,Peterborough City Council,Adult Services & Communities - Adults,Block Contracts,Services,08/01/2016 00:00,30051275,2560,Revenue,Housing 21,Third Party Payments - Contract
Peterborough,http://opendatacommunities.org/id/unitary-authority/peterborough,Peterborough City Council,Business Management and Commercial Operations,Commissioning,Services,08/01/2016 00:00,30051319,1223.17,Revenue,CAPITA Translation and Interpreting,Interpretation Expenses
Peterborough,http://opendatacommunities.org/id/unitary-authority/peterborough,Peterborough City Council,Adult Services & Communities - Adults,Block Contracts,Services,08/01/2016 00:00,30051483,3479.44,Revenue,Longueville Court (Barchester),Third Party Payments - Contract
Peterborough,http://opendatacommunities.org/id/unitary-authority/peterborough,Peterborough City Council,Adult Services & Communities - Adults,Block Contracts,Services,08/01/2016 00:00,30051629,6250.25,Revenue,Housing 21,Third Party Payments - Contract
Peterborough,http://opendatacommunities.org/id/unitary-authority/peterborough,Peterborough City Council,Adult Services & Communities - Adults,Block Contracts,Services,08/01/2016 00:00,30051960,1821.88,Revenue,Park Vista Care Home,Third Party Payments - Contract
Peterborough,http://opendatacommunities.org/id/unitary-authority/peterborough,Peterborough City Council,Adult Services & Communities - Adults,Block Contracts,Services,08/01/2016 00:00,30051961,1821.88,Revenue,Park Vista Care Home,Third Party Payments - Contract
Peterborough,http://opendatacommunities.org/id/unitary-authority/peterborough,Peterborough City Council,Adult Services & Communities - Adults,Mental Capacity Act & DoLs,Agency Staff,08/01/2016 00:00,30055490,1140,Revenue,Sanctuary Personnel Ltd,External Temporary Staff
Peterborough,http://opendatacommunities.org/id/unitary-authority/peterborough,Peterborough City Council,Peterborough Highway Services,Transport & Infrastructure Commissioning,Repair & Maintenance of Buildings,08/01/2016 00:00,30056034,18750,Revenue,Jones Lang LaSalle,Service Charges - Premises
Peterborough,http://opendatacommunities.org/id/unitary-authority/peterborough,Peterborough City Council,Business Management and Commercial Operations,Commissioning,Services,08/01/2016 00:00,30056223,1721.14,Revenue,CAPITA Translation and Interpreting,Interpretation Expenses
Peterborough,http://opendatacommunities.org/id/unitary-authority/peterborough,Peterborough City Council,Business Management and Commercial Operations,Commissioning,Services,08/01/2016 00:00,30056225,606.3,Revenue,CAPITA Translation and Interpreting,Interpretation Expenses
Peterborough,http://opendatacommunities.org/id/unitary-authority/peterborough,Peterborough City Council,Adult Services & Communities - Adults,Independent Sector Placements,Services,08/01/2016 00:00,30056473,532.99,Revenue,Barchester Healthcare (Werrington Lodge),Residential Care
Peterborough,http://opendatacommunities.org/id/unitary-authority/peterborough,Peterborough City Council,Adult Services & Communities - Adults,Therapy/Reablement/Community Equipment,Agency Staff,08/01/2016 00:00,30056500,1221,Revenue,SWP Consulting,External Temporary Staff
Peterborough,http://opendatacommunities.org/id/unitary-authority/peterborough,Peterborough City Council,City Services & Communications,Marketing & Communications,Services,08/01/2016 00:00,30056600,4800,Revenue,Posh Gecko Limited,Printing
Peterborough,http://opendatacommunities.org/id/unitary-authority/peterborough,Peterborough City Council,Adult Services & Communities - Adults,Independent Sector Placements,Services,08/01/2016 00:00,30056767,1620.9,Revenue,STAR RESIDENTIAL HOME LTD,Residential Care
Peterborough,http://opendatacommunities.org/id/unitary-authority/peterborough,Peterborough City Council,Adult Services & Communities - Adults,Block Contracts,Services,08/01/2016 00:00,30056789,2007.6,Revenue,Hales Group Ltd,Third Party Payments - Contract
Peterborough,http://opendatacommunities.org/id/unitary-authority/peterborough,Peterborough City Council,Adult Services & Communities - Adults,Block Contracts,Services,08/01/2016 00:00,30056791,6426,Revenue,Hales Group Ltd,Third Party Payments - Contract
Peterborough,http://opendatacommunities.org/id/unitary-authority/peterborough,Peterborough City Council,Adult Services & Communities - Adults,Mental Capacity Act & DoLs,Agency Staff,08/01/2016 00:00,30057037,1140,Revenue,Sanctuary Personnel Ltd,External Temporary Staff
Peterborough,http://opendatacommunities.org/id/unitary-authority/peterborough,Peterborough City Council,Adult Services & Communities - Adults,Mental Capacity Act & DoLs,Agency Staff,08/01/2016 00:00,30057039,1140,Revenue,Sanctuary Personnel Ltd,External Temporary Staff
Peterborough,http://opendatacommunities.org/id/unitary-authority/peterborough,Peterborough City Council,Adult Services & Communities - Adults,Finance,Agency Staff,08/01/2016 00:00,30057040,1530.48,Revenue,Sanctuary Personnel Ltd,External Temporary Staff
Peterborough,http://opendatacommunities.org/id/unitary-authority/peterborough,Peterborough City Council,Children's & Safeguarding,Children's Social Care,Agency Staff,08/01/2016 00:00,30057041,1500,Revenue,Sanctuary Personnel Ltd,External Temporary Staff
Peterborough,http://opendatacommunities.org/id/unitary-authority/peterborough,Peterborough City Council,Children's & Safeguarding,Children's Social Care,Agency Staff,08/01/2016 00:00,30057045,1665,Revenue,Sanctuary Personnel Ltd,External Temporary Staff
Peterborough,http://opendatacommunities.org/id/unitary-authority/peterborough,Peterborough City Council,Adult Services & Communities - Adults,Mental Capacity Act & DoLs,Agency Staff,08/01/2016 00:00,30057047,1140,Revenue,Sanctuary Personnel Ltd,External Temporary Staff
Peterborough,http://opendatacommunities.org/id/unitary-authority/peterborough,Peterborough City Council,Children's & Safeguarding,Children's Social Care,Agency Staff,08/01/2016 00:00,30057048,1772.95,Revenue,Sanctuary Personnel Ltd,External Temporary Staff
Peterborough,http://opendatacommunities.org/id/unitary-authority/peterborough,Peterborough City Council,Children's & Safeguarding,Children's Social Care,Agency Staff,08/01/2016 00:00,30057049,703,Revenue,Sanctuary Personnel Ltd,External Temporary Staff
Peterborough,http://opendatacommunities.org/id/unitary-authority/peterborough,Peterborough City Council,Children's & Safeguarding,Children's Social Care,Agency Staff,08/01/2016 00:00,30057051,1787.1,Revenue,Sanctuary Personnel Ltd,External Temporary Staff
Peterborough,http://opendatacommunities.org/id/unitary-authority/peterborough,Peterborough City Council,Children's & Safeguarding,Children's Social Care,Agency Staff,08/01/2016 00:00,30057053,1591,Revenue,Sanctuary Personnel Ltd,External Temporary Staff
Peterborough,http://opendatacommunities.org/id/unitary-authority/peterborough,Peterborough City Council,Children's & Safeguarding,Children's Social Care,Agency Staff,08/01/2016 00:00,30057057,1744,Revenue,Sanctuary Personnel Ltd,External Temporary Staff
Peterborough,http://opendatacommunities.org/id/unitary-authority/peterborough,Peterborough City Council,Children's & Safeguarding,Children's Social Care,Agency Staff,08/01/2016 00:00,30057062,1740,Revenue,Sanctuary Personnel Ltd,External Temporary Staff
Peterborough,http://opendatacommunities.org/id/unitary-authority/peterborough,Peterborough City Council,Adult Services & Communities - Adults,Independent Sector Placements,Services,08/01/2016 00:00,30057140,3400,Revenue,LESTER HALL APARTMENTS LTD,Residential Care
Peterborough,http://opendatacommunities.org/id/unitary-authority/peterborough,Peterborough City Council,Children's & Safeguarding,Access to Resources & Specialist Commissioning,Services,08/01/2016 00:00,30057266,3548.26,Revenue,Archway Care Ltd,Boarding Out Allowances
Peterborough,http://opendatacommunities.org/id/unitary-authority/peterborough,Peterborough City Council,Adult Services & Communities - Adults,Finance,Agency Staff,08/01/2016 00:00,30057310,2362.48,Revenue,Sanctuary Personnel Ltd,External Temporary Staff
Peterborough,http://opendatacommunities.org/id/unitary-authority/peterborough,Peterborough City Council,Children's & Safeguarding,Children's Social Care,Agency Staff,08/01/2016 00:00,30057316,2500,Revenue,Sanctuary Personnel Ltd,External Temporary Staff
Peterborough,http://opendatacommunities.org/id/unitary-authority/peterborough,Peterborough City Council,Children's & Safeguarding,Children's Social Care,Agency Staff,08/01/2016 00:00,30057530,570,Revenue,NonStop Recruitment Ltd,External Temporary Staff
Peterborough,http://opendatacommunities.org/id/unitary-authority/peterborough,Peterborough City Council,Adult Services & Communities - Adults,Independent Sector Placements,Services,08/01/2016 00:00,30057743,1821.88,Revenue,Avery House (Peterborough) t/a Brighterkind,Residential Care
Peterborough,http://opendatacommunities.org/id/unitary-authority/peterborough,Peterborough City Council,Adult Services & Communities - Adults,Independent Sector Placements,Services,08/01/2016 00:00,30057758,6656.6,Revenue,PJ Care Ltd,Residential Care
Peterborough,http://opendatacommunities.org/id/unitary-authority/peterborough,Peterborough City Council,Children's & Safeguarding,Access to Resources & Specialist Commissioning,Services,08/01/2016 00:00,30057773,2017.35,Revenue,Transition Care Peterborough Ltd,Boarding Out Allowances
Peterborough,http://opendatacommunities.org/id/unitary-authority/peterborough,Peterborough City Council,Children's & Safeguarding,Access to Resources & Specialist Commissioning,Services,08/01/2016 00:00,30057776,1315.35,Revenue,Transition Care Peterborough Ltd,Boarding Out Allowances
Peterborough,http://opendatacommunities.org/id/unitary-authority/peterborough,Peterborough City Council,Peterborough Highway Services,Transport & Infrastructure Commissioning,Services,08/01/2016 00:00,30057860,14581.44,Revenue,Statutory Payment of Concessionary Fares to Bus Provider,Contractors
Peterborough,http://opendatacommunities.org/id/unitary-authority/peterborough,Peterborough City Council,Adult Services & Communities - Adults,Independent Sector Placements,Services,08/01/2016 00:00,30058064,2321.88,Revenue,Avery House (Peterborough) t/a Brighterkind,Residential Care
Peterborough,http://opendatacommunities.org/id/unitary-authority/peterborough,Peterborough City Council,Adult Services & Communities - Adults,Independent Sector Placements,Services,08/01/2016 00:00,30058065,651.56,Revenue,Pilgrim Havens,Residential Care
Peterborough,http://opendatacommunities.org/id/unitary-authority/peterborough,Peterborough City Council,Adult Services & Communities - Adults,Independent Sector Placements,Services,08/01/2016 00:00,30058066,857.96,Revenue,Pilgrim Havens,Residential Care
Peterborough,http://opendatacommunities.org/id/unitary-authority/peterborough,Peterborough City Council,Adult Services & Communities - Adults,Independent Sector Placements,Services,08/01/2016 00:00,30058067,1071.04,Revenue,Pilgrim Havens,Residential Care
Peterborough,http://opendatacommunities.org/id/unitary-authority/peterborough,Peterborough City Council,Adult Services & Communities - Adults,Independent Sector Placements,Services,08/01/2016 00:00,30058068,1316.68,Revenue,Pilgrim Havens,Residential Care
Peterborough,http://opendatacommunities.org/id/unitary-authority/peterborough,Peterborough City Council,Adult Services & Communities - Adults,Independent Sector Placements,Services,08/01/2016 00:00,30058069,2707.04,Revenue,LEONARD CHESHIRE DISABILITY,Residential Care
Peterborough,http://opendatacommunities.org/id/unitary-authority/peterborough,Peterborough City Council,Adult Services & Communities - Adults,Strategic Commissioning - Management,Services,08/01/2016 00:00,30058070,2990,Revenue,P'Boro Council For Voluntary Srvs (PCVS),Third Party Payments - Contract
Peterborough,http://opendatacommunities.org/id/unitary-authority/peterborough,Peterborough City Council,Adult Services & Communities - Adults,Community Team,Catering,08/01/2016 00:00,30058073,1093.04,Revenue,ICare GB Ltd,Catering Provisions
Peterborough,http://opendatacommunities.org/id/unitary-authority/peterborough,Peterborough City Council,Adult Services & Communities - Adults,Strategic Commissioning - Management,Services,08/01/2016 00:00,30058075,2990,Revenue,P'Boro Council For Voluntary Srvs (PCVS),Third Party Payments - Contract
Peterborough,http://opendatacommunities.org/id/unitary-authority/peterborough,Peterborough City Council,Adult Services & Communities - Adults,Independent Sector Placements,Services,08/01/2016 00:00,30058081,1015.04,Revenue,ORCHARD HOUSE,Residential Care
Peterborough,http://opendatacommunities.org/id/unitary-authority/peterborough,Peterborough City Council,Adult Services & Communities - Adults,Independent Sector Placements,Services,08/01/2016 00:00,30058094,1885,Revenue,THE LODGE TRUST,Residential Care
Peterborough,http://opendatacommunities.org/id/unitary-authority/peterborough,Peterborough City Council,Adult Services & Communities - Adults,Independent Sector Placements,Services,08/01/2016 00:00,30058095,1885,Revenue,THE LODGE TRUST,Residential Care
Peterborough,http://opendatacommunities.org/id/unitary-authority/peterborough,Peterborough City Council,Adult Services & Communities - Adults,Independent Sector Placements,Services,08/01/2016 00:00,30058099,7395.92,Revenue,Affinity Trust,Residential Care
Peterborough,http://opendatacommunities.org/id/unitary-authority/peterborough,Peterborough City Council,Adult Services & Communities - Adults,Independent Sector Placements,Services,08/01/2016 00:00,30058100,7395.92,Revenue,Affinity Trust,Residential Care
Peterborough,http://opendatacommunities.org/id/unitary-authority/peterborough,Peterborough City Council,Adult Services & Communities - Adults,Independent Sector Placements,Services,08/01/2016 00:00,30058101,827.36,Revenue,Westerleigh Nursing Home,Residential Care
Peterborough,http://opendatacommunities.org/id/unitary-authority/peterborough,Peterborough City Council,Adult Services & Communities - Adults,Independent Sector Placements,Services,08/01/2016 00:00,30058102,827.36,Revenue,Westerleigh Nursing Home,Residential Care
Peterborough,http://opendatacommunities.org/id/unitary-authority/peterborough,Peterborough City Council,Adult Services & Communities - Adults,Independent Sector Placements,Services,08/01/2016 00:00,30058103,2440,Revenue,Alysia Caring Ltd T/a Cherry Blossom care Home,Residential Care
Peterborough,http://opendatacommunities.org/id/unitary-authority/peterborough,Peterborough City Council,Adult Services & Communities - Adults,Independent Sector Placements,Services,08/01/2016 00:00,30058104,1415.56,Revenue,Alysia Caring Ltd T/a Cherry Blossom care Home,Residential Care
Peterborough,http://opendatacommunities.org/id/unitary-authority/peterborough,Peterborough City Council,Adult Services & Communities - Adults,Independent Sector Placements,Services,08/01/2016 00:00,30058105,610,Revenue,Alysia Caring Ltd T/a Cherry Blossom care Home,Residential Care
Peterborough,http://opendatacommunities.org/id/unitary-authority/peterborough,Peterborough City Council,Adult Services & Communities - Adults,Independent Sector Placements,Services,08/01/2016 00:00,30058106,1515.72,Revenue,Alysia Caring Ltd T/a Cherry Blossom care Home,Residential Care
Peterborough,http://opendatacommunities.org/id/unitary-authority/peterborough,Peterborough City Council,Adult Services & Communities - Adults,Independent Sector Placements,Services,08/01/2016 00:00,30058107,2181.6,Revenue,Southwark Park Nursing Homes - Blenheim Care Centre,Residential Care
Peterborough,http://opendatacommunities.org/id/unitary-authority/peterborough,Peterborough City Council,Adult Services & Communities - Adults,Independent Sector Placements,Services,08/01/2016 00:00,30058194,1867.12,Revenue,Alysia Caring Ltd T/a Cherry Blossom care Home,Residential Care
Peterborough,http://opendatacommunities.org/id/unitary-authority/peterborough,Peterborough City Council,Adult Services & Communities - Adults,Independent Sector Placements,Services,08/01/2016 00:00,30058196,1400.34,Revenue,Alysia Caring Ltd T/a Cherry Blossom care Home,Residential Care
Peterborough,http://opendatacommunities.org/id/unitary-authority/peterborough,Peterborough City Council,Adult Services & Communities - Adults,Independent Sector Placements,Services,08/01/2016 00:00,30058198,1867.12,Revenue,Alysia Caring Ltd T/a Cherry Blossom care Home,Residential Care
Peterborough,http://opendatacommunities.org/id/unitary-authority/peterborough,Peterborough City Council,Adult Services & Communities - Adults,Independent Sector Placements,Services,08/01/2016 00:00,30058200,1867.12,Revenue,Alysia Caring Ltd T/a Cherry Blossom care Home,Residential Care
Peterborough,http://opendatacommunities.org/id/unitary-authority/peterborough,Peterborough City Council,Adult Services & Communities - Adults,Independent Sector Placements,Services,08/01/2016 00:00,30058201,-7162.74,Revenue,Alysia Caring Ltd T/a Cherry Blossom care Home,Residential Care
Peterborough,http://opendatacommunities.org/id/unitary-authority/peterborough,Peterborough City Council,Adult Services & Communities - Adults,Independent Sector Placements,Services,08/01/2016 00:00,30058203,1867.12,Revenue,Alysia Caring Ltd T/a Cherry Blossom care Home,Residential Care
Peterborough,http://opendatacommunities.org/id/unitary-authority/peterborough,Peterborough City Council,Adult Services & Communities - Adults,Independent Sector Placements,Services,08/01/2016 00:00,30058204,-790.55,Revenue,Alysia Caring Ltd T/a Cherry Blossom care Home,Residential Care
Peterborough,http://opendatacommunities.org/id/unitary-authority/peterborough,Peterborough City Council,Adult Services & Communities - Adults,Independent Sector Placements,Services,08/01/2016 00:00,30058205,898.36,Revenue,Alysia Caring Ltd T/a Cherry Blossom care Home,Residential Care
Peterborough,http://opendatacommunities.org/id/unitary-authority/peterborough,Peterborough City Council,Adult Services & Communities - Adults,Independent Sector Placements,Services,08/01/2016 00:00,30058206,1006.16,Revenue,Alysia Caring Ltd T/a Cherry Blossom care Home,Residential Care
Peterborough,http://opendatacommunities.org/id/unitary-authority/peterborough,Peterborough City Council,Adult Services & Communities - Adults,Independent Sector Placements,Services,08/01/2016 00:00,30058207,675.53,Revenue,Alysia Caring Ltd T/a Cherry Blossom care Home,Residential Care
Peterborough,http://opendatacommunities.org/id/unitary-authority/peterborough,Peterborough City Council,Adult Services & Communities - Adults,Independent Sector Placements,Services,08/01/2016 00:00,30058210,6627.84,Revenue,Craegmoor Priory Group,Residential Care
Peterborough,http://opendatacommunities.org/id/unitary-authority/peterborough,Peterborough City Council,Adult Services & Communities - Adults,Independent Sector Placements,Services,08/01/2016 00:00,30058220,1274.88,Revenue,Deafblind Enablement Ltd,Home Care
Peterborough,http://opendatacommunities.org/id/unitary-authority/peterborough,Peterborough City Council,Adult Services & Communities - Adults,Independent Sector Placements,Services,08/01/2016 00:00,30058233,792.51,Revenue,BUPA Care Homes,Residential Care
Peterborough,http://opendatacommunities.org/id/unitary-authority/peterborough,Peterborough City Council,Adult Services & Communities - Adults,Independent Sector Placements,Services,08/01/2016 00:00,30058235,1316.68,Revenue,BUPA Care Homes,Residential Care
Peterborough,http://opendatacommunities.org/id/unitary-authority/peterborough,Peterborough City Council,Adult Services & Communities - Adults,Independent Sector Placements,Services,08/01/2016 00:00,30058238,1821.88,Revenue,BUPA Care Homes,Residential Care
Peterborough,http://opendatacommunities.org/id/unitary-authority/peterborough,Peterborough City Council,Adult Services & Communities - Adults,Independent Sector Placements,Services,08/01/2016 00:00,30058240,1301.34,Revenue,BUPA Care Homes,Residential Care
Peterborough,http://opendatacommunities.org/id/unitary-authority/peterborough,Peterborough City Council,Adult Services & Communities - Adults,Independent Sector Placements,Services,08/01/2016 00:00,30058269,1037.44,Revenue,OAKHOUSE HOMECARE LTD,Residential Care
Peterborough,http://opendatacommunities.org/id/unitary-authority/peterborough,Peterborough City Council,Adult Services & Communities - Adults,Independent Sector Placements,Services,08/01/2016 00:00,30058279,991.8,Revenue,K2 CARE LTD,Home Care
Peterborough,http://opendatacommunities.org/id/unitary-authority/peterborough,Peterborough City Council,Adult Services & Communities - Adults,Independent Sector Placements,Services,08/01/2016 00:00,30058311,912.8,Revenue,PHILIA LODGE REST HOME,Residential Care
Peterborough,http://opendatacommunities.org/id/unitary-authority/peterborough,Peterborough City Council,Adult Services & Communities - Adults,Independent Sector Placements,Services,08/01/2016 00:00,30058312,2380,Revenue,PHILIA LODGE REST HOME,Residential Care
Peterborough,http://opendatacommunities.org/id/unitary-authority/peterborough,Peterborough City Council,Adult Services & Communities - Adults,Independent Sector Placements,Services,08/01/2016 00:00,30058313,1332.8,Revenue,PHILIA LODGE REST HOME,Residential Care
Peterborough,http://opendatacommunities.org/id/unitary-authority/peterborough,Peterborough City Council,Adult Services & Communities - Adults,Independent Sector Placements,Services,08/01/2016 00:00,30058314,1330.84,Revenue,PHILIA LODGE REST HOME,Residential Care
Peterborough,http://opendatacommunities.org/id/unitary-authority/peterborough,Peterborough City Council,Adult Services & Communities - Adults,Independent Sector Placements,Services,08/01/2016 00:00,30058319,617.55,Revenue,MEARS GROUP,Home Care
Peterborough,http://opendatacommunities.org/id/unitary-authority/peterborough,Peterborough City Council,Adult Services & Communities - Adults,Independent Sector Placements,Services,08/01/2016 00:00,30058320,2314.03,Revenue,MEARS GROUP,Home Care
Peterborough,http://opendatacommunities.org/id/unitary-authority/peterborough,Peterborough City Council,Adult Services & Communities - Adults,Independent Sector Placements,Services,08/01/2016 00:00,30058323,931.5,Revenue,MEARS GROUP,Home Care
Peterborough,http://opendatacommunities.org/id/unitary-authority/peterborough,Peterborough City Council,Adult Services & Communities - Adults,Independent Sector Placements,Services,08/01/2016 00:00,30058324,828,Revenue,MEARS GROUP,Home Care
Peterborough,http://opendatacommunities.org/id/unitary-authority/peterborough,Peterborough City Council,Adult Services & Communities - Adults,Independent Sector Placements,Services,08/01/2016 00:00,30058325,509.22,Revenue,MEARS GROUP,Home Care
Peterborough,http://opendatacommunities.org/id/unitary-authority/peterborough,Peterborough City Council,Adult Services & Communities - Adults,Independent Sector Placements,Services,08/01/2016 00:00,30058326,4998.8,Revenue,Mencap,Residential Care
Peterborough,http://opendatacommunities.org/id/unitary-authority/peterborough,Peterborough City Council,Adult Services & Communities - Adults,Independent Sector Placements,Services,08/01/2016 00:00,30058327,4858.4,Revenue,Mencap,Residential Care
Peterborough,http://opendatacommunities.org/id/unitary-authority/peterborough,Peterborough City Council,Adult Services & Communities - Adults,Independent Sector Placements,Services,08/01/2016 00:00,30058328,4638.8,Revenue,Mencap,Residential Care
Peterborough,http://opendatacommunities.org/id/unitary-authority/peterborough,Peterborough City Council,Adult Services & Communities - Adults,Mental Health,Services,08/01/2016 00:00,30058329,-5733.75,Revenue,Norfolk & Suffolk NHS Foundation Trust,Third Party Payments - Contract
Peterborough,http://opendatacommunities.org/id/unitary-authority/peterborough,Peterborough City Council,Adult Services & Communities - Adults,Mental Health,Services,08/01/2016 00:00,30058330,11467.5,Revenue,Norfolk & Suffolk NHS Foundation Trust,Third Party Payments - Contract
Peterborough,http://opendatacommunities.org/id/unitary-authority/peterborough,Peterborough City Council,Adult Services & Communities - Adults,Independent Sector Placements,Services,08/01/2016 00:00,30058331,1121.4,Revenue,PHILIA LODGE REST HOME,Residential Care
Peterborough,http://opendatacommunities.org/id/unitary-authority/peterborough,Peterborough City Council,Adult Services & Communities - Adults,Independent Sector Placements,Services,08/01/2016 00:00,30058332,790.72,Revenue,PHILIA LODGE REST HOME,Residential Care
Peterborough,http://opendatacommunities.org/id/unitary-authority/peterborough,Peterborough City Council,Adult Services & Communities - Adults,Independent Sector Placements,Services,08/01/2016 00:00,30058333,1330.84,Revenue,PHILIA LODGE REST HOME,Residential Care
Peterborough,http://opendatacommunities.org/id/unitary-authority/peterborough,Peterborough City Council,Adult Services & Communities - Adults,Independent Sector Placements,Services,08/01/2016 00:00,30058334,1172.68,Revenue,OAKHOUSE HOMECARE LTD,Residential Care
Peterborough,http://opendatacommunities.org/id/unitary-authority/peterborough,Peterborough City Council,Adult Services & Communities - Adults,Independent Sector Placements,Services,08/01/2016 00:00,30058335,730.4,Revenue,Sahara Community Care Services,Home Care
Peterborough,http://opendatacommunities.org/id/unitary-authority/peterborough,Peterborough City Council,Adult Services & Communities - Adults,Independent Sector Placements,Services,08/01/2016 00:00,30058336,730.4,Revenue,Sahara Community Care Services,Home Care
Peterborough,http://opendatacommunities.org/id/unitary-authority/peterborough,Peterborough City Council,Adult Services & Communities - Adults,Independent Sector Placements,Services,08/01/2016 00:00,30058337,730.4,Revenue,Sahara Community Care Services,Home Care
Peterborough,http://opendatacommunities.org/id/unitary-authority/peterborough,Peterborough City Council,Adult Services & Communities - Adults,Independent Sector Placements,Services,08/01/2016 00:00,30058338,581.95,Revenue,Sahara Community Care Services,Home Care
Peterborough,http://opendatacommunities.org/id/unitary-authority/peterborough,Peterborough City Council,Adult Services & Communities - Adults,Independent Sector Placements,Services,08/01/2016 00:00,30058339,730.4,Revenue,Sahara Community Care Services,Home Care
Peterborough,http://opendatacommunities.org/id/unitary-authority/peterborough,Peterborough City Council,Adult Services & Communities - Adults,Independent Sector Placements,Services,08/01/2016 00:00,30058340,730.4,Revenue,Sahara Community Care Services,Home Care
Peterborough,http://opendatacommunities.org/id/unitary-authority/peterborough,Peterborough City Council,Adult Services & Communities - Adults,Independent Sector Placements,Services,08/01/2016 00:00,30058342,1250.52,Revenue,OAKHOUSE HOMECARE LTD,Residential Care
Peterborough,http://opendatacommunities.org/id/unitary-authority/peterborough,Peterborough City Council,Adult Services & Communities - Adults,Independent Sector Placements,Services,08/01/2016 00:00,30058344,1576.24,Revenue,Park Vista Care Home,Residential Care
Peterborough,http://opendatacommunities.org/id/unitary-authority/peterborough,Peterborough City Council,Adult Services & Communities - Adults,Independent Sector Placements,Services,08/01/2016 00:00,30058346,1467.92,Revenue,PRIME LIFE LTD,Residential Care
Peterborough,http://opendatacommunities.org/id/unitary-authority/peterborough,Peterborough City Council,Adult Services & Communities - Adults,Independent Sector Placements,Services,08/01/2016 00:00,30058348,1467.92,Revenue,PRIME LIFE LTD,Residential Care
Peterborough,http://opendatacommunities.org/id/unitary-authority/peterborough,Peterborough City Council,Adult Services & Communities - Adults,Independent Sector Placements,Services,08/01/2016 00:00,30058361,2217.6,Revenue,STAR RESIDENTIAL HOME LTD,Residential Care
Peterborough,http://opendatacommunities.org/id/unitary-authority/peterborough,Peterborough City Council,Adult Services & Communities - Adults,Independent Sector Placements,Services,08/01/2016 00:00,30058362,1270.08,Revenue,STAR RESIDENTIAL HOME LTD,Residential Care
Peterborough,http://opendatacommunities.org/id/unitary-authority/peterborough,Peterborough City Council,Adult Services & Communities - Adults,Independent Sector Placements,Services,08/01/2016 00:00,30058364,1490.16,Revenue,STAR RESIDENTIAL HOME LTD,Residential Care
Peterborough,http://opendatacommunities.org/id/unitary-authority/peterborough,Peterborough City Council,Adult Services & Communities - Adults,Independent Sector Placements,Services,08/01/2016 00:00,30058366,2335.48,Revenue,STAR RESIDENTIAL HOME LTD,Residential Care
Peterborough,http://opendatacommunities.org/id/unitary-authority/peterborough,Peterborough City Council,Adult Services & Communities - Adults,Independent Sector Placements,Services,08/01/2016 00:00,30058368,1528.24,Revenue,STAR RESIDENTIAL HOME LTD,Residential Care
Peterborough,http://opendatacommunities.org/id/unitary-authority/peterborough,Peterborough City Council,Adult Services & Communities - Adults,Independent Sector Placements,Services,08/01/2016 00:00,30058369,2330.16,Revenue,STAR RESIDENTIAL HOME LTD,Residential Care
Peterborough,http://opendatacommunities.org/id/unitary-authority/peterborough,Peterborough City Council,Adult Services & Communities - Adults,Independent Sector Placements,Services,08/01/2016 00:00,30058370,2542.8,Revenue,STAR RESIDENTIAL HOME LTD,Residential Care
Peterborough,http://opendatacommunities.org/id/unitary-authority/peterborough,Peterborough City Council,Adult Services & Communities - Adults,Independent Sector Placements,Services,08/01/2016 00:00,30058371,1316.56,Revenue,STAR RESIDENTIAL HOME LTD,Residential Care
Peterborough,http://opendatacommunities.org/id/unitary-authority/peterborough,Peterborough City Council,Adult Services & Communities - Adults,Independent Sector Placements,Services,08/01/2016 00:00,30058372,1295.28,Revenue,STAR RESIDENTIAL HOME LTD,Residential Care
Peterborough,http://opendatacommunities.org/id/unitary-authority/peterborough,Peterborough City Council,Adult Services & Communities - Adults,Independent Sector Placements,Services,08/01/2016 00:00,30058374,1623.72,Revenue,STAR RESIDENTIAL HOME LTD,Residential Care
Peterborough,http://opendatacommunities.org/id/unitary-authority/peterborough,Peterborough City Council,Adult Services & Communities - Adults,Independent Sector Placements,Services,08/01/2016 00:00,30058376,2543.52,Revenue,STAR RESIDENTIAL HOME LTD,Residential Care
Peterborough,http://opendatacommunities.org/id/unitary-authority/peterborough,Peterborough City Council,Adult Services & Communities - Adults,Independent Sector Placements,Services,08/01/2016 00:00,30058378,2501.8,Revenue,STAR RESIDENTIAL HOME LTD,Residential Care
Peterborough,http://opendatacommunities.org/id/unitary-authority/peterborough,Peterborough City Council,Adult Services & Communities - Adults,Independent Sector Placements,Services,08/01/2016 00:00,30058400,-1407.36,Revenue,Park Vista Care Home,Residential Care
Peterborough,http://opendatacommunities.org/id/unitary-authority/peterborough,Peterborough City Council,Adult Services & Communities - Adults,Day Opportunities / In House,Agency Staff,08/01/2016 00:00,30058448,2625,Revenue,Sanctuary Personnel Ltd,External Temporary Staff
Peterborough,http://opendatacommunities.org/id/unitary-authority/peterborough,Peterborough City Council,Education,Pupil Referral Unit,Services,08/01/2016 00:00,30058455,3735,Revenue,NACRO,Courses And Seminars
Peterborough,http://opendatacommunities.org/id/unitary-authority/peterborough,Peterborough City Council,Children's & Safeguarding,Children's Social Care,Agency Staff,08/01/2016 00:00,30058478,1309.8,Revenue,Sanctuary Personnel Ltd,External Temporary Staff
Peterborough,http://opendatacommunities.org/id/unitary-authority/peterborough,Peterborough City Council,Adult Services & Communities - Adults,Independent Sector Placements,Services,08/01/2016 00:00,30058489,-1197.88,Revenue,STAR RESIDENTIAL HOME LTD,Residential Care
Peterborough,http://opendatacommunities.org/id/unitary-authority/peterborough,Peterborough City Council,Corporate,Corporate,Employee Related Expenses,08/01/2016 00:00,30058497,6141.52,Balance Sheet,The Prudential Assurance Company Ltd,Pensions
Peterborough,http://opendatacommunities.org/id/unitary-authority/peterborough,Peterborough City Council,Corporate,Corporate,Insurance,08/01/2016 00:00,30058500,3618.54,Balance Sheet,Dept for Work & Pensions,Insurance Claims
Peterborough,http://opendatacommunities.org/id/unitary-authority/peterborough,Peterborough City Council,Corporate,Corporate,Employee Related Expenses,08/01/2016 00:00,30058502,2643.52,Balance Sheet,The Prudential Assurance Company Ltd,Pensions
Peterborough,http://opendatacommunities.org/id/unitary-authority/peterborough,Peterborough City Council,Adult Services & Communities - Adults,Independent Sector Placements,Services,08/01/2016 00:00,30058508,583.97,Revenue,MEARS GROUP,Home Care
Peterborough,http://opendatacommunities.org/id/unitary-authority/peterborough,Peterborough City Council,Adult Services & Communities - Adults,Independent Sector Placements,Services,08/01/2016 00:00,30058511,2400,Revenue,LAVENDER HOUSE RESIDENTIAL HOME,Residential Care
Peterborough,http://opendatacommunities.org/id/unitary-authority/peterborough,Peterborough City Council,Adult Services & Communities - Adults,Independent Sector Placements,Services,08/01/2016 00:00,30058514,2250.55,Revenue,MEARS GROUP,Physical Disability
Peterborough,http://opendatacommunities.org/id/unitary-authority/peterborough,Peterborough City Council,Business Management and Commercial Operations,Early Years & Quality Improvement,Services,08/01/2016 00:00,30058515,5758.43,Revenue,Castor & Ailsworth Pre School,Grant Payment
Peterborough,http://opendatacommunities.org/id/unitary-authority/peterborough,Peterborough City Council,Business Management and Commercial Operations,Early Years & Quality Improvement,Services,08/01/2016 00:00,30058517,4137.43,Revenue,Dogsthorpe Community Pre-School,Grant Payment
Peterborough,http://opendatacommunities.org/id/unitary-authority/peterborough,Peterborough City Council,Adult Services & Communities - Adults,Independent Sector Placements,Services,08/01/2016 00:00,30058518,774.87,Revenue,MEARS GROUP,Home Care
Peterborough,http://opendatacommunities.org/id/unitary-authority/peterborough,Peterborough City Council,Adult Services & Communities - Adults,Independent Sector Placements,Services,08/01/2016 00:00,30058520,619.16,Revenue,MEARS GROUP,Home Care
Peterborough,http://opendatacommunities.org/id/unitary-authority/peterborough,Peterborough City Council,Adult Services & Communities - Adults,Independent Sector Placements,Services,08/01/2016 00:00,30058521,775.71,Revenue,Avery House (Peterborough) t/a Brighterkind,Residential Care
Peterborough,http://opendatacommunities.org/id/unitary-authority/peterborough,Peterborough City Council,Corporate,Corporate,Capital Expenditure,08/01/2016 00:00,30058522,4558,Capital,Gaswise Services Ltd,Grant Payment
Peterborough,http://opendatacommunities.org/id/unitary-authority/peterborough,Peterborough City Council,Adult Services & Communities - Adults,Independent Sector Placements,Services,08/01/2016 00:00,30058523,1182.18,Revenue,THE TUDORS,Residential Care
Peterborough,http://opendatacommunities.org/id/unitary-authority/peterborough,Peterborough City Council,Adult Services & Communities - Adults,Independent Sector Placements,Services,08/01/2016 00:00,30058528,2369.42,Revenue,Cambridgeshire County Council,Day Care
Peterborough,http://opendatacommunities.org/id/unitary-authority/peterborough,Peterborough City Council,Corporate,Corporate,Capital Expenditure,08/01/2016 00:00,30058543,1718,Capital,Dolphin Mobility East Midlands Ltd,Grant Payment
Peterborough,http://opendatacommunities.org/id/unitary-authority/peterborough,Peterborough City Council,Corporate,Corporate,Capital Expenditure,08/01/2016 00:00,30058544,4347,Capital,Gaswise Services Ltd,Grant Payment
Peterborough,http://opendatacommunities.org/id/unitary-authority/peterborough,Peterborough City Council,Adult Services & Communities - Adults,Independent Sector Placements,Services,08/01/2016 00:00,30058549,2015,Revenue,Klair House Residential Care Homes,Residential Care
Peterborough,http://opendatacommunities.org/id/unitary-authority/peterborough,Peterborough City Council,Adult Services & Communities - Adults,Independent Sector Placements,Services,08/01/2016 00:00,30058551,3576.32,Revenue,GLASALLT FAWR,Residential Care
Peterborough,http://opendatacommunities.org/id/unitary-authority/peterborough,Peterborough City Council,Corporate,Corporate,Capital Expenditure,08/01/2016 00:00,30058552,2710,Capital,Gaswise Services Ltd,Grant Payment
Peterborough,http://opendatacommunities.org/id/unitary-authority/peterborough,Peterborough City Council,Adult Services & Communities - Adults,Community Team,Catering,08/01/2016 00:00,30058554,1220.96,Revenue,ICare GB Ltd,Catering Provisions
Peterborough,http://opendatacommunities.org/id/unitary-authority/peterborough,Peterborough City Council,Children's & Safeguarding,Children's Social Care,Services,08/01/2016 00:00,30058556,1500,Revenue,Peterborough United Football Club,Advertising
Peterborough,http://opendatacommunities.org/id/unitary-authority/peterborough,Peterborough City Council,Adult Services & Communities - Adults,Independent Sector Placements,Services,08/01/2016 00:00,30058557,572.4,Revenue,Thera East Anglia,Day Care
Peterborough,http://opendatacommunities.org/id/unitary-authority/peterborough,Peterborough City Council,Adult Services & Communities - Adults,Independent Sector Placements,Services,08/01/2016 00:00,30058561,1653.6,Revenue,Thera East Anglia,Day Care
Peterborough,http://opendatacommunities.org/id/unitary-authority/peterborough,Peterborough City Council,Adult Services & Communities - Adults,Independent Sector Placements,Services,08/01/2016 00:00,30058563,1476,Revenue,Thera East Anglia,Day Care
Peterborough,http://opendatacommunities.org/id/unitary-authority/peterborough,Peterborough City Council,Adult Services & Communities - Adults,Independent Sector Placements,Services,08/01/2016 00:00,30058564,2857.72,Revenue,Action on Hearing Loss,Residential Care
Peterborough,http://opendatacommunities.org/id/unitary-authority/peterborough,Peterborough City Council,Adult Services & Communities - Adults,Independent Sector Placements,Services,08/01/2016 00:00,30058565,2364.13,Revenue,Quantum Care,Residential Care
Peterborough,http://opendatacommunities.org/id/unitary-authority/peterborough,Peterborough City Council,Adult Services & Communities - Adults,Independent Sector Placements,Services,08/01/2016 00:00,30058585,2013,Revenue,Allied Healthcare (UK) Ltd,Home Care
Peterborough,http://opendatacommunities.org/id/unitary-authority/peterborough,Peterborough City Council,Adult Services & Communities - Adults,Independent Sector Placements,Services,08/01/2016 00:00,30058586,2131.8,Revenue,Allied Healthcare (UK) Ltd,Home Care
Peterborough,http://opendatacommunities.org/id/unitary-authority/peterborough,Peterborough City Council,Adult Services & Communities - Adults,Independent Sector Placements,Services,08/01/2016 00:00,30058587,2742.3,Revenue,Allied Healthcare (UK) Ltd,Home Care
Peterborough,http://opendatacommunities.org/id/unitary-authority/peterborough,Peterborough City Council,Business Management and Commercial Operations,Clare Lodge,Agency Staff,08/01/2016 00:00,30058588,628,Revenue,Textbook Teachers,Supply Teachers
Peterborough,http://opendatacommunities.org/id/unitary-authority/peterborough,Peterborough City Council,Adult Services & Communities - Adults,Mental Health,Services,08/01/2016 00:00,30058597,13867.62,Revenue,Adult Social Care Consultancy Ltd,Consultants Fees
Peterborough,http://opendatacommunities.org/id/unitary-authority/peterborough,Peterborough City Council,Adult Services & Communities - Adults,Mental Health,Services,08/01/2016 00:00,30058598,9428.86,Revenue,Adult Social Care Consultancy Ltd,Consultants Fees
Peterborough,http://opendatacommunities.org/id/unitary-authority/peterborough,Peterborough City Council,Adult Services & Communities - Adults,Therapy/Reablement/Community Equipment,Agency Staff,08/01/2016 00:00,30058611,1221,Revenue,SWP Consulting,External Temporary Staff
Peterborough,http://opendatacommunities.org/id/unitary-authority/peterborough,Peterborough City Council,"Cemeteries, Cremation & Registrars",Bereavement Service,Services,08/01/2016 00:00,30058616,547,Revenue,"Strickland, Mr A M",Special Projects
Peterborough,http://opendatacommunities.org/id/unitary-authority/peterborough,Peterborough City Council,Vivacity/Cultural Services,Cultural Services,Services,08/01/2016 00:00,30058617,750,Revenue,Beat This CIC,Hired Services
Peterborough,http://opendatacommunities.org/id/unitary-authority/peterborough,Peterborough City Council,Vivacity/Cultural Services,Cultural Services,Services,08/01/2016 00:00,30058618,721.25,Revenue,Beat This CIC,Hired Services
Peterborough,http://opendatacommunities.org/id/unitary-authority/peterborough,Peterborough City Council,Vivacity/Cultural Services,Cultural Services,Services,08/01/2016 00:00,30058619,1645,Revenue,Beat This CIC,Hired Services
Peterborough,http://opendatacommunities.org/id/unitary-authority/peterborough,Peterborough City Council,Adult Services & Communities - Adults,Therapy/Reablement/Community Equipment,Services,08/01/2016 00:00,30058621,1365,Revenue,Care & Independence Systems Ltd,Occupational Therapy Equipment
Peterborough,http://opendatacommunities.org/id/unitary-authority/peterborough,Peterborough City Council,Children's & Safeguarding,Access to Resources & Specialist Commissioning,Services,08/01/2016 00:00,30058631,927.5,Revenue,Archways Care Limited,Boarding Out Allowances
Peterborough,http://opendatacommunities.org/id/unitary-authority/peterborough,Peterborough City Council,Corporate,Corporate,Capital Expenditure,08/01/2016 00:00,30058642,520459.05,Capital,Allia Ltd,Building And Site Works
Peterborough,http://opendatacommunities.org/id/unitary-authority/peterborough,Peterborough City Council,Education,Home to School Transport,Transport,08/01/2016 00:00,8000051686,843.64,Revenue,Ash School Transport,Hired Transport
Peterborough,http://opendatacommunities.org/id/unitary-authority/peterborough,Peterborough City Council,Business Management and Commercial Operations,Business Management and Commercial Operations,Transport,08/01/2016 00:00,8000051761,686.6,Revenue,A2B Euro Cars,Hired Transport
Peterborough,http://opendatacommunities.org/id/unitary-authority/peterborough,Peterborough City Council,Business Management and Commercial Operations,Business Management and Commercial Operations,Transport,08/01/2016 00:00,8000051762,714.8,Revenue,A2B Euro Cars,Hired Transport
Peterborough,http://opendatacommunities.org/id/unitary-authority/peterborough,Peterborough City Council,Peterborough Highway Services,Transport & Infrastructure Commissioning,Services,08/01/2016 00:00,8000051763,888.4,Revenue,A2B Euro Cars,Hired Transport
Peterborough,http://opendatacommunities.org/id/unitary-authority/peterborough,Peterborough City Council,Business Management and Commercial Operations,Business Management and Commercial Operations,Transport,08/01/2016 00:00,8000051765,688,Revenue,A2B Euro Cars,Hired Transport
Peterborough,http://opendatacommunities.org/id/unitary-authority/peterborough,Peterborough City Council,Business Management and Commercial Operations,Business Management and Commercial Operations,Transport,08/01/2016 00:00,8000051766,832,Revenue,A2B Euro Cars,Hired Transport
Peterborough,http://opendatacommunities.org/id/unitary-authority/peterborough,Peterborough City Council,Business Management and Commercial Operations,Business Management and Commercial Operations,Transport,08/01/2016 00:00,8000051767,745,Revenue,A2B Euro Cars,Hired Transport
Peterborough,http://opendatacommunities.org/id/unitary-authority/peterborough,Peterborough City Council,Business Management and Commercial Operations,Business Management and Commercial Operations,Transport,08/01/2016 00:00,8000051768,832,Revenue,A2B Euro Cars,Hired Transport
Peterborough,http://opendatacommunities.org/id/unitary-authority/peterborough,Peterborough City Council,Business Management and Commercial Operations,Business Management and Commercial Operations,Transport,08/01/2016 00:00,8000051769,800,Revenue,A2B Euro Cars,Hired Transport
Peterborough,http://opendatacommunities.org/id/unitary-authority/peterborough,Peterborough City Council,Business Management and Commercial Operations,Business Management and Commercial Operations,Transport,08/01/2016 00:00,8000051770,623.62,Revenue,Redacted Personal Data,Hired Transport
Peterborough,http://opendatacommunities.org/id/unitary-authority/peterborough,Peterborough City Council,Business Management and Commercial Operations,Business Management and Commercial Operations,Transport,08/01/2016 00:00,8000051771,1048.5,Revenue,Redacted Personal Data,Hired Transport
Peterborough,http://opendatacommunities.org/id/unitary-authority/peterborough,Peterborough City Council,Adult Services & Communities - Adults,Independent Sector Placements,Services,08/01/2016 00:00,8000051799,1236.74,Revenue,Redacted Personal Data,Adult Social Care Direct Payment
Peterborough,http://opendatacommunities.org/id/unitary-authority/peterborough,Peterborough City Council,Adult Services & Communities - Adults,Independent Sector Placements,Services,08/01/2016 00:00,8000051800,2071.5,Revenue,Redacted Personal Data,Adult Social Care Direct Payment
Peterborough,http://opendatacommunities.org/id/unitary-authority/peterborough,Peterborough City Council,Adult Services & Communities - Adults,Independent Sector Placements,Services,08/01/2016 00:00,8000051801,619.26,Revenue,Redacted Personal Data,Adult Social Care Direct Payment
Peterborough,http://opendatacommunities.org/id/unitary-authority/peterborough,Peterborough City Council,Adult Services & Communities - Adults,Independent Sector Placements,Services,08/01/2016 00:00,8000051802,3901.28,Revenue,Redacted Personal Data,Adult Social Care Direct Payment
Peterborough,http://opendatacommunities.org/id/unitary-authority/peterborough,Peterborough City Council,Adult Services & Communities - Adults,Independent Sector Placements,Services,08/01/2016 00:00,8000051805,43147.92,Revenue,Redacted Personal Data,Adult Social Care Direct Payment
Peterborough,http://opendatacommunities.org/id/unitary-authority/peterborough,Peterborough City Council,Adult Services & Communities - Adults,Independent Sector Placements,Services,08/01/2016 00:00,8000051807,1351.84,Revenue,Redacted Personal Data,Adult Social Care Direct Payment
Peterborough,http://opendatacommunities.org/id/unitary-authority/peterborough,Peterborough City Council,Adult Services & Communities - Adults,Independent Sector Placements,Services,08/01/2016 00:00,8000051809,8875.96,Revenue,Redacted Personal Data,Adult Social Care Direct Payment
Peterborough,http://opendatacommunities.org/id/unitary-authority/peterborough,Peterborough City Council,Adult Services & Communities - Adults,Independent Sector Placements,Services,08/01/2016 00:00,8000051810,1200.89,Revenue,Redacted Personal Data,Adult Social Care Direct Payment
Peterborough,http://opendatacommunities.org/id/unitary-authority/peterborough,Peterborough City Council,Education,Home to School Transport,Transport,08/01/2016 00:00,8000051815,672,Revenue,A2B Euro Cars,Hired Transport
Peterborough,http://opendatacommunities.org/id/unitary-authority/peterborough,Peterborough City Council,Education,Home to School Transport,Transport,08/01/2016 00:00,8000051816,2490,Revenue,A2B Euro Cars,Hired Transport
Peterborough,http://opendatacommunities.org/id/unitary-authority/peterborough,Peterborough City Council,Education,Home to School Transport,Transport,08/01/2016 00:00,8000051828,1971.5,Revenue,Peterborough Cars,Hired Transport
Peterborough,http://opendatacommunities.org/id/unitary-authority/peterborough,Peterborough City Council,Education,Home to School Transport,Transport,08/01/2016 00:00,8000051829,943.84,Revenue,Peterborough Cars,Hired Transport
Peterborough,http://opendatacommunities.org/id/unitary-authority/peterborough,Peterborough City Council,Education,Home to School Transport,Transport,08/01/2016 00:00,8000051830,1158,Revenue,Peterborough Cars,Hired Transport
Peterborough,http://opendatacommunities.org/id/unitary-authority/peterborough,Peterborough City Council,Education,Home to School Transport,Transport,08/01/2016 00:00,8000051831,1274.83,Revenue,Peterborough Cars,Hired Transport
Peterborough,http://opendatacommunities.org/id/unitary-authority/peterborough,Peterborough City Council,Education,Home to School Transport,Transport,08/01/2016 00:00,8000051832,1574.79,Revenue,Peterborough Cars,Hired Transport
Peterborough,http://opendatacommunities.org/id/unitary-authority/peterborough,Peterborough City Council,Education,Home to School Transport,Transport,08/01/2016 00:00,8000051834,575.65,Revenue,Peterborough Cars,Hired Transport
Peterborough,http://opendatacommunities.org/id/unitary-authority/peterborough,Peterborough City Council,Education,Home to School Transport,Transport,08/01/2016 00:00,8000051835,1284.36,Revenue,Peterborough Cars,Hired Transport
Peterborough,http://opendatacommunities.org/id/unitary-authority/peterborough,Peterborough City Council,Education,Home to School Transport,Transport,08/01/2016 00:00,8000051836,2357.16,Revenue,Peterborough Cars,Hired Transport
Peterborough,http://opendatacommunities.org/id/unitary-authority/peterborough,Peterborough City Council,Education,Home to School Transport,Transport,08/01/2016 00:00,8000051837,2378.25,Revenue,Goldstar Cabs Ltd,Hired Transport
Peterborough,http://opendatacommunities.org/id/unitary-authority/peterborough,Peterborough City Council,Education,Home to School Transport,Transport,08/01/2016 00:00,8000051838,1156,Revenue,Goldstar Cabs Ltd,Hired Transport
Peterborough,http://opendatacommunities.org/id/unitary-authority/peterborough,Peterborough City Council,Education,Home to School Transport,Transport,08/01/2016 00:00,8000051839,1974.5,Revenue,Goldstar Cabs Ltd,Hired Transport
Peterborough,http://opendatacommunities.org/id/unitary-authority/peterborough,Peterborough City Council,Business Management and Commercial Operations,Business Management and Commercial Operations,Transport,08/01/2016 00:00,8000051846,730.87,Revenue,Redacted Personal Data,Hired Transport
Peterborough,http://opendatacommunities.org/id/unitary-authority/peterborough,Peterborough City Council,Business Management and Commercial Operations,Business Management and Commercial Operations,Transport,08/01/2016 00:00,8000051847,1532.87,Revenue,Redacted Personal Data,Hired Transport
Peterborough,http://opendatacommunities.org/id/unitary-authority/peterborough,Peterborough City Council,Business Management and Commercial Operations,Business Management and Commercial Operations,Transport,08/01/2016 00:00,8000051850,819,Revenue,Redacted Personal Data,Hired Transport
Peterborough,http://opendatacommunities.org/id/unitary-authority/peterborough,Peterborough City Council,Business Management and Commercial Operations,Business Management and Commercial Operations,Transport,08/01/2016 00:00,8000051851,1348.87,Revenue,Redacted Personal Data,Hired Transport
Peterborough,http://opendatacommunities.org/id/unitary-authority/peterborough,Peterborough City Council,Adult Services & Communities - Adults,Independent Sector Placements,Services,11/01/2016 00:00,30049002,6678.4,Revenue,Augusta Care Ltd,Home Care
Peterborough,http://opendatacommunities.org/id/unitary-authority/peterborough,Peterborough City Council,Adult Services & Communities - Adults,Independent Sector Placements,Services,11/01/2016 00:00,30049010,4430.4,Revenue,Augusta Care Ltd,Home Care
Peterborough,http://opendatacommunities.org/id/unitary-authority/peterborough,Peterborough City Council,Adult Services & Communities - Adults,Independent Sector Placements,Services,11/01/2016 00:00,30049013,3994.8,Revenue,Augusta Care Ltd,Home Care
Peterborough,http://opendatacommunities.org/id/unitary-authority/peterborough,Peterborough City Council,Adult Services & Communities - Adults,Independent Sector Placements,Services,11/01/2016 00:00,30049087,1056,Revenue,Augusta Care Ltd,Home Care
Peterborough,http://opendatacommunities.org/id/unitary-authority/peterborough,Peterborough City Council,Public Health,Business Management and Commercial Operations - Public Health,Services,11/01/2016 00:00,30051759,715,Revenue,BOOTS MIDNIGHT PHARMACY (Bretton Centre),Third Party Payments - Contract
Peterborough,http://opendatacommunities.org/id/unitary-authority/peterborough,Peterborough City Council,Public Health,Business Management and Commercial Operations - Public Health,Services,11/01/2016 00:00,30052311,642,Revenue,Boots Queensgate,Third Party Payments - Contract
Peterborough,http://opendatacommunities.org/id/unitary-authority/peterborough,Peterborough City Council,Public Health,Business Management and Commercial Operations - Public Health,Services,11/01/2016 00:00,30052313,1327.5,Revenue,ASDA PHARMACY PETERBOROUGH,Third Party Payments - Contract
Peterborough,http://opendatacommunities.org/id/unitary-authority/peterborough,Peterborough City Council,Public Health,Business Management and Commercial Operations - Public Health,Services,11/01/2016 00:00,30052314,1473,Revenue,ASDA PHARMACY PETERBOROUGH,Third Party Payments - Contract
Peterborough,http://opendatacommunities.org/id/unitary-authority/peterborough,Peterborough City Council,Children's & Safeguarding,Access to Resources & Specialist Commissioning,Services,11/01/2016 00:00,30052686,3002.57,Revenue,Pride Fostering,Boarding Out Allowances
Peterborough,http://opendatacommunities.org/id/unitary-authority/peterborough,Peterborough City Council,Public Health,Business Management and Commercial Operations - Public Health,Services,11/01/2016 00:00,30053839,1523.18,Revenue,Cambridgeshire Community Services,Grant-Third Party
Peterborough,http://opendatacommunities.org/id/unitary-authority/peterborough,Peterborough City Council,Vivacity/Cultural Services,Cultural Services,Energy Costs,11/01/2016 00:00,30055691,1796.27,Revenue,Corona Energy Retail 4 Limited,Gas
Peterborough,http://opendatacommunities.org/id/unitary-authority/peterborough,Peterborough City Council,Corporate,Corporate,Capital Expenditure,11/01/2016 00:00,30056102,8925,Capital,Commercial Rope Access Ltd,Building And Site Works
Peterborough,http://opendatacommunities.org/id/unitary-authority/peterborough,Peterborough City Council,Information & Computer Technology,ICT,Services,11/01/2016 00:00,30056305,9732.46,Revenue,Serco Ltd,Mobile Telephones
Peterborough,http://opendatacommunities.org/id/unitary-authority/peterborough,Peterborough City Council,Legal & Democratic,Democratic Services,Services,11/01/2016 00:00,30056308,979.61,Revenue,Serco Ltd,Mobile Telephones
Peterborough,http://opendatacommunities.org/id/unitary-authority/peterborough,Peterborough City Council,Chief Executive,Chief Executive,Services,11/01/2016 00:00,30056308,2080.37,Revenue,Serco Ltd,Mobile Telephones
Peterborough,http://opendatacommunities.org/id/unitary-authority/peterborough,Peterborough City Council,Corporate Items,Corporate Services,Services,11/01/2016 00:00,30056308,1381.5,Revenue,Serco Ltd,Mobile Telephones
Peterborough,http://opendatacommunities.org/id/unitary-authority/peterborough,Peterborough City Council,Director's Office,Director's Office,Services,11/01/2016 00:00,30056308,1100.55,Revenue,Serco Ltd,Mobile Telephones
Peterborough,http://opendatacommunities.org/id/unitary-authority/peterborough,Peterborough City Council,Various,Various,Services,11/01/2016 00:00,30056308,6216.26,Revenue,Serco Ltd,Mobile Telephones
Peterborough,http://opendatacommunities.org/id/unitary-authority/peterborough,Peterborough City Council,Vivacity/Cultural Services,Cultural Services,Services,11/01/2016 00:00,30056308,639.95,Revenue,Serco Ltd,Mobile Telephones
Peterborough,http://opendatacommunities.org/id/unitary-authority/peterborough,Peterborough City Council,Education,Schools,Services,11/01/2016 00:00,30056312,1264.6,Revenue,Serco Ltd,Computer Consumables
Peterborough,http://opendatacommunities.org/id/unitary-authority/peterborough,Peterborough City Council,Business Management and Commercial Operations,Commissioning,Services,11/01/2016 00:00,30056693,2070,Revenue,BDP Social Care Ltd,Purchased Social Care Services
Peterborough,http://opendatacommunities.org/id/unitary-authority/peterborough,Peterborough City Council,Children's & Safeguarding,Access to Resources & Specialist Commissioning,Services,11/01/2016 00:00,30057482,3556.01,Revenue,Foster Care Associates Ltd FCA,Boarding Out Allowances
Peterborough,http://opendatacommunities.org/id/unitary-authority/peterborough,Peterborough City Council,Children's & Safeguarding,Access to Resources & Specialist Commissioning,Services,11/01/2016 00:00,30057483,3484.89,Revenue,Foster Care Associates Ltd FCA,Boarding Out Allowances
Peterborough,http://opendatacommunities.org/id/unitary-authority/peterborough,Peterborough City Council,Children's & Safeguarding,Access to Resources & Specialist Commissioning,Services,11/01/2016 00:00,30057484,3484.89,Revenue,Foster Care Associates Ltd FCA,Boarding Out Allowances
Peterborough,http://opendatacommunities.org/id/unitary-authority/peterborough,Peterborough City Council,Children's & Safeguarding,Access to Resources & Specialist Commissioning,Services,11/01/2016 00:00,30057485,4096.34,Revenue,Foster Care Associates Ltd FCA,Boarding Out Allowances
Peterborough,http://opendatacommunities.org/id/unitary-authority/peterborough,Peterborough City Council,Children's & Safeguarding,Access to Resources & Specialist Commissioning,Services,11/01/2016 00:00,30057486,4379.99,Revenue,Foster Care Associates Ltd FCA,Boarding Out Allowances
Peterborough,http://opendatacommunities.org/id/unitary-authority/peterborough,Peterborough City Council,Children's & Safeguarding,Access to Resources & Specialist Commissioning,Services,11/01/2016 00:00,30057487,3556.01,Revenue,Foster Care Associates Ltd FCA,Boarding Out Allowances
Peterborough,http://opendatacommunities.org/id/unitary-authority/peterborough,Peterborough City Council,Children's & Safeguarding,Access to Resources & Specialist Commissioning,Services,11/01/2016 00:00,30057489,3556.01,Revenue,Foster Care Associates Ltd FCA,Boarding Out Allowances
Peterborough,http://opendatacommunities.org/id/unitary-authority/peterborough,Peterborough City Council,Children's & Safeguarding,Access to Resources & Specialist Commissioning,Services,11/01/2016 00:00,30057491,3052.57,Revenue,Foster Care Associates Ltd FCA,Boarding Out Allowances
Peterborough,http://opendatacommunities.org/id/unitary-authority/peterborough,Peterborough City Council,Children's & Safeguarding,Access to Resources & Specialist Commissioning,Services,11/01/2016 00:00,30057492,3449.03,Revenue,Foster Care Associates Ltd FCA,Boarding Out Allowances
Peterborough,http://opendatacommunities.org/id/unitary-authority/peterborough,Peterborough City Council,Children's & Safeguarding,Access to Resources & Specialist Commissioning,Services,11/01/2016 00:00,30057496,4096.34,Revenue,Foster Care Associates Ltd FCA,Boarding Out Allowances
Peterborough,http://opendatacommunities.org/id/unitary-authority/peterborough,Peterborough City Council,Children's & Safeguarding,Access to Resources & Specialist Commissioning,Services,11/01/2016 00:00,30057499,4248.55,Revenue,Foster Care Associates Ltd FCA,Boarding Out Allowances
Peterborough,http://opendatacommunities.org/id/unitary-authority/peterborough,Peterborough City Council,Children's & Safeguarding,Access to Resources & Specialist Commissioning,Services,11/01/2016 00:00,30057509,3554.46,Revenue,Fostering Solutions,Boarding Out Allowances
Peterborough,http://opendatacommunities.org/id/unitary-authority/peterborough,Peterborough City Council,Children's & Safeguarding,Access to Resources & Specialist Commissioning,Services,11/01/2016 00:00,30057512,3122.01,Revenue,Fostering Solutions,Boarding Out Allowances
Peterborough,http://opendatacommunities.org/id/unitary-authority/peterborough,Peterborough City Council,Children's & Safeguarding,Access to Resources & Specialist Commissioning,Services,11/01/2016 00:00,30057514,3376.74,Revenue,Fostering Solutions,Boarding Out Allowances
Peterborough,http://opendatacommunities.org/id/unitary-authority/peterborough,Peterborough City Council,Children's & Safeguarding,Access to Resources & Specialist Commissioning,Services,11/01/2016 00:00,30057517,2886.41,Revenue,Fostering Solutions,Boarding Out Allowances
Peterborough,http://opendatacommunities.org/id/unitary-authority/peterborough,Peterborough City Council,Adult Services & Communities - Adults,Independent Sector Placements,Services,11/01/2016 00:00,30057542,688.2,Revenue,Select Support Partnerships Limited,Home Care
Peterborough,http://opendatacommunities.org/id/unitary-authority/peterborough,Peterborough City Council,Adult Services & Communities - Adults,Independent Sector Placements,Services,11/01/2016 00:00,30057546,1407.4,Revenue,Select Support Partnerships Limited,Home Care
Peterborough,http://opendatacommunities.org/id/unitary-authority/peterborough,Peterborough City Council,Adult Services & Communities - Adults,Independent Sector Placements,Services,11/01/2016 00:00,30057550,607.6,Revenue,Select Support Partnerships Limited,Home Care
Peterborough,http://opendatacommunities.org/id/unitary-authority/peterborough,Peterborough City Council,Adult Services & Communities - Adults,Independent Sector Placements,Services,11/01/2016 00:00,30057557,892.8,Revenue,Select Support Partnerships Limited,Home Care
Peterborough,http://opendatacommunities.org/id/unitary-authority/peterborough,Peterborough City Council,Adult Services & Communities - Adults,Independent Sector Placements,Services,11/01/2016 00:00,30057558,675.8,Revenue,Select Support Partnerships Limited,Home Care
Peterborough,http://opendatacommunities.org/id/unitary-authority/peterborough,Peterborough City Council,Adult Services & Communities - Adults,Independent Sector Placements,Services,11/01/2016 00:00,30057561,706.8,Revenue,Select Support Partnerships Limited,Home Care
Peterborough,http://opendatacommunities.org/id/unitary-authority/peterborough,Peterborough City Council,Adult Services & Communities - Adults,Independent Sector Placements,Services,11/01/2016 00:00,30057562,694.4,Revenue,Select Support Partnerships Limited,Home Care
Peterborough,http://opendatacommunities.org/id/unitary-authority/peterborough,Peterborough City Council,Adult Services & Communities - Adults,Independent Sector Placements,Services,11/01/2016 00:00,30057564,520.8,Revenue,Select Support Partnerships Limited,Home Care
Peterborough,http://opendatacommunities.org/id/unitary-authority/peterborough,Peterborough City Council,Adult Services & Communities - Adults,Independent Sector Placements,Services,11/01/2016 00:00,30057567,607.6,Revenue,Select Support Partnerships Limited,Home Care
Peterborough,http://opendatacommunities.org/id/unitary-authority/peterborough,Peterborough City Council,Adults and Communities - Communities,Youth / Youth Offending,Services,11/01/2016 00:00,30057635,3039.2,Revenue,City College Peterborough,Programmes
Peterborough,http://opendatacommunities.org/id/unitary-authority/peterborough,Peterborough City Council,Adult Services & Communities - Adults,Independent Sector Placements,Services,11/01/2016 00:00,30057647,868,Revenue,Select Support Partnerships Limited,Home Care
Peterborough,http://opendatacommunities.org/id/unitary-authority/peterborough,Peterborough City Council,Adult Services & Communities - Adults,Independent Sector Placements,Services,11/01/2016 00:00,30057650,3075.2,Revenue,Select Support Partnerships Limited,Home Care
Peterborough,http://opendatacommunities.org/id/unitary-authority/peterborough,Peterborough City Council,Adult Services & Communities - Adults,Independent Sector Placements,Services,11/01/2016 00:00,30057654,582.8,Revenue,Select Support Partnerships Limited,Home Care
Peterborough,http://opendatacommunities.org/id/unitary-authority/peterborough,Peterborough City Council,Adult Services & Communities - Adults,Independent Sector Placements,Services,11/01/2016 00:00,30057660,520.8,Revenue,Select Support Partnerships Limited,Home Care
Peterborough,http://opendatacommunities.org/id/unitary-authority/peterborough,Peterborough City Council,Adult Services & Communities - Adults,Independent Sector Placements,Services,11/01/2016 00:00,30057662,784.3,Revenue,Select Support Partnerships Limited,Home Care
Peterborough,http://opendatacommunities.org/id/unitary-authority/peterborough,Peterborough City Council,Adult Services & Communities - Adults,Independent Sector Placements,Services,11/01/2016 00:00,30057663,1339.2,Revenue,Select Support Partnerships Limited,Home Care
Peterborough,http://opendatacommunities.org/id/unitary-authority/peterborough,Peterborough City Council,Adult Services & Communities - Adults,Independent Sector Placements,Services,11/01/2016 00:00,30057671,520.8,Revenue,Select Support Partnerships Limited,Home Care
Peterborough,http://opendatacommunities.org/id/unitary-authority/peterborough,Peterborough City Council,Adult Services & Communities - Adults,Independent Sector Placements,Services,11/01/2016 00:00,30057683,837,Revenue,Select Support Partnerships Limited,Home Care
Peterborough,http://opendatacommunities.org/id/unitary-authority/peterborough,Peterborough City Council,Adult Services & Communities - Adults,Independent Sector Placements,Services,11/01/2016 00:00,30057684,502.2,Revenue,Select Support Partnerships Limited,Home Care
Peterborough,http://opendatacommunities.org/id/unitary-authority/peterborough,Peterborough City Council,Adult Services & Communities - Adults,Independent Sector Placements,Services,11/01/2016 00:00,30057689,669.6,Revenue,Select Support Partnerships Limited,Home Care
Peterborough,http://opendatacommunities.org/id/unitary-authority/peterborough,Peterborough City Council,Adult Services & Communities - Adults,Independent Sector Placements,Services,11/01/2016 00:00,30057694,694.4,Revenue,Select Support Partnerships Limited,Home Care
Peterborough,http://opendatacommunities.org/id/unitary-authority/peterborough,Peterborough City Council,Adult Services & Communities - Adults,Independent Sector Placements,Services,11/01/2016 00:00,30057695,1215.2,Revenue,Select Support Partnerships Limited,Home Care
Peterborough,http://opendatacommunities.org/id/unitary-authority/peterborough,Peterborough City Council,Vivacity/Cultural Services,Cultural Services,Repair & Maintenance of Buildings,11/01/2016 00:00,30057848,4250,Revenue,Jones Lang LaSalle,Service Charges - Premises
Peterborough,http://opendatacommunities.org/id/unitary-authority/peterborough,Peterborough City Council,Public Health,Business Management and Commercial Operations - Public Health,Services,11/01/2016 00:00,30058124,884,Revenue,City Pharmacy,Third Party Payments - Contract
Peterborough,http://opendatacommunities.org/id/unitary-authority/peterborough,Peterborough City Council,Adults and Communities - Communities,Housing and Health,Services,11/01/2016 00:00,30058138,850,Revenue,Mohammed Safiq Lettings,Financial Assistance
Peterborough,http://opendatacommunities.org/id/unitary-authority/peterborough,Peterborough City Council,Public Health,Business Management and Commercial Operations - Public Health,Services,11/01/2016 00:00,30058162,1402,Revenue,ASDA PHARMACY PETERBOROUGH,Third Party Payments - Contract
Peterborough,http://opendatacommunities.org/id/unitary-authority/peterborough,Peterborough City Council,Public Health,Housing and Health - Public Health,Services,11/01/2016 00:00,30058495,892.87,Revenue,Graham Young Pharmacy,Third Party Payments - Contract
Peterborough,http://opendatacommunities.org/id/unitary-authority/peterborough,Peterborough City Council,Adult Services & Communities - Adults,Independent Sector Placements,Services,11/01/2016 00:00,30058570,933.2,Revenue,Bluebird Care Peterborough,Home Care
Peterborough,http://opendatacommunities.org/id/unitary-authority/peterborough,Peterborough City Council,Children's & Safeguarding,Access to Resources & Specialist Commissioning,Services,11/01/2016 00:00,30058679,500.03,Revenue,Axiom Housing Association,Boarding Out Allowances
Peterborough,http://opendatacommunities.org/id/unitary-authority/peterborough,Peterborough City Council,Children's & Safeguarding,Access to Resources & Specialist Commissioning,Services,11/01/2016 00:00,30058688,796.91,Revenue,The Beeches (UK) Ltd,Boarding Out Allowances
Peterborough,http://opendatacommunities.org/id/unitary-authority/peterborough,Peterborough City Council,Children's & Safeguarding,Access to Resources & Specialist Commissioning,Services,11/01/2016 00:00,30058690,14875.6,Revenue,The Beeches (UK) Ltd,Boarding Out Allowances
Peterborough,http://opendatacommunities.org/id/unitary-authority/peterborough,Peterborough City Council,Director,Director,Agency Staff,11/01/2016 00:00,30058691,4324.86,Revenue,Terry Reynolds Education Consulting Ltd,External Temporary Staff
Peterborough,http://opendatacommunities.org/id/unitary-authority/peterborough,Peterborough City Council,Adults and Communities - Communities,Youth / Youth Offending,Services,11/01/2016 00:00,30058693,3225,Revenue,C J Camps,Programmes
Peterborough,http://opendatacommunities.org/id/unitary-authority/peterborough,Peterborough City Council,Peterborough Highway Services,Transport & Infrastructure Commissioning,Services,11/01/2016 00:00,30058696,2673,Revenue,Outspoken Cycles,Conferences/Events
Peterborough,http://opendatacommunities.org/id/unitary-authority/peterborough,Peterborough City Council,Adults and Communities - Communities,Housing and Health,Services,11/01/2016 00:00,30058699,695,Revenue,Cloverbrook Property Management Ltd,Financial Assistance
Peterborough,http://opendatacommunities.org/id/unitary-authority/peterborough,Peterborough City Council,Director,Director,Agency Staff,11/01/2016 00:00,30058711,4444.2,Revenue,Terry Reynolds Education Consulting Ltd,External Temporary Staff
Peterborough,http://opendatacommunities.org/id/unitary-authority/peterborough,Peterborough City Council,Adults and Communities - Communities,Housing and Health,Services,11/01/2016 00:00,30058748,1054,Revenue,Handyman Steve,Contractors
Peterborough,http://opendatacommunities.org/id/unitary-authority/peterborough,Peterborough City Council,City Services & Communications,"Markets, Tourism & Events",Services,11/01/2016 00:00,30058752,8059,Revenue,Pearce Hire,Christmas Lights And Equipment
Peterborough,http://opendatacommunities.org/id/unitary-authority/peterborough,Peterborough City Council,"Cemeteries, Cremation & Registrars",Bereavement Service,Grounds Maintenance,11/01/2016 00:00,30058774,840,Revenue,JAT Ingledew,Grounds Maintenance
Peterborough,http://opendatacommunities.org/id/unitary-authority/peterborough,Peterborough City Council,Vivacity/Cultural Services,Cultural Services,Services,11/01/2016 00:00,30058777,1471.33,Revenue,Redacted Personal Data,Hired Services
Peterborough,http://opendatacommunities.org/id/unitary-authority/peterborough,Peterborough City Council,Amey Peterborough & Waste Management,Waste Management,Services,11/01/2016 00:00,30058778,15680,Revenue,H W Martin Waste Ltd,Recycling
Peterborough,http://opendatacommunities.org/id/unitary-authority/peterborough,Peterborough City Council,Amey Peterborough & Waste Management,Waste Management,Services,11/01/2016 00:00,30058780,14707.88,Revenue,H W Martin Waste Ltd,Recycling
Peterborough,http://opendatacommunities.org/id/unitary-authority/peterborough,Peterborough City Council,Business Management and Commercial Operations,Commissioning,Services,11/01/2016 00:00,30058781,1540,Revenue,BDP Social Care Ltd,Purchased Social Care Services
Peterborough,http://opendatacommunities.org/id/unitary-authority/peterborough,Peterborough City Council,Director,Director,Agency Staff,11/01/2016 00:00,30058787,4341.06,Revenue,Terry Reynolds Education Consulting Ltd,External Temporary Staff
Peterborough,http://opendatacommunities.org/id/unitary-authority/peterborough,Peterborough City Council,Director of Governance,Gov HOS,Services,11/01/2016 00:00,30058788,10056.2,Revenue,Iken Business Ltd,Subscriptions
Peterborough,http://opendatacommunities.org/id/unitary-authority/peterborough,Peterborough City Council,Director of Governance,Gov HOS,Services,11/01/2016 00:00,30058789,669.07,Revenue,Iken Business Ltd,Subscriptions
Peterborough,http://opendatacommunities.org/id/unitary-authority/peterborough,Peterborough City Council,Children's & Safeguarding,Adult & Children Safeguarding Board,Interview & Training Expenses,11/01/2016 00:00,30058792,800,Revenue,HHSCC,Training
Peterborough,http://opendatacommunities.org/id/unitary-authority/peterborough,Peterborough City Council,Adults and Communities - Communities,Housing and Health,Services,11/01/2016 00:00,30058794,1462.3,Revenue,Nightingale Services,Contractors
Peterborough,http://opendatacommunities.org/id/unitary-authority/peterborough,Peterborough City Council,Adults and Communities - Communities,Housing and Health,Services,11/01/2016 00:00,30058797,1519.5,Revenue,Nightingale Services,Contractors
Peterborough,http://opendatacommunities.org/id/unitary-authority/peterborough,Peterborough City Council,Business Management and Commercial Operations,Clare Lodge,Services,11/01/2016 00:00,30058808,865,Revenue,Chris Groome Decorating,Premises Repairs & Maintenance
Peterborough,http://opendatacommunities.org/id/unitary-authority/peterborough,Peterborough City Council,Human Resources,HR,Employee Related Expenses,11/01/2016 00:00,30058811,525,Revenue,Kealey-HR,Other Staff Costs
Peterborough,http://opendatacommunities.org/id/unitary-authority/peterborough,Peterborough City Council,Director of Governance,Gov HOS,Services,11/01/2016 00:00,30058814,750,Revenue,Lawyers in Local Government (LLG),Conferences/Events
Peterborough,http://opendatacommunities.org/id/unitary-authority/peterborough,Peterborough City Council,Amey Peterborough & Waste Management,Waste Management,Services,11/01/2016 00:00,30058815,14695.81,Revenue,Material Change Ltd,Waste Disposal
Peterborough,http://opendatacommunities.org/id/unitary-authority/peterborough,Peterborough City Council,Children's & Safeguarding,Access to Resources & Specialist Commissioning,Services,11/01/2016 00:00,30058817,1062,Revenue,Linkage Community Trust Limited,Boarding Out Allowances
Peterborough,http://opendatacommunities.org/id/unitary-authority/peterborough,Peterborough City Council,Education,Home to School Transport,Transport,11/01/2016 00:00,8000051852,794.59,Revenue,Peterborough Cars,Hired Transport
Peterborough,http://opendatacommunities.org/id/unitary-authority/peterborough,Peterborough City Council,Education,Home to School Transport,Transport,11/01/2016 00:00,8000051853,2815,Revenue,Peterborough Cars,Hired Transport
Peterborough,http://opendatacommunities.org/id/unitary-authority/peterborough,Peterborough City Council,Education,Home to School Transport,Transport,11/01/2016 00:00,8000051854,3033,Revenue,Peterborough Cars,Hired Transport
Peterborough,http://opendatacommunities.org/id/unitary-authority/peterborough,Peterborough City Council,Education,Home to School Transport,Transport,11/01/2016 00:00,8000051858,1486,Revenue,Goldstar Cabs Ltd,Hired Transport
Peterborough,http://opendatacommunities.org/id/unitary-authority/peterborough,Peterborough City Council,Education,Home to School Transport,Transport,11/01/2016 00:00,8000051860,2572.5,Revenue,Goldstar Cabs Ltd,Hired Transport
Peterborough,http://opendatacommunities.org/id/unitary-authority/peterborough,Peterborough City Council,Education,Home to School Transport,Transport,11/01/2016 00:00,8000051876,676,Revenue,Redacted Personal Data,Hired Transport
Peterborough,http://opendatacommunities.org/id/unitary-authority/peterborough,Peterborough City Council,Corporate,Corporate,Services,13/01/2016 00:00,30045618,-969.28,Revenue,Zurich Insurance Company,Insurance Premiums
Peterborough,http://opendatacommunities.org/id/unitary-authority/peterborough,Peterborough City Council,Children's & Safeguarding,Access to Resources & Specialist Commissioning,Services,13/01/2016 00:00,30052660,3002.57,Revenue,Pride Fostering,Boarding Out Allowances
Peterborough,http://opendatacommunities.org/id/unitary-authority/peterborough,Peterborough City Council,Adults and Communities - Communities,Housing and Health,Agency Staff,13/01/2016 00:00,30052823,788.13,Revenue,Reed Specialist Recruitment,External Temporary Staff
Peterborough,http://opendatacommunities.org/id/unitary-authority/peterborough,Peterborough City Council,Adult Services & Communities - Adults,Independent Sector Placements,Services,13/01/2016 00:00,30056278,990.64,Revenue,Avery House (Peterborough) t/a Brighterkind,Residential Care
Peterborough,http://opendatacommunities.org/id/unitary-authority/peterborough,Peterborough City Council,Legal & Democratic,Elections,Services,13/01/2016 00:00,30056803,750,Revenue,"Straker, Mr Timothy QC",Legal Costs
Peterborough,http://opendatacommunities.org/id/unitary-authority/peterborough,Peterborough City Council,Children's & Safeguarding,Children's Social Care,Agency Staff,13/01/2016 00:00,30056883,1302.4,Revenue,Medicare First,External Temporary Staff
Peterborough,http://opendatacommunities.org/id/unitary-authority/peterborough,Peterborough City Council,Adult Services & Communities - Adults,Day Opportunities / In House,Agency Staff,13/01/2016 00:00,30056921,715.8,Revenue,Medicare First,External Temporary Staff
Peterborough,http://opendatacommunities.org/id/unitary-authority/peterborough,Peterborough City Council,Children's & Safeguarding,Children's Social Care,Agency Staff,13/01/2016 00:00,30056922,1400,Revenue,Medicare First,External Temporary Staff
Peterborough,http://opendatacommunities.org/id/unitary-authority/peterborough,Peterborough City Council,Adult Services & Communities - Adults,Day Opportunities / In House,Agency Staff,13/01/2016 00:00,30057099,1295,Revenue,Caritas Recruitment,External Temporary Staff
Peterborough,http://opendatacommunities.org/id/unitary-authority/peterborough,Peterborough City Council,Children's & Safeguarding,Access to Resources & Specialist Commissioning,Schools,13/01/2016 00:00,30057157,3671,Revenue,Kirkstone House School,Boarding Out Allowances
Peterborough,http://opendatacommunities.org/id/unitary-authority/peterborough,Peterborough City Council,Children's & Safeguarding,Access to Resources & Specialist Commissioning,Schools,13/01/2016 00:00,30057160,3671,Revenue,Kirkstone House School,Boarding Out Allowances
Peterborough,http://opendatacommunities.org/id/unitary-authority/peterborough,Peterborough City Council,Adult Services & Communities - Adults,Day Opportunities / In House,Agency Staff,13/01/2016 00:00,30057410,1295,Revenue,Caritas Recruitment,External Temporary Staff
Peterborough,http://opendatacommunities.org/id/unitary-authority/peterborough,Peterborough City Council,Children's & Safeguarding,Children's Social Care,Agency Staff,13/01/2016 00:00,30057498,1602.85,Revenue,Pulse,External Temporary Staff
Peterborough,http://opendatacommunities.org/id/unitary-authority/peterborough,Peterborough City Council,Adult Services & Communities - Adults,Day Opportunities / In House,Agency Staff,13/01/2016 00:00,30057500,515.1,Revenue,Pulse,External Temporary Staff
Peterborough,http://opendatacommunities.org/id/unitary-authority/peterborough,Peterborough City Council,Corporate Property,Office Accomodation,Services,13/01/2016 00:00,30057612,7051.97,Revenue,GSL Dardan Ltd,Security
Peterborough,http://opendatacommunities.org/id/unitary-authority/peterborough,Peterborough City Council,City Services & Communications,"CCTV, Resilience & Health & Safety",Services,13/01/2016 00:00,30057722,608.5,Revenue,Quadrant Security Group Ltd,Cctv
Peterborough,http://opendatacommunities.org/id/unitary-authority/peterborough,Peterborough City Council,Education,Special Educational Needs / Inclusion,Services,13/01/2016 00:00,30057740,1060,Revenue,Top Class Tutors,Education Expenses
Peterborough,http://opendatacommunities.org/id/unitary-authority/peterborough,Peterborough City Council,Business Management and Commercial Operations,Early Years & Quality Improvement,Services,13/01/2016 00:00,30057833,872.02,Revenue,Redacted Personal Data,Grant Payment
Peterborough,http://opendatacommunities.org/id/unitary-authority/peterborough,Peterborough City Council,Adult Services & Communities - Adults,Day Opportunities / In House,Agency Staff,13/01/2016 00:00,30058087,1295,Revenue,Caritas Recruitment,External Temporary Staff
Peterborough,http://opendatacommunities.org/id/unitary-authority/peterborough,Peterborough City Council,Public Health,Business Management and Commercial Operations - Public Health,Services,13/01/2016 00:00,30058130,1120,Revenue,Guy's and St Thomas' NHS FT,Third Party Payments - Contract
Peterborough,http://opendatacommunities.org/id/unitary-authority/peterborough,Peterborough City Council,Adult Services & Communities - Adults,Independent Sector Placements,Services,13/01/2016 00:00,30058218,1370.57,Revenue,BUPA Care Homes,Residential Care
Peterborough,http://opendatacommunities.org/id/unitary-authority/peterborough,Peterborough City Council,Adult Services & Communities - Adults,Independent Sector Placements,Services,13/01/2016 00:00,30058221,3152,Revenue,BUPA Care Homes,Residential Care
Peterborough,http://opendatacommunities.org/id/unitary-authority/peterborough,Peterborough City Council,Adult Services & Communities - Adults,Independent Sector Placements,Services,13/01/2016 00:00,30058223,2120.92,Revenue,BUPA Care Homes,Residential Care
Peterborough,http://opendatacommunities.org/id/unitary-authority/peterborough,Peterborough City Council,Adult Services & Communities - Adults,Independent Sector Placements,Services,13/01/2016 00:00,30058225,2245.68,Revenue,BUPA Care Homes,Residential Care
Peterborough,http://opendatacommunities.org/id/unitary-authority/peterborough,Peterborough City Council,Adult Services & Communities - Adults,Independent Sector Placements,Services,13/01/2016 00:00,30058227,2006.8,Revenue,BUPA Care Homes,Residential Care
Peterborough,http://opendatacommunities.org/id/unitary-authority/peterborough,Peterborough City Council,Adult Services & Communities - Adults,Independent Sector Placements,Services,13/01/2016 00:00,30058228,1610.8,Revenue,BUPA Care Homes,Residential Care
Peterborough,http://opendatacommunities.org/id/unitary-authority/peterborough,Peterborough City Council,Adult Services & Communities - Adults,Independent Sector Placements,Services,13/01/2016 00:00,30058229,-1370.57,Revenue,BUPA Care Homes,Residential Care
Peterborough,http://opendatacommunities.org/id/unitary-authority/peterborough,Peterborough City Council,Adult Services & Communities - Adults,Independent Sector Placements,Services,13/01/2016 00:00,30058232,2203.08,Revenue,BUPA Care Homes,Residential Care
Peterborough,http://opendatacommunities.org/id/unitary-authority/peterborough,Peterborough City Council,Adult Services & Communities - Adults,Independent Sector Placements,Services,13/01/2016 00:00,30058243,1152.36,Revenue,FIELD HOUSE (EYE) LTD,Residential Care
Peterborough,http://opendatacommunities.org/id/unitary-authority/peterborough,Peterborough City Council,Adult Services & Communities - Adults,Independent Sector Placements,Services,13/01/2016 00:00,30058244,996.92,Revenue,FIELD HOUSE (EYE) LTD,Residential Care
Peterborough,http://opendatacommunities.org/id/unitary-authority/peterborough,Peterborough City Council,Adult Services & Communities - Adults,Independent Sector Placements,Services,13/01/2016 00:00,30058245,1474.16,Revenue,FIELD HOUSE (EYE) LTD,Residential Care
Peterborough,http://opendatacommunities.org/id/unitary-authority/peterborough,Peterborough City Council,Adult Services & Communities - Adults,Independent Sector Placements,Services,13/01/2016 00:00,30058249,1322,Revenue,FIELD HOUSE (EYE) LTD,Residential Care
Peterborough,http://opendatacommunities.org/id/unitary-authority/peterborough,Peterborough City Council,Adult Services & Communities - Adults,Independent Sector Placements,Services,13/01/2016 00:00,30058250,1106.12,Revenue,FIELD HOUSE (EYE) LTD,Residential Care
Peterborough,http://opendatacommunities.org/id/unitary-authority/peterborough,Peterborough City Council,Adult Services & Communities - Adults,Independent Sector Placements,Services,13/01/2016 00:00,30058252,1421.28,Revenue,FIELD HOUSE (EYE) LTD,Residential Care
Peterborough,http://opendatacommunities.org/id/unitary-authority/peterborough,Peterborough City Council,Adult Services & Communities - Adults,Independent Sector Placements,Services,13/01/2016 00:00,30058254,1316.68,Revenue,FIELD HOUSE (EYE) LTD,Residential Care
Peterborough,http://opendatacommunities.org/id/unitary-authority/peterborough,Peterborough City Council,Adult Services & Communities - Adults,Independent Sector Placements,Services,13/01/2016 00:00,30058257,1302.56,Revenue,FIELD HOUSE (EYE) LTD,Residential Care
Peterborough,http://opendatacommunities.org/id/unitary-authority/peterborough,Peterborough City Council,Adult Services & Communities - Adults,Independent Sector Placements,Services,13/01/2016 00:00,30058258,1093,Revenue,FIELD HOUSE (EYE) LTD,Residential Care
Peterborough,http://opendatacommunities.org/id/unitary-authority/peterborough,Peterborough City Council,Adult Services & Communities - Adults,Independent Sector Placements,Services,13/01/2016 00:00,30058259,1316.68,Revenue,FIELD HOUSE (EYE) LTD,Residential Care
Peterborough,http://opendatacommunities.org/id/unitary-authority/peterborough,Peterborough City Council,Adult Services & Communities - Adults,Independent Sector Placements,Services,13/01/2016 00:00,30058260,1821.88,Revenue,FIELD HOUSE (EYE) LTD,Residential Care
Peterborough,http://opendatacommunities.org/id/unitary-authority/peterborough,Peterborough City Council,Adult Services & Communities - Adults,Independent Sector Placements,Services,13/01/2016 00:00,30058262,1400.36,Revenue,FIELD HOUSE (EYE) LTD,Residential Care
Peterborough,http://opendatacommunities.org/id/unitary-authority/peterborough,Peterborough City Council,Adult Services & Communities - Adults,Independent Sector Placements,Services,13/01/2016 00:00,30058263,1005.8,Revenue,FIELD HOUSE (EYE) LTD,Residential Care
Peterborough,http://opendatacommunities.org/id/unitary-authority/peterborough,Peterborough City Council,Adult Services & Communities - Adults,Independent Sector Placements,Services,13/01/2016 00:00,30058265,1257.28,Revenue,FIELD HOUSE (EYE) LTD,Residential Care
Peterborough,http://opendatacommunities.org/id/unitary-authority/peterborough,Peterborough City Council,Adult Services & Communities - Adults,Independent Sector Placements,Services,13/01/2016 00:00,30058266,672.2,Revenue,FIELD HOUSE (EYE) LTD,Residential Care
Peterborough,http://opendatacommunities.org/id/unitary-authority/peterborough,Peterborough City Council,Adult Services & Communities - Adults,Independent Sector Placements,Services,13/01/2016 00:00,30058267,1641.4,Revenue,FIELD HOUSE (EYE) LTD,Residential Care
Peterborough,http://opendatacommunities.org/id/unitary-authority/peterborough,Peterborough City Council,Adult Services & Communities - Adults,Independent Sector Placements,Services,13/01/2016 00:00,30058292,1012.84,Revenue,Maxey House Res Home,Residential Care
Peterborough,http://opendatacommunities.org/id/unitary-authority/peterborough,Peterborough City Council,Adult Services & Communities - Adults,Independent Sector Placements,Services,13/01/2016 00:00,30058293,1071.04,Revenue,Maxey House Res Home,Residential Care
Peterborough,http://opendatacommunities.org/id/unitary-authority/peterborough,Peterborough City Council,Adult Services & Communities - Adults,Independent Sector Placements,Services,13/01/2016 00:00,30058294,789.12,Revenue,Maxey House Res Home,Residential Care
Peterborough,http://opendatacommunities.org/id/unitary-authority/peterborough,Peterborough City Council,Adult Services & Communities - Adults,Independent Sector Placements,Services,13/01/2016 00:00,30058295,1316.68,Revenue,Maxey House Res Home,Residential Care
Peterborough,http://opendatacommunities.org/id/unitary-authority/peterborough,Peterborough City Council,Adult Services & Communities - Adults,Independent Sector Placements,Services,13/01/2016 00:00,30058296,1080.44,Revenue,Maxey House Res Home,Residential Care
Peterborough,http://opendatacommunities.org/id/unitary-authority/peterborough,Peterborough City Council,Adult Services & Communities - Adults,Independent Sector Placements,Services,13/01/2016 00:00,30058297,1316.68,Revenue,Maxey House Res Home,Residential Care
Peterborough,http://opendatacommunities.org/id/unitary-authority/peterborough,Peterborough City Council,Adult Services & Communities - Adults,Independent Sector Placements,Services,13/01/2016 00:00,30058298,1010.16,Revenue,Maxey House Res Home,Residential Care
Peterborough,http://opendatacommunities.org/id/unitary-authority/peterborough,Peterborough City Council,Adult Services & Communities - Adults,Independent Sector Placements,Services,13/01/2016 00:00,30058299,1316.68,Revenue,Maxey House Res Home,Residential Care
Peterborough,http://opendatacommunities.org/id/unitary-authority/peterborough,Peterborough City Council,Adult Services & Communities - Adults,Independent Sector Placements,Services,13/01/2016 00:00,30058301,1211.08,Revenue,Maxey House Res Home,Residential Care
Peterborough,http://opendatacommunities.org/id/unitary-authority/peterborough,Peterborough City Council,Adult Services & Communities - Adults,Independent Sector Placements,Services,13/01/2016 00:00,30058317,1316.68,Revenue,FIELD HOUSE (EYE) LTD,Residential Care
Peterborough,http://opendatacommunities.org/id/unitary-authority/peterborough,Peterborough City Council,Adult Services & Communities - Adults,Independent Sector Placements,Services,13/01/2016 00:00,30058351,3510.72,Revenue,Sanctuary Care Limited,Residential Care
Peterborough,http://opendatacommunities.org/id/unitary-authority/peterborough,Peterborough City Council,Adult Services & Communities - Adults,Independent Sector Placements,Services,13/01/2016 00:00,30058530,523.23,Revenue,Barchester Healthcare (Werrington Lodge),Residential Care
Peterborough,http://opendatacommunities.org/id/unitary-authority/peterborough,Peterborough City Council,Adult Services & Communities - Adults,Independent Sector Placements,Services,13/01/2016 00:00,30058536,2551.32,Revenue,The Richmond Fellowship,Residential Care
Peterborough,http://opendatacommunities.org/id/unitary-authority/peterborough,Peterborough City Council,Adult Services & Communities - Adults,Independent Sector Placements,Services,13/01/2016 00:00,30058538,3244,Revenue,The Richmond Fellowship,Residential Care
Peterborough,http://opendatacommunities.org/id/unitary-authority/peterborough,Peterborough City Council,Education,PFI,Water Services,13/01/2016 00:00,30058548,818.14,Revenue,Anglian Water,Water
Peterborough,http://opendatacommunities.org/id/unitary-authority/peterborough,Peterborough City Council,Vivacity/Cultural Services,Cultural Services,Water Services,13/01/2016 00:00,30058548,829.22,Revenue,Anglian Water,Water
Peterborough,http://opendatacommunities.org/id/unitary-authority/peterborough,Peterborough City Council,Vivacity/Cultural Services,Cultural Services,Water Services,13/01/2016 00:00,30058548,1254.65,Revenue,Anglian Water,Water
Peterborough,http://opendatacommunities.org/id/unitary-authority/peterborough,Peterborough City Council,Adults and Communities - Communities,Housing and Health,Water Services,13/01/2016 00:00,30058548,1007.98,Revenue,Anglian Water,Water
Peterborough,http://opendatacommunities.org/id/unitary-authority/peterborough,Peterborough City Council,Education,PFI,Water Services,13/01/2016 00:00,30058548,4595.08,Revenue,Anglian Water,Water
Peterborough,http://opendatacommunities.org/id/unitary-authority/peterborough,Peterborough City Council,Vivacity/Cultural Services,Cultural Services,Water Services,13/01/2016 00:00,30058548,5248.48,Revenue,Anglian Water,Water
Peterborough,http://opendatacommunities.org/id/unitary-authority/peterborough,Peterborough City Council,Corporate,Corporate,Capital Expenditure,13/01/2016 00:00,30058592,12700.44,Capital,Futureheat Plumbing & Heating,Grant Payment
Peterborough,http://opendatacommunities.org/id/unitary-authority/peterborough,Peterborough City Council,Business Management and Commercial Operations,Commissioning,Services,13/01/2016 00:00,30058602,4025.65,Revenue,Emma Devonport FP,Purchased Social Care Services
Peterborough,http://opendatacommunities.org/id/unitary-authority/peterborough,Peterborough City Council,Children's & Safeguarding,Child Health,Repair & Maintenance of Buildings,13/01/2016 00:00,30058673,800,Revenue,Paramount Security Group,Maintenance
Peterborough,http://opendatacommunities.org/id/unitary-authority/peterborough,Peterborough City Council,Adult Services & Communities - Adults,Day Opportunities / In House,Agency Staff,13/01/2016 00:00,30058773,595,Revenue,Caritas Recruitment,External Temporary Staff
Peterborough,http://opendatacommunities.org/id/unitary-authority/peterborough,Peterborough City Council,Adult Services & Communities - Adults,Independent Sector Placements,Services,13/01/2016 00:00,30058793,2364.13,Revenue,Quantum Care,Residential Care
Peterborough,http://opendatacommunities.org/id/unitary-authority/peterborough,Peterborough City Council,Adult Services & Communities - Adults,Independent Sector Placements,Services,13/01/2016 00:00,30058800,-654.1,Revenue,Sagecare,Home Care
Peterborough,http://opendatacommunities.org/id/unitary-authority/peterborough,Peterborough City Council,Children's & Safeguarding,Access to Resources & Specialist Commissioning,Services,13/01/2016 00:00,30058810,2283.67,Revenue,Medway Council,Out Of Area Education Costs
Peterborough,http://opendatacommunities.org/id/unitary-authority/peterborough,Peterborough City Council,City Services & Communications,Parking Services,Services,13/01/2016 00:00,30058832,7991.68,Revenue,Imperial Civil Enforcement Solutions,Computer Software
Peterborough,http://opendatacommunities.org/id/unitary-authority/peterborough,Peterborough City Council,Peterborough Highway Services,Highway & Drainage Control,Services,13/01/2016 00:00,30058834,1378.92,Revenue,Peterborough Environment City Trust,Special Projects
Peterborough,http://opendatacommunities.org/id/unitary-authority/peterborough,Peterborough City Council,Peterborough Highway Services,Highway & Drainage Control,Services,13/01/2016 00:00,30058835,2160.07,Revenue,Peterborough Environment City Trust,Special Projects
Peterborough,http://opendatacommunities.org/id/unitary-authority/peterborough,Peterborough City Council,Children's & Safeguarding,Access to Resources & Specialist Commissioning,Services,13/01/2016 00:00,30058846,4990.2,Revenue,Families First Ltd,Boarding Out Allowances
Peterborough,http://opendatacommunities.org/id/unitary-authority/peterborough,Peterborough City Council,Adult Services & Communities - Adults,OP/PD/SI,Services,13/01/2016 00:00,30058849,9317.5,Revenue,British Red Cross,Third Party Payments - Contract
Peterborough,http://opendatacommunities.org/id/unitary-authority/peterborough,Peterborough City Council,Corporate,Corporate,Employee Related Expenses,13/01/2016 00:00,30058851,185072.99,Balance Sheet,Cambridgeshire County Council,Pensions
Peterborough,http://opendatacommunities.org/id/unitary-authority/peterborough,Peterborough City Council,Corporate,Corporate,Employee Related Expenses,13/01/2016 00:00,30058852,92295.88,Balance Sheet,Cambridgeshire County Council,Pensions
Peterborough,http://opendatacommunities.org/id/unitary-authority/peterborough,Peterborough City Council,Corporate,Corporate,Employee Related Expenses,13/01/2016 00:00,30058853,24576.57,Balance Sheet,Cambridgeshire County Council,Pensions
Peterborough,http://opendatacommunities.org/id/unitary-authority/peterborough,Peterborough City Council,Corporate,Corporate,Employee Related Expenses,13/01/2016 00:00,30058854,425474.45,Balance Sheet,Cambridgeshire County Council,Pensions
Peterborough,http://opendatacommunities.org/id/unitary-authority/peterborough,Peterborough City Council,Corporate,Corporate,Employee Related Expenses,13/01/2016 00:00,30058855,17705.02,Balance Sheet,NHS Pensions,Pensions
Peterborough,http://opendatacommunities.org/id/unitary-authority/peterborough,Peterborough City Council,Corporate,Corporate,Employee Related Expenses,13/01/2016 00:00,30058856,10302.82,Balance Sheet,NHS Pensions,Pensions
Peterborough,http://opendatacommunities.org/id/unitary-authority/peterborough,Peterborough City Council,Corporate,Corporate,Employee Related Expenses,13/01/2016 00:00,30058857,2794.8,Balance Sheet,NHS Pensions,Pensions
Peterborough,http://opendatacommunities.org/id/unitary-authority/peterborough,Peterborough City Council,Corporate,Corporate,Employee Related Expenses,13/01/2016 00:00,30058858,1829.73,Balance Sheet,NHS Pensions,Pensions
Peterborough,http://opendatacommunities.org/id/unitary-authority/peterborough,Peterborough City Council,Children's & Safeguarding,Children's Social Care,Services,13/01/2016 00:00,30058859,586.45,Revenue,Peterborough City Council,Financial Assistance
Peterborough,http://opendatacommunities.org/id/unitary-authority/peterborough,Peterborough City Council,Children's & Safeguarding,Children's Social Care,Services,13/01/2016 00:00,30058859,698.88,Revenue,Peterborough City Council,Financial Assistance
Peterborough,http://opendatacommunities.org/id/unitary-authority/peterborough,Peterborough City Council,"Cemeteries, Cremation & Registrars",Bereavement Service,"Tools, Equipment, Furniture & Materials",13/01/2016 00:00,30058876,1068.8,Revenue,Scribes Ltd,Memorials
Peterborough,http://opendatacommunities.org/id/unitary-authority/peterborough,Peterborough City Council,Adult Services & Communities - Adults,Independent Sector Placements,Services,13/01/2016 00:00,30058900,1284.64,Revenue,Bondcare,Residential Care
Peterborough,http://opendatacommunities.org/id/unitary-authority/peterborough,Peterborough City Council,Adults and Communities - Communities,Early Help ASC/CSC,Services,13/01/2016 00:00,30058904,4000,Revenue,Cross Keys Homes,Programmes
Peterborough,http://opendatacommunities.org/id/unitary-authority/peterborough,Peterborough City Council,Adult Services & Communities - Adults,Independent Sector Placements,Services,13/01/2016 00:00,30058905,-1178.71,Revenue,Bondcare,Residential Care
Peterborough,http://opendatacommunities.org/id/unitary-authority/peterborough,Peterborough City Council,Adult Services & Communities - Adults,Independent Sector Placements,Services,13/01/2016 00:00,30058908,-6285.56,Revenue,Bondcare,Residential Care
Peterborough,http://opendatacommunities.org/id/unitary-authority/peterborough,Peterborough City Council,Business Management and Commercial Operations,Commissioning,Interview & Training Expenses,13/01/2016 00:00,30058913,1098.2,Revenue,Early Education,Training
Peterborough,http://opendatacommunities.org/id/unitary-authority/peterborough,Peterborough City Council,Education,Pupil Referral Unit,Services,13/01/2016 00:00,30058918,1300.5,Revenue,Assessment & Qualifications Alliance (AQA),Exam Fees
Peterborough,http://opendatacommunities.org/id/unitary-authority/peterborough,Peterborough City Council,Adult Services & Communities - Adults,Independent Sector Placements,Services,13/01/2016 00:00,30058919,936.89,Revenue,Bondcare,Residential Care
Peterborough,http://opendatacommunities.org/id/unitary-authority/peterborough,Peterborough City Council,Adult Services & Communities - Adults,Independent Sector Placements,Services,13/01/2016 00:00,30058922,1212.6,Revenue,Bondcare,Residential Care
Peterborough,http://opendatacommunities.org/id/unitary-authority/peterborough,Peterborough City Council,Adult Services & Communities - Adults,Independent Sector Placements,Services,13/01/2016 00:00,30058923,1212.6,Revenue,Bondcare,Residential Care
Peterborough,http://opendatacommunities.org/id/unitary-authority/peterborough,Peterborough City Council,Adult Services & Communities - Adults,Independent Sector Placements,Services,13/01/2016 00:00,30058925,1212.6,Revenue,Bondcare,Residential Care
Peterborough,http://opendatacommunities.org/id/unitary-authority/peterborough,Peterborough City Council,Adult Services & Communities - Adults,Independent Sector Placements,Services,13/01/2016 00:00,30058926,1212.6,Revenue,Bondcare,Residential Care
Peterborough,http://opendatacommunities.org/id/unitary-authority/peterborough,Peterborough City Council,Adult Services & Communities - Adults,Independent Sector Placements,Services,13/01/2016 00:00,30058927,1212.6,Revenue,Bondcare,Residential Care
Peterborough,http://opendatacommunities.org/id/unitary-authority/peterborough,Peterborough City Council,Adult Services & Communities - Adults,Independent Sector Placements,Services,13/01/2016 00:00,30058928,1284.64,Revenue,Bondcare,Residential Care
Peterborough,http://opendatacommunities.org/id/unitary-authority/peterborough,Peterborough City Council,Performance & Information,Performance & Information,Services,13/01/2016 00:00,30058968,526.25,Revenue,Professor M C Winslet MS FRCS,Hired Services
Peterborough,http://opendatacommunities.org/id/unitary-authority/peterborough,Peterborough City Council,Development and Construction,Development Management,Services,13/01/2016 00:00,30058970,2940,Revenue,"Mitchell, Mr Jonathan",Legal Costs
Peterborough,http://opendatacommunities.org/id/unitary-authority/peterborough,Peterborough City Council,Performance & Information,Performance & Information,Services,13/01/2016 00:00,30058991,530,Revenue,Imperial College Healthcare NHS Trust,Scientific Testing
Peterborough,http://opendatacommunities.org/id/unitary-authority/peterborough,Peterborough City Council,Financial Services,Insurance,Premises Insurances,13/01/2016 00:00,30058996,1034.67,Revenue,Zurich Insurance Company,External Premiums
Peterborough,http://opendatacommunities.org/id/unitary-authority/peterborough,Peterborough City Council,Business Management and Commercial Operations,Clare Lodge,Repair & Maintenance of Buildings,13/01/2016 00:00,30058997,1380,Revenue,ASSA Abloy Ltd T/A Chubb Locks,Maintenance
Peterborough,http://opendatacommunities.org/id/unitary-authority/peterborough,Peterborough City Council,Children's & Safeguarding,Access to Resources & Specialist Commissioning,Services,13/01/2016 00:00,30059005,5989.51,Revenue,Kasper Fostering,Boarding Out Allowances
Peterborough,http://opendatacommunities.org/id/unitary-authority/peterborough,Peterborough City Council,Business Management and Commercial Operations,Commissioning,Services,13/01/2016 00:00,30059015,1953,Revenue,Redacted Personal Data,Consultants Fees
Peterborough,http://opendatacommunities.org/id/unitary-authority/peterborough,Peterborough City Council,Business Management and Commercial Operations,Commissioning,Services,13/01/2016 00:00,30059016,954.45,Revenue,Redacted Personal Data,Consultants Fees
Peterborough,http://opendatacommunities.org/id/unitary-authority/peterborough,Peterborough City Council,Corporate,Corporate,Capital Expenditure,13/01/2016 00:00,30059023,1836.5,Capital,Enterprise Managed Services Limited,Property Services Fees
Peterborough,http://opendatacommunities.org/id/unitary-authority/peterborough,Peterborough City Council,Amey Peterborough & Waste Management,Waste Management,Services,13/01/2016 00:00,30059031,25612.63,Revenue,Biffa Waste Services Ltd,Waste Disposal
Peterborough,http://opendatacommunities.org/id/unitary-authority/peterborough,Peterborough City Council,Children's & Safeguarding,Children's Social Care,Agency Staff,13/01/2016 00:00,30059034,1072.26,Revenue,Sanctuary Personnel Ltd,External Temporary Staff
Peterborough,http://opendatacommunities.org/id/unitary-authority/peterborough,Peterborough City Council,Children's & Safeguarding,Children's Social Care,Agency Staff,13/01/2016 00:00,30059037,1787.1,Revenue,Sanctuary Personnel Ltd,External Temporary Staff
Peterborough,http://opendatacommunities.org/id/unitary-authority/peterborough,Peterborough City Council,Adult Services & Communities - Adults,Independent Sector Placements,Services,13/01/2016 00:00,30059063,990.64,Revenue,Avery House (Peterborough) t/a Brighterkind,Residential Care
Peterborough,http://opendatacommunities.org/id/unitary-authority/peterborough,Peterborough City Council,Business Management and Commercial Operations,Early Years & Quality Improvement,Services,13/01/2016 00:00,30059064,872.02,Revenue,Redacted Personal Data,Grant Payment
Peterborough,http://opendatacommunities.org/id/unitary-authority/peterborough,Peterborough City Council,Adult Services & Communities - Adults,Independent Sector Placements,Services,13/01/2016 00:00,30059067,7966.72,Revenue,NEW BOUNDARIES COMMUNITY SERVICES LTD,Residential Care
Peterborough,http://opendatacommunities.org/id/unitary-authority/peterborough,Peterborough City Council,Children's & Safeguarding,Access to Resources & Specialist Commissioning,Services,13/01/2016 00:00,30059068,3143.09,Revenue,St Christopher's Fellowship,Boarding Out Allowances
Peterborough,http://opendatacommunities.org/id/unitary-authority/peterborough,Peterborough City Council,Adult Services & Communities - Adults,Independent Sector Placements,Services,13/01/2016 00:00,30059110,924,Revenue,Allied Healthcare (UK) Ltd,Home Care
Peterborough,http://opendatacommunities.org/id/unitary-authority/peterborough,Peterborough City Council,Business Management and Commercial Operations,Early Years & Quality Improvement,Services,13/01/2016 00:00,30059119,26279.88,Revenue,PSLA,Grant Payment
Peterborough,http://opendatacommunities.org/id/unitary-authority/peterborough,Peterborough City Council,Business Management and Commercial Operations,Early Years & Quality Improvement,Services,13/01/2016 00:00,30059126,12730.18,Revenue,PSLA,Grant Payment
Peterborough,http://opendatacommunities.org/id/unitary-authority/peterborough,Peterborough City Council,Adult Services & Communities - Adults,Independent Sector Placements,Services,13/01/2016 00:00,30059130,8752,Revenue,Autism Care (UK) Ltd,Residential Care
Peterborough,http://opendatacommunities.org/id/unitary-authority/peterborough,Peterborough City Council,Business Management and Commercial Operations,Early Years & Quality Improvement,Services,13/01/2016 00:00,30059131,1405.5,Revenue,Peterborough Regional College,Grant Payment
Peterborough,http://opendatacommunities.org/id/unitary-authority/peterborough,Peterborough City Council,Adult Services & Communities - Adults,Independent Sector Placements,Services,13/01/2016 00:00,30059132,1674.52,Revenue,Ashmere,Residential Care
Peterborough,http://opendatacommunities.org/id/unitary-authority/peterborough,Peterborough City Council,Adult Services & Communities - Adults,Independent Sector Placements,Services,13/01/2016 00:00,30059133,1674.52,Revenue,Ashmere,Residential Care
Peterborough,http://opendatacommunities.org/id/unitary-authority/peterborough,Peterborough City Council,Adult Services & Communities - Adults,Independent Sector Placements,Services,13/01/2016 00:00,30059135,1674.52,Revenue,Ashmere,Residential Care
Peterborough,http://opendatacommunities.org/id/unitary-authority/peterborough,Peterborough City Council,Business Management and Commercial Operations,Early Years & Quality Improvement,Services,13/01/2016 00:00,30059143,14023.7,Revenue,Shining Stars Pre-School Nursery,Grant Payment
Peterborough,http://opendatacommunities.org/id/unitary-authority/peterborough,Peterborough City Council,Adult Services & Communities - Adults,Independent Sector Placements,Services,13/01/2016 00:00,30059146,670.8,Revenue,FIELD HOUSE (EYE) LTD,Residential Care
Peterborough,http://opendatacommunities.org/id/unitary-authority/peterborough,Peterborough City Council,Adult Services & Communities - Adults,Independent Sector Placements,Services,13/01/2016 00:00,30059151,780.3,Revenue,FIELD HOUSE (EYE) LTD,Residential Care
Peterborough,http://opendatacommunities.org/id/unitary-authority/peterborough,Peterborough City Council,Adult Services & Communities - Adults,Independent Sector Placements,Services,13/01/2016 00:00,30059152,1851.5,Revenue,FIELD HOUSE (EYE) LTD,Residential Care
Peterborough,http://opendatacommunities.org/id/unitary-authority/peterborough,Peterborough City Council,Adult Services & Communities - Adults,Independent Sector Placements,Services,13/01/2016 00:00,30059177,1221,Revenue,PRESTIGE NURSING LIMITED,Home Care
Peterborough,http://opendatacommunities.org/id/unitary-authority/peterborough,Peterborough City Council,Adult Services & Communities - Adults,Independent Sector Placements,Services,13/01/2016 00:00,30059181,1342.8,Revenue,The Orders of St John Care Trust,Residential Care
Peterborough,http://opendatacommunities.org/id/unitary-authority/peterborough,Peterborough City Council,Children's & Safeguarding,Access to Resources & Specialist Commissioning,Services,13/01/2016 00:00,30059212,10665.87,Revenue,Cambian Childcare Ltd,Boarding Out Allowances
Peterborough,http://opendatacommunities.org/id/unitary-authority/peterborough,Peterborough City Council,Children's & Safeguarding,Access to Resources & Specialist Commissioning,Services,13/01/2016 00:00,30059213,10665.87,Revenue,Cambian Childcare Ltd,Boarding Out Allowances
Peterborough,http://opendatacommunities.org/id/unitary-authority/peterborough,Peterborough City Council,Human Resources,HR,Agency Staff,13/01/2016 00:00,30059226,1695,Revenue,Sanctuary Personnel Ltd,External Temporary Staff
Peterborough,http://opendatacommunities.org/id/unitary-authority/peterborough,Peterborough City Council,Human Resources,HR,Agency Staff,13/01/2016 00:00,30059227,2260,Revenue,Sanctuary Personnel Ltd,External Temporary Staff
Peterborough,http://opendatacommunities.org/id/unitary-authority/peterborough,Peterborough City Council,Human Resources,HR,Agency Staff,13/01/2016 00:00,30059228,565,Revenue,Sanctuary Personnel Ltd,External Temporary Staff
Peterborough,http://opendatacommunities.org/id/unitary-authority/peterborough,Peterborough City Council,Human Resources,HR,Agency Staff,13/01/2016 00:00,30059230,1695,Revenue,Sanctuary Personnel Ltd,External Temporary Staff
Peterborough,http://opendatacommunities.org/id/unitary-authority/peterborough,Peterborough City Council,Human Resources,HR,Agency Staff,13/01/2016 00:00,30059233,1695,Revenue,Sanctuary Personnel Ltd,External Temporary Staff
Peterborough,http://opendatacommunities.org/id/unitary-authority/peterborough,Peterborough City Council,Education,Home to School Transport,Transport,13/01/2016 00:00,8000051357,990,Revenue,The Private Hire Company,Hired Transport
Peterborough,http://opendatacommunities.org/id/unitary-authority/peterborough,Peterborough City Council,Education,Home to School Transport,Transport,13/01/2016 00:00,8000051648,851.2,Revenue,Goldstar Cabs Ltd,Hired Transport
Peterborough,http://opendatacommunities.org/id/unitary-authority/peterborough,Peterborough City Council,Education,Home to School Transport,Transport,13/01/2016 00:00,8000051649,831.9,Revenue,Goldstar Cabs Ltd,Hired Transport
Peterborough,http://opendatacommunities.org/id/unitary-authority/peterborough,Peterborough City Council,Education,Home to School Transport,Transport,13/01/2016 00:00,8000051650,980,Revenue,Goldstar Cabs Ltd,Hired Transport
Peterborough,http://opendatacommunities.org/id/unitary-authority/peterborough,Peterborough City Council,Education,Home to School Transport,Transport,13/01/2016 00:00,8000051652,504,Revenue,Goldstar Cabs Ltd,Hired Transport
Peterborough,http://opendatacommunities.org/id/unitary-authority/peterborough,Peterborough City Council,Education,Home to School Transport,Transport,13/01/2016 00:00,8000051654,650,Revenue,Goldstar Cabs Ltd,Hired Transport
Peterborough,http://opendatacommunities.org/id/unitary-authority/peterborough,Peterborough City Council,Education,Home to School Transport,Transport,13/01/2016 00:00,8000051655,1536.5,Revenue,Goldstar Cabs Ltd,Hired Transport
Peterborough,http://opendatacommunities.org/id/unitary-authority/peterborough,Peterborough City Council,Education,Home to School Transport,Transport,13/01/2016 00:00,8000051656,1715,Revenue,Goldstar Cabs Ltd,Hired Transport
Peterborough,http://opendatacommunities.org/id/unitary-authority/peterborough,Peterborough City Council,Education,Home to School Transport,Transport,13/01/2016 00:00,8000051657,1120,Revenue,Goldstar Cabs Ltd,Hired Transport
Peterborough,http://opendatacommunities.org/id/unitary-authority/peterborough,Peterborough City Council,Education,Home to School Transport,Transport,13/01/2016 00:00,8000051658,873.6,Revenue,Goldstar Cabs Ltd,Hired Transport
Peterborough,http://opendatacommunities.org/id/unitary-authority/peterborough,Peterborough City Council,Education,Home to School Transport,Transport,13/01/2016 00:00,8000051659,920.5,Revenue,Goldstar Cabs Ltd,Hired Transport
Peterborough,http://opendatacommunities.org/id/unitary-authority/peterborough,Peterborough City Council,Education,Home to School Transport,Transport,13/01/2016 00:00,8000051660,1610,Revenue,Goldstar Cabs Ltd,Hired Transport
